Workbook

Sheet Instructivo
A1: CRITERIO DE PRIORIZACIÓN DE TRÁMITES ADMINISTRATIVOS
A2: Instructivo
A3: Consideraciones generales
A5: En las hojas “COSTO DE ADMINISTRACIÓN PÚBLICA”y “RESUMEN” para añadir más trámites y que apliquen las fórmulas, se deberá seleccionar la primera fila y copiarla una por cada trámite de la entidad
A7: Todas las hojas tienen columnas de color celeste, en las cuales NO deben ingresar valores ya que contienen fórmulas.
A8: Para la carga en GOB.EC. La institución debe recordar que el peso máximo del archivo es de 2 MB.
A9: Esquema de puntuación
A10: Para priorizar un trámite, se realizará un análisis de criterios básicos y adicionales basado en información que disponen las instituciones sujetas a esta norma técnica. Cada criterio será puntuado según los lineamientos presentes en esta norma.
A11: a) Demanda Anual
A12: Considerará el volumen o frecuencia de las solicitudes que ingresan al año a cada institución para la gestión de un trámite en particular.
A13: La identificación del volumen anual de los trámites se realizará a través de sus registros de transacciones y/o el número de visitas de consulta de información realizadas a través de páginas web institucionales.
A14: Para realizar el registro realice lo siguiente:
A15: 1.- Seleccione la hoja DEMANDA ANUAL
A16: 2.- Ingrese los trámites de la institución registrando el identificador y nombre en las columnas respectivas.
A17: 3.- Para cada trámite debe especificar en la columna DEMANDA ANUAL el volumen o frecuencia anual, de acuerdo a lo mencionado anteriormente.
A18: 4.- Una vez terminado el llenado solicitado presione el botón PUNTUACIÓN, se ordenara de menor a mayor.
A19: 5.- Usted visualizará el ordenamiento de los trámites ingresados de acuerdo al número de volumen o frecuencia anual.
A20: 6.- Así mismo, usted visualizará el puntaje obtenido en la columna PUNTUACIÓN de acuerdo al grupo obtenido por cada trámite de acuerdo al número de volumen o frecuencia anual cosiderando lo siguiente: ** Primer grupo (trámites con menor demanda no incluye los trámites con demanda 0 ) = 3 ** Segundo grupo (trámites con demanda intermedia) = 6 ** Tercer grupo (trámites con mayor demanda) = 10
A21: Cada vez que requiera actualizar el puntaje presionando el botón puntuación, debe verificar que la celda de la columna puntaje se encuentren vacías, es decir, se debe borrar cualquier valor de puntaje obtenido previamente.
A22: b) Volumen de quejas asociadas a un trámite:
A23: Considerará la cantidad de quejas recibidas en relación a un trámite durante un año. Estas quejas deberán estar documentadas en medios físicos y/o digitales.
A24: Para determinar la puntuación, se colocará en una tabla todos los trámites con sus correspondientes quejas ordenándose de menor a mayor. Se dividirá en 2 partes en los que cada grupo contenga la misma cantidad de trámites.
A25: Para realizar el registro realice lo siguiente:
A26: 1.- Seleccione la hoja VOLUMEN DE QUEJAS
A27: 2.- Ingrese los trámites de la institución registrando el identificador y nombre en las columnas respectivas. Si usted requiere de acuerdo al número de trámites copie filas adicionales que estén dentro del cuadro
A28: 3.- Para cada trámite debe especificar en la columna VOLUMEN QUEJAS el número de quejas anual, de acuerdo a lo mencionado anteriormente.
A29: 4.- Una vez terminado el llenado solicitado presione el botón PUNTUACIÓN.
A30: 5.- Usted visualizará el ordenamiento de los trámites ingresados de acuerdo al número de volumen o frecuencia anual.
A31: 6.- Así mismo, usted visualizará el puntaje obtenido en la columna PUNTUACIÓN de acuerdo al grupo obtenido por cada trámite de acuerdo al número de volumen o frecuencia anual cosiderando lo siguiente: La puntuación se basará en los siguientes grupos: ** Primer grupo (trámites con menor cantidad de quejas, no incluye los trámites con queja 0 ) = 4 ** Segundo grupo (trámites con mayor porcentaje de quejas) = 10
A32: El valor del volumen de quejas no debe ser superior al valor del volumen de la demana, no le permitirá registrar un valor.
A33: c) Costo para la administración pública:
A34: En cada trámite, basado en un caso estándar, se deberá estimar el costo incurrido en el costo de personal y recursos necesarios para su atención desde que el administrado entregó todos los requisitos hasta que la institución entregue el producto, respuesta o servicio requerido en el trámite. Se considerará:
A35: • Costo de personal:
A36: Costo del personal para atender el trámite, se excluyen actividades realizadas automáticamente o que dependen del administrado. El tiempo deberá considerar únicamente el tiempo efectivo de trabajo del personal, no debe considerar el tiempo de espera o de movimiento.
A37: • Costo de recursos:
A38: Se deberá considerar el costo directo en el que la institución debe incurrir para atender un trámite. Se debe considerar los insumos o materia prima necesaria u cualquier otro que la institución considere pertinente.
A39: Para realizar el registro realice lo siguiente:
A40: 1.- Seleccione la hoja COSTO ADMINISTRACIÓN PÚBLICA
A41: 2.- Ingrese los trámites de la institución registrando el identificador y nombre en las columnas respectivas. Si usted requiere de acuerdo al número de trámites copie filas adicionales que estén dentro del cuadro
A42: 3.- Para calcular el tiempo de las actividades, utilizar la hoja AUXILIAR COSTO ADMINISTRACIÓN donde deberá listar todas las actividades que realiza la institución en un caso estándar y asignar el tiempo mínimo que toma cada actvidad (en horas). El tiempo total de las actividades, deberá ingresar en la correspondiente celda de la hoja COSTO ADMINISTRACIÓN PÚBLICA
A43: 4.- En función de la información registrada en el paso 3, la matriz entregará el costo del personal
A44: 5.- Completar la columna "Costo recursos", en la cual ingresará el costo directo en el que incurre la institución para entregar el trámite. En este valor se considerarán los valores correspondientes a insumos y/o materia prima mínimos que se invierten por cada trámite (no se considera mano de obra)
A45: 6.- La columna "Costo para la adm. pública" mostrará el costto de este criterio para cada trámite
A46: 7,- Para que la fórmula funcione debe arrastrar hacia abajo al último de los támites ingresados, no copiar
A47: 7.- Una vez que disponga del Costo para la administración pública, presionar el botón "GENERAR".
A48: 8. Visualizar la hoja “RESUMEN DE COSTO AP” en la que va a encontrar copiada las celdas necesarias para el ordenamiento y puntuación de las mismas al presionar el botón “PUNTUACIÓN”
A50: d) Tiempo de respuesta:
A51: Considerará los tiempos que a las instituciones les toma dar respuesta a un trámite desde que reciben la solicitud del administrado hasta la finalización del mismo. Para la definición del tiempo se considerará un caso estándar.
A52: Para determinar la puntuación, se colocará en una tabla todos los trámites con el tiempo de respuesta, ordenándose de menor a mayor. Se dividirá en 4 grupos, en los que cada uno contenga la misma cantidad de trámites.
A53: Para realizar el registro realice lo siguiente:
A54: 1.- Seleccione la hoja TIEMPO DE RESPUESTA
A55: 2.- Ingrese los trámites de la institución registrando el identificador y nombre en las columnas respectivas. Si usted requiere de acuerdo al número de trámites copie filas adicionales que estén dentro del cuadro
A56: 3.- Para cada trámite debe especificar en la columna TIEMPO RESPUESTA el tiempo, de acuerdo a lo mencionado anteriormente.
A57: 4.- Una vez terminado el llenado solicitado presione el botón PUNTUACIÓN.
A58: 5.- Usted visualizará el ordenamiento de los trámites ingresados de acuerdo al número de volumen o frecuencia anual.
A59: 6.- Así mismo, usted visualizará el puntaje obtenido en la columna PUNTUACIÓN de acuerdo al grupo obtenido por cada trámite de acuerdo al número de volumen o frecuencia anual cosiderando lo siguiente: La puntuación considera lo siguiente: ** Primer grupo (menor o igual a 40 horas laboralres) = 0 ** Segundo grupo mayor 40 horas laboralres) = 30
A60: e) Canal de atención:
A61: Considerará los canales de atención a través de los cuales el administrado puede iniciar el trámite.
A62: Para realizar el registro realice lo siguiente:
A63: 1.- Seleccione la hoja CANAL ATENCIÓN
A64: 2.- Ingrese los trámites de la institución registrando el identificador y nombre en las columnas respectivas. Si usted requiere de acuerdo al número de trámites copie filas adicionales que estén dentro del cuadro
A65: 3.- Para cada trámite debe seleccionar el canal de atención del trámite en la columna CANAL ATENCIÓN, que pueden ser: El trámite se puede completar totalmente en línea: Se considera trámite totalmente en línea cuando el administrado no requiere realizar ninguna interacción presencial con la institución = 0 El trámite no se puede completar totalmente en línea: Se considera este caso, cuando el trámite incluye al menos una actividad, incluido mecanismos de pago, en la que el administrado deba acudir presencialmente a la institución, para la realización de dicho trámite. Los trámites presenciales se consideran dentro de esta categoría = 10
A66: 4.- De acuerdo a la selección usted obtendrá la puntuación del trámite que se visualizará en la columna PUNTUACIÓN.
A68: f) Resumen
A69: En esta hoja deberá consolidar todas las puntuaciones obtenidas para cada trámite en los criterios a) hasta e). Adicionalmente deberá analizar los criterios adicionales que dispone la norma técnica, para estos últimos solamente deberá seleccionar en la celda correspondiente y la matriz asignará la puntuación adicional. Los criterios que deberá considerar son: - NECESIDADES CIUDADANAS: Si la institución ha implementado mecanismos para identificar necesidades ciudadanas respecto al trámite, seleccionar "SI", caso contrario, seleccionar "NO" - SUSCEPTIBILIDAD A CORRUPCIÓN: Si la institución dispone de información documentada sobre presuntos actos de corrupción, seleccionar "SI", caso contrario, seleccionar "NO" - VOLUMEN DE DEVOLUCIONES: Si la institución posee documentación sobre devoluciones del trámite en una cantidad significativa, seleccionar "SI", caso contrario, seleccionar "NO" Para que funcione la lista depelgable debe arrastrar la lista y la puntuación hacia abajo al último de los támites ingresados, no copiar
A70: En la columna puntaje total se realizará la sumatoria de los valores de los criterios básicos y adicionales. Este valor deberá registrarse en la plataforma GOB.EC

Sheet DEMANDA ANUAL
A1: PRIORIZACIÓN DE TRÁMITES ADMINISTRATIVOS
A2: DEMANDA ANUAL
A4: IDENTIFICADOR | B4: TRÁMITE | C4: DEMANDA ANUAL | D4: PUNTAJE
A5: DGRCIC-002-01-08 | B5: Inscripción de hijos de progenitoras del mismo sexo por reproducción asistida | C5: 0 | D5: 0
A6: DGRCIC-002-02-02 | B6: Inscripción de nacimiento por adopción en el exterior | C6: 0 | D6: 0
A7: DGRCIC-012-02-01 | B7: Registro de género en Consulados | C7: 0 | D7: 0
A8: DGRCIC-002-04-03 | B8: Registro de naturalización de hijos de padres naturalizados | C8: 0 | D8: 0
A9: DGRCIC-002-04-01 | B9: Registro de naturalización por carta de naturalización | C9: 0 | D9: 0
A10: DGRCIC-008-01-03 | B10: Validación Contra Base de Datos | C10: 0 | D10: 0
A11: DGRCIC-003-01-13 | B11: Solemnización de matrimonio fuera de sede de registro civil si uno de los contrayentes se encuentra privado de la libertad | C11: 4 | D11: 3
A12: DGRCIC-008-01-01 | B12: Web service - Demográfico | C12: 8 | D12: 3
A13: DGRCIC-003-01-11 | B13: Solemnización de matrimonio fuera de sede de registro civil si uno o los dos contrayentes son viudos y tienen hijo/s menor/es de edad | C13: 46 | D13: 3
A14: DGRCIC-002-01-07 | B14: Inscripción de nacimiento por adopción | C14: 60 | D14: 3
A15: DGRCIC-003-01-17 | B15: Solemnización de matrimonio fuera de sede de registro civil si uno o ambos contrayentes son extranjeros con condición migratoria de residencia temporal | C15: 73 | D15: 3
A16: DGRCIC-008-01-02 | B16: Sistema Nacional de Identificación Ciudadana - Consulta de Cédula de Papel | C16: 75 | D16: 3
A17: DGRCIC-002-01-06 | B17: Inscripción de nacimiento por informe de expósito | C17: 92 | D17: 3
A18: DGRCIC-012-01-01 | B18: Registro de género | C18: 111 | D18: 3
A19: DGRCIC-003-01-08 | B19: Solemnización de matrimonio fuera de sede de registro civil si uno o los dos contrayentes solteros tiene hijo/s menor/es de edad | C19: 116 | D19: 3
A20: DGRCIC-002-04-02 | B20: Registro de nacimiento por servicios relevantes | C20: 130 | D20: 3
A21: DGRCIC-003-01-16 | B21: Solemnización de matrimonio fuera de sede de registro civil si los contrayentes son solteros y no tuvieren hijos menores de edad | C21: 139 | D21: 3
A22: DGRCIC-005-02-02 | B22: Inscripción extraordinaria de defunción ocurrida en el exterior (en frontera) | C22: 151 | D22: 3
A23: DGRCIC-001-04-01 | B23: Emisión de Cédula de Identidad Por Registro de Género | C23: 170 | D23: 3
A24: DGRCIC-005-02-03 | B24: Registro de defunción ocurrido en el exterior | C24: 172 | D24: 3
A25: DGRCIC-002-02-01 | B25: Registro de nacimiento ocurrido en el exterior (reconocimiento de nacionalidad) | C25: 172 | D25: 3
A26: DGRCIC-003-02-01 | B26: Registro de matrimonio entre uno o dos ecuatorianos realizado en el exterior | C26: 260 | D26: 3
A27: DGRCIC-002-07-01 | B27: Registro de nacimiento en Consulados | C27: 260 | D27: 3
A28: DGRCIC-005-05-04 | B28: Registro de defunción en Consulados | C28: 325 | D28: 3
A29: DGRCIC-005-02-01 | B29: Inscripción ordinaria de defunción ocurrida en el exterior (en frontera) | C29: 346 | D29: 3
A30: DGRCIC-003-05-01 | B30: Registro de matrimonio en Consulados | C30: 346 | D30: 3
A31: DGRCIC-006-04-07 | B31: Registro de separación de la sociedad de bienes en la unión de hecho | C31: 355 | D31: 3
A32: DGRCIC-003-01-18 | B32: Inscripción de matrimonio por orden judicial (Inscripción de sentencia) | C32: 671 | D32: 3
A33: DGRCIC-001-02-01 | B33: Emisión de Cédula de Identidad Por Primera Vez Doble Nacionalidad | C33: 766 | D33: 3
A34: DGRCIC-001-02-02 | B34: Emisión de Cédula de Identidad Por Primera Vez Naturalización | C34: 766 | D34: 3
A35: DGRCIC-005-01-06 | B35: Inscripción de defunción fetal | C35: 1140 | D35: 6
A36: DGRCIC-006-01-01 | B36: Cambio de nombre Mayores de 18 años | C36: 2159 | D36: 6
A37: DGRCIC-001-02-06 | B37: Emisión de cédula de identidad por primera vez para extrajeros con protección internacional | C37: 2163 | D37: 6
A38: DGRCIC-002-01-05 | B38: Inscripción extraordinaria de nacimiento (mayor de 18 años) por orden judicial (inscripción de sentencia) | C38: 2239 | D38: 6
A39: DGRCIC-006-04-04 | B39: Registro de capitulaciones matrimoniales | C39: 2239 | D39: 6
A40: DGRCIC-011-01-01 | B40: Registro de unión de hecho | C40: 2262 | D40: 6
A41: DGRCIC-003-01-07 | B41: Solemnización de matrimonio en sede de registro civil si uno o ambos contrayentes son extranjeros con condición migratoria de residencia temporal | C41: 2630 | D41: 6
A42: DGRCIC-005-01-05 | B42: Inscripción de defunción por muerte presunta mediante orden judicial (Inscripción de sentencia) | C42: 3078 | D42: 6
A43: DGRCIC-003-01-04 | B43: Solemnización de matrimonio en sede de registro civil si uno o los dos contrayentes son viudos y tienen hijos menores de edad | C43: 3348 | D43: 6
A44: DGRCIC-006-01-03 | B44: Posesión notoria de apellidos | C44: 3390 | D44: 6
A45: DGRCIC-003-01-01 | B45: Solemnización de matrimonio en sede de registro civil si uno o los dos contrayentes solteros tiene hijo/s menor/es de edad | C45: 3586 | D45: 6
A46: DGRCIC-001-06-01 | B46: Emisión de duplicado de cédula de identidad | C46: 3683 | D46: 6
A47: DGRCIC-005-01-09 | B47: Inscripción de defunción por orden judicial (Inscripción de sentencia) | C47: 3735 | D47: 6
A48: DGRCIC-006-01-04 | B48: Reconocimiento voluntario de hijo/a | C48: 4368 | D48: 6
A49: DGRCIC-003-01-03 | B49: Solemnización de matrimonio en sede de registro civil si uno o los dos contrayentes son divorciados y tiene hijos menores de edad | C49: 4781 | D49: 6
A50: DGRCIC-002-01-02 | B50: Inscripción ordinaria y extraordinaria de nacimiento sin atención médica | C50: 5543 | D50: 6
A51: DGRCIC-005-01-04 | B51: Inscripción extraordinaria de defunción sin atención médica | C51: 6532 | D51: 6
A52: DGRCIC-006-04-05 | B52: Reconocimiento de Hijo/a por sentencia ejecutoriada o Acta Notarial | C52: 6716 | D52: 6
A53: DGRCIC-005-01-08 | B53: Inscripción de defunción por desastres, conflictos armados y epidemias | C53: 7564 | D53: 6
A54: DGRCIC-003-01-15 | B54: Solemnización de matrimonio en sede de registro civil si los contrayentes son solteros y no tienen hijos menores de edad | C54: 9563 | D54: 6
A55: DGRCIC-006-04-01 | B55: Rectificación a la información registral por sentencia ejecutoriada | C55: 10203 | D55: 6
A56: DGRCIC-001-05-01 | B56: Emisión de Cédula de Identidad Por Primera Vez o Renovación Para Ecuatorianos a Través de Brigada Móvil | C56: 11067 | D56: 6
A57: DGRCIC-002-06-01 | B57: Inscripción ordinaria y extraordinaria de nacimiento con atención médica en consulados | C57: 11083 | D57: 10
A58: DGRCIC-005-05-03 | B58: Inscripción de defunción extraordinaria con atención médica | C58: 11113 | D58: 10
A59: DGRCIC-005-01-01 | B59: Inscripción extraordinaria de defunción con atención médica | C59: 11113 | D59: 10
A60: DGRCIC-010-01-03 | B60: Emisión de pasaporte ordinario por primera vez menores de 18 años, en caso de ausencia de uno o de los dos padres | C60: 16572 | D60: 10
A61: DGRCIC-010-01-08 | B61: Emisión de pasaporte ordinario por renovación para menores de 18 años por pérdida o robo | C61: 16572 | D61: 10
A62: DGRCIC-009-01-02 | B62: Dispositivo Token | C62: 17051 | D62: 10
A63: DGRCIC-001-02-04 | B63: Emisión de Cédula de Identidad Por Primera Vez o Renovación Para Extranjeros Con Residencia Temporal o Residencia Permanente | C63: 19390 | D63: 10
A64: DGRCIC-005-01-03 | B64: Inscripción ordinaria de defunción sin atención médica | C64: 20139 | D64: 10
A65: DGRCIC-013-01-01 | B65: Inscripción ordinaria y extraordinaria de Nacimiento y Defunción. | C65: 20229 | D65: 10
A66: DGRCIC-009-01-01 | B66: Emisión de Certificado Digital de Firma Electrónica en Token | C66: 20615 | D66: 10
A67: DGRCIC-005-05-01 | B67: Inscripción de defunción ordinaria con atención médica | C67: 23492 | D67: 10
A68: DGRCIC-005-01-02 | B68: Inscripción ordinaria de defunción con atención médica | C68: 23492 | D68: 10
A69: DGRCIC-006-01-05 | B69: Rectificación de datos registrales en Actas Registrales (Resolución Administrativa) | C69: 23807 | D69: 10
A70: DGRCIC-010-01-07 | B70: Emisión de Pasaporte Ordinario por Pérdida o Robo | C70: 33143 | D70: 10
A71: DGRCIC-007-01-08 | B71: Emisión de Certificado de Identidad y Estado Civil en línea | C71: 37001 | D71: 10
A72: DGRCIC-009-01-03 | B72: Emisión de Certificado Digital de Firma Electrónica en Archivo | C72: 40979 | D72: 10
A73: DGRCIC-010-01-01 | B73: Emisión de Pasaporte Ordinario Por Primera Vez | C73: 49715 | D73: 10
A74: DGRCIC-010-01-04 | B74: Emisión de Pasaporte Ordinario por Renovación | C74: 49715 | D74: 10
A75: DGRCIC-007-02-02 | B75: Convalidación de Documentos Registrales | C75: 81144 | D75: 10
A76: DGRCIC-007-01-07 | B76: Emisión de Certificado de Datos Registrales: Nacimiento, Matrimonio y Unión de Hecho en Línea | C76: 116557 | D76: 10
A77: DGRCIC-007-01-04 | B77: Emisión de certificados de Identidad y Estado Civil | C77: 120554 | D77: 10
A78: DGRCIC-002-01-01 | B78: Inscripción ordinaria y extraordinaria de nacimiento con atención médica | C78: 147795 | D78: 10
A79: DGRCIC-007-01-06 | B79: Emisión de Copia del Acta Registral: Nacimiento, Matrimonio, Defunción, Unión de Hecho y Registro de Género / Cambio de Nombre | C79: 346535 | D79: 10
A80: DGRCIC-001-01-01 | B80: Emisión de Cédula de Identidad Por Primera Vez o Renovación Para Ecuatorianos | C80: 848894 | D80: 10
A81: DGRCIC-007-01-01 | B81: Emisión de Certificados de Datos Registrales: Nacimiento, Matrimonio, Defunción y Unión de Hecho | C81: 924510 | D81: 10

Sheet VOLUMEN DE QUEJAS
A1: PRIORIZACIÓN DE TRÁMITES ADMINISTRATIVOS
A2: VOLUMEN DE QUEJAS
A4: IDENTIFICADOR | B4: TRÁMITE | C4: VOLUMEN DEMANDA | D4: VOLUMEN DE QUEJAS | E4: PORCENTAJE | F4: PUNTUACIÓN
A5: DGRCIC-002-01-08 | B5: Inscripción de hijos de progenitoras del mismo sexo por reproducción asistida | C5: 0 | D5: 0 | E5: 0 | F5: 0
A6: DGRCIC-002-02-02 | B6: Inscripción de nacimiento por adopción en el exterior | C6: 0 | D6: 0 | E6: 0 | F6: 0
A7: DGRCIC-012-02-01 | B7: Registro de género en Consulados | C7: 0 | D7: 0 | E7: 0 | F7: 0
A8: DGRCIC-002-04-03 | B8: Registro de naturalización de hijos de padres naturalizados | C8: 0 | D8: 0 | E8: 0 | F8: 0
A9: DGRCIC-002-04-01 | B9: Registro de naturalización por carta de naturalización | C9: 0 | D9: 0 | E9: 0 | F9: 0
A10: DGRCIC-008-01-03 | B10: Validación Contra Base de Datos | C10: 0 | D10: 0 | E10: 0 | F10: 0
A11: DGRCIC-003-01-13 | B11: Solemnización de matrimonio fuera de sede de registro civil si uno de los contrayentes se encuentra privado de la libertad | C11: 4 | D11: 0 | E11: 0 | F11: 0
A12: DGRCIC-008-01-01 | B12: Web service - Demográfico | C12: 8 | D12: 0 | E12: 0 | F12: 0
A13: DGRCIC-003-01-11 | B13: Solemnización de matrimonio fuera de sede de registro civil si uno o los dos contrayentes son viudos y tienen hijo/s menor/es de edad | C13: 46 | D13: 0 | E13: 0 | F13: 0
A14: DGRCIC-002-01-07 | B14: Inscripción de nacimiento por adopción | C14: 60 | D14: 0 | E14: 0 | F14: 0
A15: DGRCIC-003-01-17 | B15: Solemnización de matrimonio fuera de sede de registro civil si uno o ambos contrayentes son extranjeros con condición migratoria de residencia temporal | C15: 73 | D15: 0 | E15: 0 | F15: 0
A16: DGRCIC-008-01-02 | B16: Sistema Nacional de Identificación Ciudadana - Consulta de Cédula de Papel | C16: 75 | D16: 0 | E16: 0 | F16: 0
A17: DGRCIC-002-01-06 | B17: Inscripción de nacimiento por informe de expósito | C17: 92 | D17: 0 | E17: 0 | F17: 0
A18: DGRCIC-012-01-01 | B18: Registro de género | C18: 111 | D18: 0 | E18: 0 | F18: 0
A19: DGRCIC-003-01-08 | B19: Solemnización de matrimonio fuera de sede de registro civil si uno o los dos contrayentes solteros tiene hijo/s menor/es de edad | C19: 116 | D19: 0 | E19: 0 | F19: 0
A20: DGRCIC-002-04-02 | B20: Registro de nacimiento por servicios relevantes | C20: 130 | D20: 0 | E20: 0 | F20: 0
A21: DGRCIC-003-01-16 | B21: Solemnización de matrimonio fuera de sede de registro civil si los contrayentes son solteros y no tuvieren hijos menores de edad | C21: 139 | D21: 0 | E21: 0 | F21: 0
A22: DGRCIC-005-02-02 | B22: Inscripción extraordinaria de defunción ocurrida en el exterior (en frontera) | C22: 151 | D22: 0 | E22: 0 | F22: 0
A23: DGRCIC-001-04-01 | B23: Emisión de Cédula de Identidad Por Registro de Género | C23: 170 | D23: 0 | E23: 0 | F23: 0
A24: DGRCIC-005-02-03 | B24: Registro de defunción ocurrido en el exterior | C24: 172 | D24: 0 | E24: 0 | F24: 0
A25: DGRCIC-002-02-01 | B25: Registro de nacimiento ocurrido en el exterior (reconocimiento de nacionalidad) | C25: 172 | D25: 0 | E25: 0 | F25: 0
A26: DGRCIC-003-02-01 | B26: Registro de matrimonio entre uno o dos ecuatorianos realizado en el exterior | C26: 260 | D26: 0 | E26: 0 | F26: 0
A27: DGRCIC-002-07-01 | B27: Registro de nacimiento en Consulados | C27: 260 | D27: 0 | E27: 0 | F27: 0
A28: DGRCIC-005-05-04 | B28: Registro de defunción en Consulados | C28: 325 | D28: 0 | E28: 0 | F28: 0
A29: DGRCIC-005-02-01 | B29: Inscripción ordinaria de defunción ocurrida en el exterior (en frontera) | C29: 346 | D29: 0 | E29: 0 | F29: 0
A30: DGRCIC-003-05-01 | B30: Registro de matrimonio en Consulados | C30: 346 | D30: 0 | E30: 0 | F30: 0
A31: DGRCIC-006-04-07 | B31: Registro de separación de la sociedad de bienes en la unión de hecho | C31: 355 | D31: 0 | E31: 0 | F31: 0
A32: DGRCIC-003-01-18 | B32: Inscripción de matrimonio por orden judicial (Inscripción de sentencia) | C32: 671 | D32: 0 | E32: 0 | F32: 0
A33: DGRCIC-001-02-01 | B33: Emisión de Cédula de Identidad Por Primera Vez Doble Nacionalidad | C33: 766 | D33: 0 | E33: 0 | F33: 0
A34: DGRCIC-001-02-02 | B34: Emisión de Cédula de Identidad Por Primera Vez Naturalización | C34: 766 | D34: 0 | E34: 0 | F34: 0
A35: DGRCIC-005-01-06 | B35: Inscripción de defunción fetal | C35: 1140 | D35: 0 | E35: 0 | F35: 0
A36: DGRCIC-006-01-01 | B36: Cambio de nombre Mayores de 18 años | C36: 2159 | D36: 0 | E36: 0 | F36: 0
A37: DGRCIC-001-02-06 | B37: Emisión de cédula de identidad por primera vez para extrajeros con protección internacional | C37: 2163 | D37: 0 | E37: 0 | F37: 0
A38: DGRCIC-002-01-05 | B38: Inscripción extraordinaria de nacimiento (mayor de 18 años) por orden judicial (inscripción de sentencia) | C38: 2239 | D38: 0 | E38: 0 | F38: 0
A39: DGRCIC-006-04-04 | B39: Registro de capitulaciones matrimoniales | C39: 2239 | D39: 0 | E39: 0 | F39: 0
A40: DGRCIC-011-01-01 | B40: Registro de unión de hecho | C40: 2262 | D40: 1 | E40: 0.0442086649 | F40: 4
A41: DGRCIC-003-01-07 | B41: Solemnización de matrimonio en sede de registro civil si uno o ambos contrayentes son extranjeros con condición migratoria de residencia temporal | C41: 2630 | D41: 0 | E41: 0 | F41: 0
A42: DGRCIC-005-01-05 | B42: Inscripción de defunción por muerte presunta mediante orden judicial (Inscripción de sentencia) | C42: 3078 | D42: 0 | E42: 0 | F42: 0
A43: DGRCIC-003-01-04 | B43: Solemnización de matrimonio en sede de registro civil si uno o los dos contrayentes son viudos y tienen hijos menores de edad | C43: 3348 | D43: 0 | E43: 0 | F43: 0
A44: DGRCIC-006-01-03 | B44: Posesión notoria de apellidos | C44: 3390 | D44: 0 | E44: 0 | F44: 0
A45: DGRCIC-003-01-01 | B45: Solemnización de matrimonio en sede de registro civil si uno o los dos contrayentes solteros tiene hijo/s menor/es de edad | C45: 3586 | D45: 0 | E45: 0 | F45: 0
A46: DGRCIC-001-06-01 | B46: Emisión de duplicado de cédula de identidad | C46: 3683 | D46: 1 | E46: 0.02715177844 | F46: 4
A47: DGRCIC-005-01-09 | B47: Inscripción de defunción por orden judicial (Inscripción de sentencia) | C47: 3735 | D47: 0 | E47: 0 | F47: 0
A48: DGRCIC-006-01-04 | B48: Reconocimiento voluntario de hijo/a | C48: 4368 | D48: 0 | E48: 0 | F48: 0
A49: DGRCIC-003-01-03 | B49: Solemnización de matrimonio en sede de registro civil si uno o los dos contrayentes son divorciados y tiene hijos menores de edad | C49: 4781 | D49: 231 | E49: 4.831625183 | F49: 10
A50: DGRCIC-002-01-02 | B50: Inscripción ordinaria y extraordinaria de nacimiento sin atención médica | C50: 5543 | D50: 0 | E50: 0 | F50: 0
A51: DGRCIC-005-01-04 | B51: Inscripción extraordinaria de defunción sin atención médica | C51: 6532 | D51: 1 | E51: 0.01530924679 | F51: 4
A52: DGRCIC-006-04-05 | B52: Reconocimiento de Hijo/a por sentencia ejecutoriada o Acta Notarial | C52: 6716 | D52: 0 | E52: 0 | F52: 0
A53: DGRCIC-005-01-08 | B53: Inscripción de defunción por desastres, conflictos armados y epidemias | C53: 7564 | D53: 0 | E53: 0 | F53: 0
A54: DGRCIC-003-01-15 | B54: Solemnización de matrimonio en sede de registro civil si los contrayentes son solteros y no tienen hijos menores de edad | C54: 9563 | D54: 2 | E54: 0.02091393914 | F54: 4
A55: DGRCIC-006-04-01 | B55: Rectificación a la información registral por sentencia ejecutoriada | C55: 10203 | D55: 0 | E55: 0 | F55: 0
A56: DGRCIC-001-05-01 | B56: Emisión de Cédula de Identidad Por Primera Vez o Renovación Para Ecuatorianos a Través de Brigada Móvil | C56: 11067 | D56: 0 | E56: 0 | F56: 0
A57: DGRCIC-002-06-01 | B57: Inscripción ordinaria y extraordinaria de nacimiento con atención médica en consulados | C57: 11083 | D57: 0 | E57: 0 | F57: 0
A58: DGRCIC-005-05-03 | B58: Inscripción de defunción extraordinaria con atención médica | C58: 11113 | D58: 0 | E58: 0 | F58: 0
A59: DGRCIC-005-01-01 | B59: Inscripción extraordinaria de defunción con atención médica | C59: 11113 | D59: 0 | E59: 0 | F59: 0
A60: DGRCIC-010-01-03 | B60: Emisión de pasaporte ordinario por primera vez menores de 18 años, en caso de ausencia de uno o de los dos padres | C60: 16572 | D60: 0 | E60: 0 | F60: 0
A61: DGRCIC-010-01-08 | B61: Emisión de pasaporte ordinario por renovación para menores de 18 años por pérdida o robo | C61: 16572 | D61: 0 | E61: 0 | F61: 0
A62: DGRCIC-009-01-02 | B62: Dispositivo Token | C62: 17051 | D62: 0 | E62: 0 | F62: 0
A63: DGRCIC-001-02-04 | B63: Emisión de Cédula de Identidad Por Primera Vez o Renovación Para Extranjeros Con Residencia Temporal o Residencia Permanente | C63: 19390 | D63: 0 | E63: 0 | F63: 0
A64: DGRCIC-005-01-03 | B64: Inscripción ordinaria de defunción sin atención médica | C64: 20139 | D64: 0 | E64: 0 | F64: 0
A65: DGRCIC-013-01-01 | B65: Inscripción ordinaria y extraordinaria de Nacimiento y Defunción. | C65: 20229 | D65: 0 | E65: 0 | F65: 0
A66: DGRCIC-009-01-01 | B66: Emisión de Certificado Digital de Firma Electrónica en Token | C66: 20615 | D66: 188 | E66: 0.9119573126 | F66: 4
A67: DGRCIC-005-05-01 | B67: Inscripción de defunción ordinaria con atención médica | C67: 23492 | D67: 138 | E67: 0.5874340201 | F67: 4
A68: DGRCIC-005-01-02 | B68: Inscripción ordinaria de defunción con atención médica | C68: 23492 | D68: 13 | E68: 0.0553379874 | F68: 4
A69: DGRCIC-006-01-05 | B69: Rectificación de datos registrales en Actas Registrales (Resolución Administrativa) | C69: 23807 | D69: 77 | E69: 0.323434284 | F69: 4
A70: DGRCIC-010-01-07 | B70: Emisión de Pasaporte Ordinario por Pérdida o Robo | C70: 33143 | D70: 15 | E70: 0.04525842561 | F70: 4
A71: DGRCIC-007-01-08 | B71: Emisión de Certificado de Identidad y Estado Civil en línea | C71: 37001 | D71: 7 | E71: 0.01891840761 | F71: 4
A72: DGRCIC-009-01-03 | B72: Emisión de Certificado Digital de Firma Electrónica en Archivo | C72: 40979 | D72: 9 | E72: 0.02196246858 | F72: 4
A73: DGRCIC-010-01-01 | B73: Emisión de Pasaporte Ordinario Por Primera Vez | C73: 49715 | D73: 5 | E73: 0.01005732676 | F73: 4
A74: DGRCIC-010-01-04 | B74: Emisión de Pasaporte Ordinario por Renovación | C74: 49715 | D74: 4661 | E74: 9.375440008 | F74: 10
A75: DGRCIC-007-02-02 | B75: Convalidación de Documentos Registrales | C75: 81144 | D75: 0 | E75: 0 | F75: 0
A76: DGRCIC-007-01-07 | B76: Emisión de Certificado de Datos Registrales: Nacimiento, Matrimonio y Unión de Hecho en Línea | C76: 116557 | D76: 13 | E76: 0.01115334128 | F76: 4
A77: DGRCIC-007-01-04 | B77: Emisión de certificados de Identidad y Estado Civil | C77: 120554 | D77: 0 | E77: 0 | F77: 0
A78: DGRCIC-002-01-01 | B78: Inscripción ordinaria y extraordinaria de nacimiento con atención médica | C78: 147795 | D78: 3 | E78: 0.002029838628 | F78: 4
A79: DGRCIC-007-01-06 | B79: Emisión de Copia del Acta Registral: Nacimiento, Matrimonio, Defunción, Unión de Hecho y Registro de Género / Cambio de Nombre | C79: 346535 | D79: 20 | E79: 0.0057714228 | F79: 4
A80: DGRCIC-001-01-01 | B80: Emisión de Cédula de Identidad Por Primera Vez o Renovación Para Ecuatorianos | C80: 848894 | D80: 9049 | E80: 1.065975257 | F80: 10
A81: DGRCIC-007-01-01 | B81: Emisión de Certificados de Datos Registrales: Nacimiento, Matrimonio, Defunción y Unión de Hecho | C81: 924510 | D81: 558 | E81: 0.06035629685 | F81: 4

Sheet COSTO ADMINISTRACIÓN PÚBLICA
A1: PRIORIZACIÓN DE TRÁMITES ADMINISTRATIVOS
A2: COSTOS PARA LA ADMINISTRACIÓN PÚBLICA
A4: IDENTIFICADOR | B4: TRÁMITE | C4: INSUMOS PARA COSTO | F4: COSTO PARA LA ADM. PÚBLICA | H4: SBU | I4: 400
C5: TIEMPO (HORAS) | D5: COSTO PERSONAL | E5: COSTO RECURSOS
A6: DGRCIC-002-01-08 | B6: Inscripción de hijos de progenitoras del mismo sexo por reproducción asistida | C6: 0.165 | D6: =C6*$I$4/160 -> 0.4125 | E6: 0 | F6: =D6+E6 -> 0.4125 | L6: =VLOOKUP(A6,'[1]COSTO ADMINISTRACIÓN PÚBLICA'!$A$6:$C$82,3,0) -> 0.165 | M6: =VLOOKUP(A6,'[1]COSTO ADMINISTRACIÓN PÚBLICA'!$A$6:$F$82,5,0) -> 0
A7: DGRCIC-002-02-02 | B7: Inscripción de nacimiento por adopción en el exterior | C7: 0.165 | D7: =C7*$I$4/160 -> 0.4125 | E7: 0 | F7: =D7+E7 -> 0.4125 | L7: =VLOOKUP(A7,'[1]COSTO ADMINISTRACIÓN PÚBLICA'!$A$6:$C$82,3,0) -> 0.165 | M7: =VLOOKUP(A7,'[1]COSTO ADMINISTRACIÓN PÚBLICA'!$A$6:$F$82,5,0) -> 0
A8: DGRCIC-012-02-01 | B8: Registro de género en Consulados | C8: 0 | D8: =C8*$I$4/160 -> 0 | E8: 0 | F8: =D8+E8 -> 0 | L8: =VLOOKUP(A8,'[1]COSTO ADMINISTRACIÓN PÚBLICA'!$A$6:$C$82,3,0) -> 0 | M8: =VLOOKUP(A8,'[1]COSTO ADMINISTRACIÓN PÚBLICA'!$A$6:$F$82,5,0) -> 0
A9: DGRCIC-002-04-03 | B9: Registro de naturalización de hijos de padres naturalizados | C9: 0.165 | D9: 0.4125 | E9: 0 | F9: 0.4125 | L9: =VLOOKUP(A9,'[1]COSTO ADMINISTRACIÓN PÚBLICA'!$A$6:$C$82,3,0) -> 0.165 | M9: =VLOOKUP(A9,'[1]COSTO ADMINISTRACIÓN PÚBLICA'!$A$6:$F$82,5,0) -> 0
A10: DGRCIC-002-04-01 | B10: Registro de naturalización por carta de naturalización | C10: 0.165 | D10: 0.4125 | E10: 0 | F10: 0.4125 | L10: =VLOOKUP(A10,'[1]COSTO ADMINISTRACIÓN PÚBLICA'!$A$6:$C$82,3,0) -> 0.165 | M10: =VLOOKUP(A10,'[1]COSTO ADMINISTRACIÓN PÚBLICA'!$A$6:$F$82,5,0) -> 0
A11: DGRCIC-008-01-03 | B11: Validación Contra Base de Datos | C11: 0 | D11: 0 | E11: 0 | F11: 0 | L11: =VLOOKUP(A11,'[1]COSTO ADMINISTRACIÓN PÚBLICA'!$A$6:$C$82,3,0) -> 0 | M11: =VLOOKUP(A11,'[1]COSTO ADMINISTRACIÓN PÚBLICA'!$A$6:$F$82,5,0) -> 0
A12: DGRCIC-003-01-13 | B12: Solemnización de matrimonio fuera de sede de registro civil si uno de los contrayentes se encuentra privado de la libertad | C12: 0.2486111111 | D12: 0.6215277778 | E12: 11.77469807 | F12: 12.39622585 | L12: =VLOOKUP(A12,'[1]COSTO ADMINISTRACIÓN PÚBLICA'!$A$6:$C$82,3,0) -> 0.2486111111 | M12: =VLOOKUP(A12,'[1]COSTO ADMINISTRACIÓN PÚBLICA'!$A$6:$F$82,5,0) -> 11.77469807
A13: DGRCIC-008-01-01 | B13: Web service - Demográfico | C13: 0 | D13: 0 | E13: 0 | F13: 0 | L13: =VLOOKUP(A13,'[1]COSTO ADMINISTRACIÓN PÚBLICA'!$A$6:$C$82,3,0) -> 0 | M13: =VLOOKUP(A13,'[1]COSTO ADMINISTRACIÓN PÚBLICA'!$A$6:$F$82,5,0) -> 0
A14: DGRCIC-003-01-11 | B14: Solemnización de matrimonio fuera de sede de registro civil si uno o los dos contrayentes son viudos y tienen hijo/s menor/es de edad | C14: 0.2486111111 | D14: 0.6215277778 | E14: 11.77469807 | F14: 12.39622585 | L14: =VLOOKUP(A14,'[1]COSTO ADMINISTRACIÓN PÚBLICA'!$A$6:$C$82,3,0) -> 0.2486111111 | M14: =VLOOKUP(A14,'[1]COSTO ADMINISTRACIÓN PÚBLICA'!$A$6:$F$82,5,0) -> 11.77469807
A15: DGRCIC-002-01-07 | B15: Inscripción de nacimiento por adopción | C15: 0.165 | D15: 0.4125 | E15: 8.461259769 | F15: 8.873759769 | L15: =VLOOKUP(A15,'[1]COSTO ADMINISTRACIÓN PÚBLICA'!$A$6:$C$82,3,0) -> 0.165 | M15: =VLOOKUP(A15,'[1]COSTO ADMINISTRACIÓN PÚBLICA'!$A$6:$F$82,5,0) -> 8.461259769
A16: DGRCIC-003-01-17 | B16: Solemnización de matrimonio fuera de sede de registro civil si uno o ambos contrayentes son extranjeros con condición migratoria de residencia temporal | C16: 0.2486111111 | D16: 0.6215277778 | E16: 11.77469807 | F16: 12.39622585 | L16: =VLOOKUP(A16,'[1]COSTO ADMINISTRACIÓN PÚBLICA'!$A$6:$C$82,3,0) -> 0.2486111111 | M16: =VLOOKUP(A16,'[1]COSTO ADMINISTRACIÓN PÚBLICA'!$A$6:$F$82,5,0) -> 11.77469807
A17: DGRCIC-008-01-02 | B17: Sistema Nacional de Identificación Ciudadana - Consulta de Cédula de Papel | C17: 0 | D17: 0 | E17: 0 | F17: 0 | L17: =VLOOKUP(A17,'[1]COSTO ADMINISTRACIÓN PÚBLICA'!$A$6:$C$82,3,0) -> 0 | M17: =VLOOKUP(A17,'[1]COSTO ADMINISTRACIÓN PÚBLICA'!$A$6:$F$82,5,0) -> 0
A18: DGRCIC-002-01-06 | B18: Inscripción de nacimiento por informe de expósito | C18: 0.165 | D18: 0.4125 | E18: 8.461259769 | F18: 8.873759769 | L18: =VLOOKUP(A18,'[1]COSTO ADMINISTRACIÓN PÚBLICA'!$A$6:$C$82,3,0) -> 0.165 | M18: =VLOOKUP(A18,'[1]COSTO ADMINISTRACIÓN PÚBLICA'!$A$6:$F$82,5,0) -> 8.461259769
A19: DGRCIC-012-01-01 | B19: Registro de género | C19: 0.2856481481 | D19: 0.7141203704 | E19: 17.29709523 | F19: 18.0112156 | L19: =VLOOKUP(A19,'[1]COSTO ADMINISTRACIÓN PÚBLICA'!$A$6:$C$82,3,0) -> 0.2856481481 | M19: =VLOOKUP(A19,'[1]COSTO ADMINISTRACIÓN PÚBLICA'!$A$6:$F$82,5,0) -> 17.29709523
A20: DGRCIC-003-01-08 | B20: Solemnización de matrimonio fuera de sede de registro civil si uno o los dos contrayentes solteros tiene hijo/s menor/es de edad | C20: 0.2486111111 | D20: 0.6215277778 | E20: 11.77469807 | F20: 12.39622585 | L20: =VLOOKUP(A20,'[1]COSTO ADMINISTRACIÓN PÚBLICA'!$A$6:$C$82,3,0) -> 0.2486111111 | M20: =VLOOKUP(A20,'[1]COSTO ADMINISTRACIÓN PÚBLICA'!$A$6:$F$82,5,0) -> 11.77469807
A21: DGRCIC-002-04-02 | B21: Registro de nacimiento por servicios relevantes | C21: 0.165 | D21: 0.4125 | E21: 8.461259769 | F21: 8.873759769 | L21: =VLOOKUP(A21,'[1]COSTO ADMINISTRACIÓN PÚBLICA'!$A$6:$C$82,3,0) -> 0.165 | M21: =VLOOKUP(A21,'[1]COSTO ADMINISTRACIÓN PÚBLICA'!$A$6:$F$82,5,0) -> 8.461259769
A22: DGRCIC-003-01-16 | B22: Solemnización de matrimonio fuera de sede de registro civil si los contrayentes son solteros y no tuvieren hijos menores de edad | C22: 0.2486111111 | D22: 0.6215277778 | E22: 11.77469807 | F22: 12.39622585 | L22: =VLOOKUP(A22,'[1]COSTO ADMINISTRACIÓN PÚBLICA'!$A$6:$C$82,3,0) -> 0.2486111111 | M22: =VLOOKUP(A22,'[1]COSTO ADMINISTRACIÓN PÚBLICA'!$A$6:$F$82,5,0) -> 11.77469807
A23: DGRCIC-005-02-02 | B23: Inscripción extraordinaria de defunción ocurrida en el exterior (en frontera) | C23: 0.2036111111 | D23: 0.5090277778 | E23: 11.22245835 | F23: 11.73148613 | L23: =VLOOKUP(A23,'[1]COSTO ADMINISTRACIÓN PÚBLICA'!$A$6:$C$82,3,0) -> 0.2036111111 | M23: =VLOOKUP(A23,'[1]COSTO ADMINISTRACIÓN PÚBLICA'!$A$6:$F$82,5,0) -> 11.22245835
A24: DGRCIC-001-04-01 | B24: Emisión de Cédula de Identidad Por Registro de Género | C24: 0.1313888889 | D24: 0.3284722222 | E24: 11.31125977 | F24: 11.63973199 | L24: =VLOOKUP(A24,'[1]COSTO ADMINISTRACIÓN PÚBLICA'!$A$6:$C$82,3,0) -> 0.1313888889 | M24: =VLOOKUP(A24,'[1]COSTO ADMINISTRACIÓN PÚBLICA'!$A$6:$F$82,5,0) -> 11.31125977
A25: DGRCIC-005-02-03 | B25: Registro de defunción ocurrido en el exterior | C25: 0.2036111111 | D25: 0.5090277778 | E25: 11.22245835 | F25: 11.73148613 | L25: =VLOOKUP(A25,'[1]COSTO ADMINISTRACIÓN PÚBLICA'!$A$6:$C$82,3,0) -> 0.2036111111 | M25: =VLOOKUP(A25,'[1]COSTO ADMINISTRACIÓN PÚBLICA'!$A$6:$F$82,5,0) -> 11.22245835
A26: DGRCIC-002-02-01 | B26: Registro de nacimiento ocurrido en el exterior (reconocimiento de nacionalidad) | C26: 0.165 | D26: 0.4125 | E26: 11.22245835 | F26: 11.63495835 | L26: =VLOOKUP(A26,'[1]COSTO ADMINISTRACIÓN PÚBLICA'!$A$6:$C$82,3,0) -> 0.165 | M26: =VLOOKUP(A26,'[1]COSTO ADMINISTRACIÓN PÚBLICA'!$A$6:$F$82,5,0) -> 11.22245835
A27: DGRCIC-003-02-01 | B27: Registro de matrimonio entre uno o dos ecuatorianos realizado en el exterior | C27: 0.2486111111 | D27: 0.6215277778 | E27: 11.22245835 | F27: 11.84398613 | L27: =VLOOKUP(A27,'[1]COSTO ADMINISTRACIÓN PÚBLICA'!$A$6:$C$82,3,0) -> 0.2486111111 | M27: =VLOOKUP(A27,'[1]COSTO ADMINISTRACIÓN PÚBLICA'!$A$6:$F$82,5,0) -> 11.22245835
A28: DGRCIC-002-07-01 | B28: Registro de nacimiento en Consulados | C28: 0.165 | D28: 0.4125 | E28: 11.22245835 | F28: 11.63495835 | L28: =VLOOKUP(A28,'[1]COSTO ADMINISTRACIÓN PÚBLICA'!$A$6:$C$82,3,0) -> 0.165 | M28: =VLOOKUP(A28,'[1]COSTO ADMINISTRACIÓN PÚBLICA'!$A$6:$F$82,5,0) -> 11.22245835
A29: DGRCIC-005-05-04 | B29: Registro de defunción en Consulados | C29: 0.2036111111 | D29: 0.5090277778 | E29: 11.22245835 | F29: 11.73148613 | L29: =VLOOKUP(A29,'[1]COSTO ADMINISTRACIÓN PÚBLICA'!$A$6:$C$82,3,0) -> 0.2036111111 | M29: =VLOOKUP(A29,'[1]COSTO ADMINISTRACIÓN PÚBLICA'!$A$6:$F$82,5,0) -> 11.22245835
A30: DGRCIC-005-02-01 | B30: Inscripción ordinaria de defunción ocurrida en el exterior (en frontera) | C30: 0.2036111111 | D30: 0.5090277778 | E30: 11.22245835 | F30: 11.73148613 | L30: =VLOOKUP(A30,'[1]COSTO ADMINISTRACIÓN PÚBLICA'!$A$6:$C$82,3,0) -> 0.2036111111 | M30: =VLOOKUP(A30,'[1]COSTO ADMINISTRACIÓN PÚBLICA'!$A$6:$F$82,5,0) -> 11.22245835
A31: DGRCIC-003-05-01 | B31: Registro de matrimonio en Consulados | C31: 0.2486111111 | D31: 0.6215277778 | E31: 11.22245835 | F31: 11.84398613 | L31: =VLOOKUP(A31,'[1]COSTO ADMINISTRACIÓN PÚBLICA'!$A$6:$C$82,3,0) -> 0.2486111111 | M31: =VLOOKUP(A31,'[1]COSTO ADMINISTRACIÓN PÚBLICA'!$A$6:$F$82,5,0) -> 11.22245835
A32: DGRCIC-006-04-07 | B32: Registro de separación de la sociedad de bienes en la unión de hecho | C32: 0.2486111111 | D32: 0.6215277778 | E32: 11.77469807 | F32: 12.39622585 | L32: =VLOOKUP(A32,'[1]COSTO ADMINISTRACIÓN PÚBLICA'!$A$6:$C$82,3,0) -> 0.2486111111 | M32: =VLOOKUP(A32,'[1]COSTO ADMINISTRACIÓN PÚBLICA'!$A$6:$F$82,5,0) -> 11.77469807
A33: DGRCIC-003-01-18 | B33: Inscripción de matrimonio por orden judicial (Inscripción de sentencia) | C33: 0.2486111111 | D33: 0.6215277778 | E33: 11.77469807 | F33: 12.39622585 | L33: =VLOOKUP(A33,'[1]COSTO ADMINISTRACIÓN PÚBLICA'!$A$6:$C$82,3,0) -> 0.2486111111 | M33: =VLOOKUP(A33,'[1]COSTO ADMINISTRACIÓN PÚBLICA'!$A$6:$F$82,5,0) -> 11.77469807
A34: DGRCIC-001-02-01 | B34: Emisión de Cédula de Identidad Por Primera Vez Doble Nacionalidad | C34: 0.1313888889 | D34: 0.3284722222 | E34: 11.31125977 | F34: 11.63973199 | L34: =VLOOKUP(A34,'[1]COSTO ADMINISTRACIÓN PÚBLICA'!$A$6:$C$82,3,0) -> 0.1313888889 | M34: =VLOOKUP(A34,'[1]COSTO ADMINISTRACIÓN PÚBLICA'!$A$6:$F$82,5,0) -> 11.31125977
A35: DGRCIC-001-02-02 | B35: Emisión de Cédula de Identidad Por Primera Vez Naturalización | C35: 0.1313888889 | D35: 0.3284722222 | E35: 11.31125977 | F35: 11.63973199 | L35: =VLOOKUP(A35,'[1]COSTO ADMINISTRACIÓN PÚBLICA'!$A$6:$C$82,3,0) -> 0.1313888889 | M35: =VLOOKUP(A35,'[1]COSTO ADMINISTRACIÓN PÚBLICA'!$A$6:$F$82,5,0) -> 11.31125977
A36: DGRCIC-005-01-06 | B36: Inscripción de defunción fetal | C36: 0.2036111111 | D36: 0.5090277778 | E36: 10.67021863 | F36: 11.17924641 | L36: =VLOOKUP(A36,'[1]COSTO ADMINISTRACIÓN PÚBLICA'!$A$6:$C$82,3,0) -> 0.2036111111 | M36: =VLOOKUP(A36,'[1]COSTO ADMINISTRACIÓN PÚBLICA'!$A$6:$F$82,5,0) -> 10.67021863
A37: DGRCIC-006-01-01 | B37: Cambio de nombre Mayores de 18 años | C37: 0.2036111111 | D37: 0.5090277778 | E37: 13.43141722 | F37: 13.94044499 | L37: =VLOOKUP(A37,'[1]COSTO ADMINISTRACIÓN PÚBLICA'!$A$6:$C$82,3,0) -> 0.2036111111 | M37: =VLOOKUP(A37,'[1]COSTO ADMINISTRACIÓN PÚBLICA'!$A$6:$F$82,5,0) -> 13.43141722
A38: DGRCIC-001-02-06 | B38: Emisión de cédula de identidad por primera vez para extrajeros con protección internacional | C38: 0.1313888889 | D38: 0.3284722222 | E38: 11.31125977 | F38: 11.63973199 | L38: =VLOOKUP(A38,'[1]COSTO ADMINISTRACIÓN PÚBLICA'!$A$6:$C$82,3,0) -> 0.1313888889 | M38: =VLOOKUP(A38,'[1]COSTO ADMINISTRACIÓN PÚBLICA'!$A$6:$F$82,5,0) -> 11.31125977
A39: DGRCIC-002-01-05 | B39: Inscripción extraordinaria de nacimiento (mayor de 18 años) por orden judicial (inscripción de sentencia) | C39: 0.165 | D39: 0.4125 | E39: 8.461259769 | F39: 8.873759769 | L39: =VLOOKUP(A39,'[1]COSTO ADMINISTRACIÓN PÚBLICA'!$A$6:$C$82,3,0) -> 0.165 | M39: =VLOOKUP(A39,'[1]COSTO ADMINISTRACIÓN PÚBLICA'!$A$6:$F$82,5,0) -> 8.461259769
A40: DGRCIC-006-04-04 | B40: Registro de capitulaciones matrimoniales | C40: 0 | D40: 0 | E40: 11.77469807 | F40: 11.77469807 | L40: =VLOOKUP(A40,'[1]COSTO ADMINISTRACIÓN PÚBLICA'!$A$6:$C$82,3,0) -> 0 | M40: =VLOOKUP(A40,'[1]COSTO ADMINISTRACIÓN PÚBLICA'!$A$6:$F$82,5,0) -> 11.77469807
A41: DGRCIC-011-01-01 | B41: Registro de unión de hecho | C41: 0.2484896925 | D41: 0.6212242313 | E41: 11.77469807 | F41: 12.3959223 | L41: =VLOOKUP(A41,'[1]COSTO ADMINISTRACIÓN PÚBLICA'!$A$6:$C$82,3,0) -> 0.2484896925 | M41: =VLOOKUP(A41,'[1]COSTO ADMINISTRACIÓN PÚBLICA'!$A$6:$F$82,5,0) -> 11.77469807
A42: DGRCIC-003-01-07 | B42: Solemnización de matrimonio en sede de registro civil si uno o ambos contrayentes son extranjeros con condición migratoria de residencia temporal | C42: 0.2486111111 | D42: 0.6215277778 | E42: 11.77469807 | F42: 12.39622585 | L42: =VLOOKUP(A42,'[1]COSTO ADMINISTRACIÓN PÚBLICA'!$A$6:$C$82,3,0) -> 0.2486111111 | M42: =VLOOKUP(A42,'[1]COSTO ADMINISTRACIÓN PÚBLICA'!$A$6:$F$82,5,0) -> 11.77469807
A43: DGRCIC-005-01-05 | B43: Inscripción de defunción por muerte presunta mediante orden judicial (Inscripción de sentencia) | C43: 0.2036111111 | D43: 0.5090277778 | E43: 10.67021863 | F43: 11.17924641 | L43: =VLOOKUP(A43,'[1]COSTO ADMINISTRACIÓN PÚBLICA'!$A$6:$C$82,3,0) -> 0.2036111111 | M43: =VLOOKUP(A43,'[1]COSTO ADMINISTRACIÓN PÚBLICA'!$A$6:$F$82,5,0) -> 10.67021863
A44: DGRCIC-003-01-04 | B44: Solemnización de matrimonio en sede de registro civil si uno o los dos contrayentes son viudos y tienen hijos menores de edad | C44: 0.2486111111 | D44: 0.6215277778 | E44: 11.77469807 | F44: 12.39622585 | L44: =VLOOKUP(A44,'[1]COSTO ADMINISTRACIÓN PÚBLICA'!$A$6:$C$82,3,0) -> 0.2486111111 | M44: =VLOOKUP(A44,'[1]COSTO ADMINISTRACIÓN PÚBLICA'!$A$6:$F$82,5,0) -> 11.77469807
A45: DGRCIC-006-01-03 | B45: Posesión notoria de apellidos | C45: 0.2486111111 | D45: 0.6215277778 | E45: 13.43141722 | F45: 14.05294499 | L45: =VLOOKUP(A45,'[1]COSTO ADMINISTRACIÓN PÚBLICA'!$A$6:$C$82,3,0) -> 0.2486111111 | M45: =VLOOKUP(A45,'[1]COSTO ADMINISTRACIÓN PÚBLICA'!$A$6:$F$82,5,0) -> 13.43141722
A46: DGRCIC-003-01-01 | B46: Solemnización de matrimonio en sede de registro civil si uno o los dos contrayentes solteros tiene hijo/s menor/es de edad | C46: 0.2486111111 | D46: 0.6215277778 | E46: 11.77469807 | F46: 12.39622585 | L46: =VLOOKUP(A46,'[1]COSTO ADMINISTRACIÓN PÚBLICA'!$A$6:$C$82,3,0) -> 0.2486111111 | M46: =VLOOKUP(A46,'[1]COSTO ADMINISTRACIÓN PÚBLICA'!$A$6:$F$82,5,0) -> 11.77469807
A47: DGRCIC-001-06-01 | B47: Emisión de duplicado de cédula de identidad | C47: 0.1313888889 | D47: 0.3284722222 | E47: 6.341102322 | F47: 6.669574544 | L47: =VLOOKUP(A47,'[1]COSTO ADMINISTRACIÓN PÚBLICA'!$A$6:$C$82,3,0) -> 0.1313888889 | M47: =VLOOKUP(A47,'[1]COSTO ADMINISTRACIÓN PÚBLICA'!$A$6:$F$82,5,0) -> 6.341102322
A48: DGRCIC-005-01-09 | B48: Inscripción de defunción por orden judicial (Inscripción de sentencia) | C48: 0.2036111111 | D48: 0.5090277778 | E48: 10.67021863 | F48: 11.17924641 | L48: =VLOOKUP(A48,'[1]COSTO ADMINISTRACIÓN PÚBLICA'!$A$6:$C$82,3,0) -> 0.2036111111 | M48: =VLOOKUP(A48,'[1]COSTO ADMINISTRACIÓN PÚBLICA'!$A$6:$F$82,5,0) -> 10.67021863
A49: DGRCIC-006-01-04 | B49: Reconocimiento voluntario de hijo/a | C49: 0 | D49: 0 | E49: 8.461259769 | F49: 8.461259769 | L49: =VLOOKUP(A49,'[1]COSTO ADMINISTRACIÓN PÚBLICA'!$A$6:$C$82,3,0) -> 0 | M49: =VLOOKUP(A49,'[1]COSTO ADMINISTRACIÓN PÚBLICA'!$A$6:$F$82,5,0) -> 8.461259769
A50: DGRCIC-003-01-03 | B50: Solemnización de matrimonio en sede de registro civil si uno o los dos contrayentes son divorciados y tiene hijos menores de edad | C50: 0.2486111111 | D50: 0.6215277778 | E50: 11.77469807 | F50: 12.39622585 | L50: =VLOOKUP(A50,'[1]COSTO ADMINISTRACIÓN PÚBLICA'!$A$6:$C$82,3,0) -> 0.2486111111 | M50: =VLOOKUP(A50,'[1]COSTO ADMINISTRACIÓN PÚBLICA'!$A$6:$F$82,5,0) -> 11.77469807
A51: DGRCIC-002-01-02 | B51: Inscripción ordinaria y extraordinaria de nacimiento sin atención médica | C51: 0.165 | D51: 0.4125 | E51: 8.461259769 | F51: 8.873759769 | L51: =VLOOKUP(A51,'[1]COSTO ADMINISTRACIÓN PÚBLICA'!$A$6:$C$82,3,0) -> 0.165 | M51: =VLOOKUP(A51,'[1]COSTO ADMINISTRACIÓN PÚBLICA'!$A$6:$F$82,5,0) -> 8.461259769
A52: DGRCIC-005-01-04 | B52: Inscripción extraordinaria de defunción sin atención médica | C52: 0.2036111111 | D52: 0.5090277778 | E52: 10.67021863 | F52: 11.17924641 | L52: =VLOOKUP(A52,'[1]COSTO ADMINISTRACIÓN PÚBLICA'!$A$6:$C$82,3,0) -> 0.2036111111 | M52: =VLOOKUP(A52,'[1]COSTO ADMINISTRACIÓN PÚBLICA'!$A$6:$F$82,5,0) -> 10.67021863
A53: DGRCIC-006-04-05 | B53: Reconocimiento de Hijo/a por sentencia ejecutoriada o Acta Notarial | C53: 0.2486111111 | D53: 0.6215277778 | E53: 13.43141722 | F53: 14.05294499 | L53: =VLOOKUP(A53,'[1]COSTO ADMINISTRACIÓN PÚBLICA'!$A$6:$C$82,3,0) -> 0.2486111111 | M53: =VLOOKUP(A53,'[1]COSTO ADMINISTRACIÓN PÚBLICA'!$A$6:$F$82,5,0) -> 13.43141722
A54: DGRCIC-005-01-08 | B54: Inscripción de defunción por desastres, conflictos armados y epidemias | C54: 0.2036111111 | D54: 0.5090277778 | E54: 0 | F54: 0.5090277778 | L54: =VLOOKUP(A54,'[1]COSTO ADMINISTRACIÓN PÚBLICA'!$A$6:$C$82,3,0) -> 0.2036111111 | M54: =VLOOKUP(A54,'[1]COSTO ADMINISTRACIÓN PÚBLICA'!$A$6:$F$82,5,0) -> 0
A55: DGRCIC-003-01-15 | B55: Solemnización de matrimonio en sede de registro civil si los contrayentes son solteros y no tienen hijos menores de edad | C55: 0.2486111111 | D55: 0.6215277778 | E55: 11.59703404 | F55: 12.21856182 | L55: =VLOOKUP(A55,'[1]COSTO ADMINISTRACIÓN PÚBLICA'!$A$6:$C$82,3,0) -> 0.2486111111 | M55: =VLOOKUP(A55,'[1]COSTO ADMINISTRACIÓN PÚBLICA'!$A$6:$F$82,5,0) -> 11.59703404
A56: DGRCIC-006-04-01 | B56: Rectificación a la información registral por sentencia ejecutoriada | C56: 0.2486111111 | D56: 0.6215277778 | E56: 13.43141722 | F56: 14.05294499 | L56: =VLOOKUP(A56,'[1]COSTO ADMINISTRACIÓN PÚBLICA'!$A$6:$C$82,3,0) -> 0.2486111111 | M56: =VLOOKUP(A56,'[1]COSTO ADMINISTRACIÓN PÚBLICA'!$A$6:$F$82,5,0) -> 13.43141722
A57: DGRCIC-001-05-01 | B57: Emisión de Cédula de Identidad Por Primera Vez o Renovación Para Ecuatorianos a Través de Brigada Móvil | C57: 0.1313888889 | D57: 0.3284722222 | E57: 2.85 | F57: 3.178472222 | L57: =VLOOKUP(A57,'[1]COSTO ADMINISTRACIÓN PÚBLICA'!$A$6:$C$82,3,0) -> 0.1313888889 | M57: =VLOOKUP(A57,'[1]COSTO ADMINISTRACIÓN PÚBLICA'!$A$6:$F$82,5,0) -> 2.85
A58: DGRCIC-002-06-01 | B58: Inscripción ordinaria y extraordinaria de nacimiento con atención médica en consulados | C58: 0.165 | D58: 0.4125 | E58: 11.22245835 | F58: 11.63495835 | L58: =VLOOKUP(A58,'[1]COSTO ADMINISTRACIÓN PÚBLICA'!$A$6:$C$82,3,0) -> 0.165 | M58: =VLOOKUP(A58,'[1]COSTO ADMINISTRACIÓN PÚBLICA'!$A$6:$F$82,5,0) -> 11.22245835
A59: DGRCIC-005-05-03 | B59: Inscripción de defunción extraordinaria con atención médica | C59: 0.2036111111 | D59: 0.5090277778 | E59: 10.67021863 | F59: 11.17924641 | L59: =VLOOKUP(A59,'[1]COSTO ADMINISTRACIÓN PÚBLICA'!$A$6:$C$82,3,0) -> 0.2036111111 | M59: =VLOOKUP(A59,'[1]COSTO ADMINISTRACIÓN PÚBLICA'!$A$6:$F$82,5,0) -> 10.67021863
A60: DGRCIC-005-01-01 | B60: Inscripción extraordinaria de defunción con atención médica | C60: 0.2036111111 | D60: 0.5090277778 | E60: 10.67021863 | F60: 11.17924641 | L60: =VLOOKUP(A60,'[1]COSTO ADMINISTRACIÓN PÚBLICA'!$A$6:$C$82,3,0) -> 0.2036111111 | M60: =VLOOKUP(A60,'[1]COSTO ADMINISTRACIÓN PÚBLICA'!$A$6:$F$82,5,0) -> 10.67021863
A61: DGRCIC-010-01-03 | B61: Emisión de pasaporte ordinario por primera vez menores de 18 años, en caso de ausencia de uno o de los dos padres | C61: 0.1489290706 | D61: 0.3723226765 | E61: 17.09564294 | F61: 17.46796562 | L61: =VLOOKUP(A61,'[1]COSTO ADMINISTRACIÓN PÚBLICA'!$A$6:$C$82,3,0) -> 0.1489290706 | M61: =VLOOKUP(A61,'[1]COSTO ADMINISTRACIÓN PÚBLICA'!$A$6:$F$82,5,0) -> 17.09564294
A62: DGRCIC-010-01-08 | B62: Emisión de pasaporte ordinario por renovación para menores de 18 años por pérdida o robo | C62: 0.1489290706 | D62: 0.3723226765 | E62: 17.09564294 | F62: 17.46796562 | L62: =VLOOKUP(A62,'[1]COSTO ADMINISTRACIÓN PÚBLICA'!$A$6:$C$82,3,0) -> 0.1489290706 | M62: =VLOOKUP(A62,'[1]COSTO ADMINISTRACIÓN PÚBLICA'!$A$6:$F$82,5,0) -> 17.09564294
A63: DGRCIC-009-01-02 | B63: Dispositivo Token | C63: 0.208747493 | D63: 0.5218687325 | E63: 34.75797892 | F63: 35.27984765 | L63: =VLOOKUP(A63,'[1]COSTO ADMINISTRACIÓN PÚBLICA'!$A$6:$C$82,3,0) -> 0.208747493 | M63: =VLOOKUP(A63,'[1]COSTO ADMINISTRACIÓN PÚBLICA'!$A$6:$F$82,5,0) -> 34.75797892
A64: DGRCIC-001-02-04 | B64: Emisión de Cédula de Identidad Por Primera Vez o Renovación Para Extranjeros Con Residencia Temporal o Residencia Permanente | C64: 0.1313888889 | D64: 0.3284722222 | E64: 11.31125977 | F64: 11.63973199 | L64: =VLOOKUP(A64,'[1]COSTO ADMINISTRACIÓN PÚBLICA'!$A$6:$C$82,3,0) -> 0.1313888889 | M64: =VLOOKUP(A64,'[1]COSTO ADMINISTRACIÓN PÚBLICA'!$A$6:$F$82,5,0) -> 11.31125977
A65: DGRCIC-005-01-03 | B65: Inscripción ordinaria de defunción sin atención médica | C65: 0.2036111111 | D65: 0.5090277778 | E65: 10.67021863 | F65: 11.17924641 | L65: =VLOOKUP(A65,'[1]COSTO ADMINISTRACIÓN PÚBLICA'!$A$6:$C$82,3,0) -> 0.2036111111 | M65: =VLOOKUP(A65,'[1]COSTO ADMINISTRACIÓN PÚBLICA'!$A$6:$F$82,5,0) -> 10.67021863
A66: DGRCIC-013-01-01 | B66: Inscripción ordinaria y extraordinaria de Nacimiento y Defunción. | C66: 0.2036111111 | D66: 0.5090277778 | E66: 10.67021863 | F66: 11.17924641 | L66: =VLOOKUP(A66,'[1]COSTO ADMINISTRACIÓN PÚBLICA'!$A$6:$C$82,3,0) -> 0.2036111111 | M66: =VLOOKUP(A66,'[1]COSTO ADMINISTRACIÓN PÚBLICA'!$A$6:$F$82,5,0) -> 10.67021863
A67: DGRCIC-009-01-01 | B67: Emisión de Certificado Digital de Firma Electrónica en Token | C67: 0.208747493 | D67: 0.5218687325 | E67: 20.65797892 | F67: 21.17984765 | L67: =VLOOKUP(A67,'[1]COSTO ADMINISTRACIÓN PÚBLICA'!$A$6:$C$82,3,0) -> 0.208747493 | M67: =VLOOKUP(A67,'[1]COSTO ADMINISTRACIÓN PÚBLICA'!$A$6:$F$82,5,0) -> 20.65797892
A68: DGRCIC-005-05-01 | B68: Inscripción de defunción ordinaria con atención médica | C68: 0.2036111111 | D68: 0.5090277778 | E68: 10.67021863 | F68: 11.17924641 | L68: =VLOOKUP(A68,'[1]COSTO ADMINISTRACIÓN PÚBLICA'!$A$6:$C$82,3,0) -> 0.2036111111 | M68: =VLOOKUP(A68,'[1]COSTO ADMINISTRACIÓN PÚBLICA'!$A$6:$F$82,5,0) -> 10.67021863
A69: DGRCIC-005-01-02 | B69: Inscripción ordinaria de defunción con atención médica | C69: 0.2036111111 | D69: 0.5090277778 | E69: 10.67021863 | F69: 11.17924641 | L69: =VLOOKUP(A69,'[1]COSTO ADMINISTRACIÓN PÚBLICA'!$A$6:$C$82,3,0) -> 0.2036111111 | M69: =VLOOKUP(A69,'[1]COSTO ADMINISTRACIÓN PÚBLICA'!$A$6:$F$82,5,0) -> 10.67021863
A70: DGRCIC-006-01-05 | B70: Rectificación de datos registrales en Actas Registrales (Resolución Administrativa) | C70: 0.2486111111 | D70: 0.6215277778 | E70: 13.43141722 | F70: 14.05294499 | L70: =VLOOKUP(A70,'[1]COSTO ADMINISTRACIÓN PÚBLICA'!$A$6:$C$82,3,0) -> 0.2486111111 | M70: =VLOOKUP(A70,'[1]COSTO ADMINISTRACIÓN PÚBLICA'!$A$6:$F$82,5,0) -> 13.43141722
A71: DGRCIC-010-01-07 | B71: Emisión de Pasaporte Ordinario por Pérdida o Robo | C71: 0.1489290706 | D71: 0.3723226765 | E71: 17.09564294 | F71: 17.46796562 | L71: =VLOOKUP(A71,'[1]COSTO ADMINISTRACIÓN PÚBLICA'!$A$6:$C$82,3,0) -> 0.1489290706 | M71: =VLOOKUP(A71,'[1]COSTO ADMINISTRACIÓN PÚBLICA'!$A$6:$F$82,5,0) -> 17.09564294
A72: DGRCIC-007-01-08 | B72: Emisión de Certificado de Identidad y Estado Civil en línea | C72: 0.07300682261 | D72: =C72*$I$4/160 -> 0.1825170565 | E72: 0 | F72: =D72+E72 -> 0.1825170565 | L72: =VLOOKUP(A72,'[1]COSTO ADMINISTRACIÓN PÚBLICA'!$A$6:$C$82,3,0) -> 0.07300682261 | M72: =VLOOKUP(A72,'[1]COSTO ADMINISTRACIÓN PÚBLICA'!$A$6:$F$82,5,0) -> 0
A73: DGRCIC-009-01-03 | B73: Emisión de Certificado Digital de Firma Electrónica en Archivo | C73: 0.208747493 | D73: 0.5218687325 | E73: 20.65797892 | F73: 21.17984765 | L73: =VLOOKUP(A73,'[1]COSTO ADMINISTRACIÓN PÚBLICA'!$A$6:$C$82,3,0) -> 0.208747493 | M73: =VLOOKUP(A73,'[1]COSTO ADMINISTRACIÓN PÚBLICA'!$A$6:$F$82,5,0) -> 20.65797892
A74: DGRCIC-010-01-01 | B74: Emisión de Pasaporte Ordinario Por Primera Vez | C74: 0.1489290706 | D74: 0.3723226765 | E74: 17.09564294 | F74: 17.46796562 | L74: =VLOOKUP(A74,'[1]COSTO ADMINISTRACIÓN PÚBLICA'!$A$6:$C$82,3,0) -> 0.1489290706 | M74: =VLOOKUP(A74,'[1]COSTO ADMINISTRACIÓN PÚBLICA'!$A$6:$F$82,5,0) -> 17.09564294
A75: DGRCIC-010-01-04 | B75: Emisión de Pasaporte Ordinario por Renovación | C75: 0.1489290706 | D75: 0.3723226765 | E75: 17.09564294 | F75: 17.46796562 | L75: =VLOOKUP(A75,'[1]COSTO ADMINISTRACIÓN PÚBLICA'!$A$6:$C$82,3,0) -> 0.1489290706 | M75: =VLOOKUP(A75,'[1]COSTO ADMINISTRACIÓN PÚBLICA'!$A$6:$F$82,5,0) -> 17.09564294
A76: DGRCIC-007-02-02 | B76: Convalidación de Documentos Registrales | C76: 0.07300682261 | D76: 0.1825170565 | E76: 0 | F76: 0.1825170565 | L76: =VLOOKUP(A76,'[1]COSTO ADMINISTRACIÓN PÚBLICA'!$A$6:$C$82,3,0) -> 0.07300682261 | M76: =VLOOKUP(A76,'[1]COSTO ADMINISTRACIÓN PÚBLICA'!$A$6:$F$82,5,0) -> 0
A77: DGRCIC-007-01-07 | B77: Emisión de Certificado de Datos Registrales: Nacimiento, Matrimonio y Unión de Hecho en Línea | C77: 0.2486111111 | D77: 0.6215277778 | E77: 0 | F77: 0.6215277778 | L77: =VLOOKUP(A77,'[1]COSTO ADMINISTRACIÓN PÚBLICA'!$A$6:$C$82,3,0) -> 0.2486111111 | M77: =VLOOKUP(A77,'[1]COSTO ADMINISTRACIÓN PÚBLICA'!$A$6:$F$82,5,0) -> 0
A78: DGRCIC-007-01-04 | B78: Emisión de certificados de Identidad y Estado Civil | C78: 0 | D78: 0 | E78: 3.491102322 | F78: 3.491102322 | L78: =VLOOKUP(A78,'[1]COSTO ADMINISTRACIÓN PÚBLICA'!$A$6:$C$82,3,0) -> 0 | M78: =VLOOKUP(A78,'[1]COSTO ADMINISTRACIÓN PÚBLICA'!$A$6:$F$82,5,0) -> 3.491102322
A79: DGRCIC-002-01-01 | B79: Inscripción ordinaria y extraordinaria de nacimiento con atención médica | C79: 0.165 | D79: 0.4125 | E79: 8.461259769 | F79: 8.873759769 | L79: =VLOOKUP(A79,'[1]COSTO ADMINISTRACIÓN PÚBLICA'!$A$6:$C$82,3,0) -> 0.165 | M79: =VLOOKUP(A79,'[1]COSTO ADMINISTRACIÓN PÚBLICA'!$A$6:$F$82,5,0) -> 8.461259769
A80: DGRCIC-007-01-06 | B80: Emisión de Copia del Acta Registral: Nacimiento, Matrimonio, Defunción, Unión de Hecho y Registro de Género / Cambio de Nombre | C80: 0.2036111111 | D80: 0.5090277778 | E80: 6.252300904 | F80: 6.761328681 | L80: =VLOOKUP(A80,'[1]COSTO ADMINISTRACIÓN PÚBLICA'!$A$6:$C$82,3,0) -> 0.2036111111 | M80: =VLOOKUP(A80,'[1]COSTO ADMINISTRACIÓN PÚBLICA'!$A$6:$F$82,5,0) -> 6.252300904
A81: DGRCIC-001-01-01 | B81: Emisión de Cédula de Identidad Por Primera Vez o Renovación Para Ecuatorianos | C81: 0.1313888889 | D81: 0.3284722222 | E81: 11.31125977 | F81: 11.63973199 | L81: =VLOOKUP(A81,'[1]COSTO ADMINISTRACIÓN PÚBLICA'!$A$6:$C$82,3,0) -> 0.1313888889 | M81: =VLOOKUP(A81,'[1]COSTO ADMINISTRACIÓN PÚBLICA'!$A$6:$F$82,5,0) -> 11.31125977
A82: DGRCIC-007-01-01 | B82: Emisión de Certificados de Datos Registrales: Nacimiento, Matrimonio, Defunción y Unión de Hecho | C82: 0.2036111111 | D82: 0.5090277778 | E82: 3.491102322 | F82: =D82+E82 -> 4.0001301 | L82: =VLOOKUP(A82,'[1]COSTO ADMINISTRACIÓN PÚBLICA'!$A$6:$C$82,3,0) -> 0.2036111111 | M82: =VLOOKUP(A82,'[1]COSTO ADMINISTRACIÓN PÚBLICA'!$A$6:$F$82,5,0) -> 3.491102322

Sheet RESUMEN DE COSTOS AP
A1: PRIORIZACIÓN DE TRÁMITES ADMINISTRATIVOS
A2: COSTOS PARA LA ADMINISTRACIÓN PÚBLICA
A4: IDENTIFICADOR | B4: TRÁMITE | C4: COSTO PARA LA ADM. PÚBLICA | D4: PUNTUACIÓN
A5: DGRCIC-012-02-01 | B5: Registro de género en Consulados | C5: 0 | D5: 0
A6: DGRCIC-008-01-02 | B6: Sistema Nacional de Identificación Ciudadana - Consulta de Cédula de Papel | C6: 0 | D6: 0
A7: DGRCIC-008-01-03 | B7: Validación Contra Base de Datos | C7: 0 | D7: 0
A8: DGRCIC-008-01-01 | B8: Web service - Demográfico | C8: 0 | D8: 0
A9: DGRCIC-007-02-02 | B9: Convalidación de Documentos Registrales | C9: 0.1825170565 | D9: 5
A10: DGRCIC-007-01-08 | B10: Emisión de Certificado de Identidad y Estado Civil en línea | C10: 0.1825170565 | D10: 5
A11: DGRCIC-002-01-08 | B11: Inscripción de hijos de progenitoras del mismo sexo por reproducción asistida | C11: 0.4125 | D11: 5
A12: DGRCIC-002-02-02 | B12: Inscripción de nacimiento por adopción en el exterior | C12: 0.4125 | D12: 5
A13: DGRCIC-002-04-03 | B13: Registro de naturalización de hijos de padres naturalizados | C13: 0.4125 | D13: 5
A14: DGRCIC-002-04-01 | B14: Registro de naturalización por carta de naturalización | C14: 0.4125 | D14: 5
A15: DGRCIC-005-01-08 | B15: Inscripción de defunción por desastres, conflictos armados y epidemias | C15: 0.5090277778 | D15: 5
A16: DGRCIC-007-01-07 | B16: Emisión de Certificado de Datos Registrales: Nacimiento, Matrimonio y Unión de Hecho en Línea | C16: 0.6215277778 | D16: 5
A17: DGRCIC-001-05-01 | B17: Emisión de Cédula de Identidad Por Primera Vez o Renovación Para Ecuatorianos a Través de Brigada Móvil | C17: 3.178472222 | D17: 5
A18: DGRCIC-007-01-04 | B18: Emisión de certificados de Identidad y Estado Civil | C18: 3.491102322 | D18: 5
A19: DGRCIC-007-01-01 | B19: Emisión de Certificados de Datos Registrales: Nacimiento, Matrimonio, Defunción y Unión de Hecho | C19: 4.0001301 | D19: 5
A20: DGRCIC-001-06-01 | B20: Emisión de duplicado de cédula de identidad | C20: 6.669574544 | D20: 5
A21: DGRCIC-007-01-06 | B21: Emisión de Copia del Acta Registral: Nacimiento, Matrimonio, Defunción, Unión de Hecho y Registro de Género / Cambio de Nombre | C21: 6.761328681 | D21: 5
A22: DGRCIC-006-01-04 | B22: Reconocimiento voluntario de hijo/a | C22: 8.461259769 | D22: 5
A23: DGRCIC-002-01-07 | B23: Inscripción de nacimiento por adopción | C23: 8.873759769 | D23: 5
A24: DGRCIC-002-01-06 | B24: Inscripción de nacimiento por informe de expósito | C24: 8.873759769 | D24: 5
A25: DGRCIC-002-01-05 | B25: Inscripción extraordinaria de nacimiento (mayor de 18 años) por orden judicial (inscripción de sentencia) | C25: 8.873759769 | D25: 5
A26: DGRCIC-002-01-01 | B26: Inscripción ordinaria y extraordinaria de nacimiento con atención médica | C26: 8.873759769 | D26: 5
A27: DGRCIC-002-01-02 | B27: Inscripción ordinaria y extraordinaria de nacimiento sin atención médica | C27: 8.873759769 | D27: 5
A28: DGRCIC-002-04-02 | B28: Registro de nacimiento por servicios relevantes | C28: 8.873759769 | D28: 5
A29: DGRCIC-005-01-04 | B29: Inscripción extraordinaria de defunción sin atención médica | C29: 11.17924641 | D29: 5
A30: DGRCIC-005-05-03 | B30: Inscripción de defunción extraordinaria con atención médica | C30: 11.17924641 | D30: 5
A31: DGRCIC-005-01-06 | B31: Inscripción de defunción fetal | C31: 11.17924641 | D31: 5
A32: DGRCIC-005-05-01 | B32: Inscripción de defunción ordinaria con atención médica | C32: 11.17924641 | D32: 5
A33: DGRCIC-005-01-05 | B33: Inscripción de defunción por muerte presunta mediante orden judicial (Inscripción de sentencia) | C33: 11.17924641 | D33: 5
A34: DGRCIC-005-01-09 | B34: Inscripción de defunción por orden judicial (Inscripción de sentencia) | C34: 11.17924641 | D34: 5
A35: DGRCIC-005-01-01 | B35: Inscripción extraordinaria de defunción con atención médica | C35: 11.17924641 | D35: 5
A36: DGRCIC-005-01-02 | B36: Inscripción ordinaria de defunción con atención médica | C36: 11.17924641 | D36: 5
A37: DGRCIC-005-01-03 | B37: Inscripción ordinaria de defunción sin atención médica | C37: 11.17924641 | D37: 5
A38: DGRCIC-013-01-01 | B38: Inscripción ordinaria y extraordinaria de Nacimiento y Defunción. | C38: 11.17924641 | D38: 5
A39: DGRCIC-002-06-01 | B39: Inscripción ordinaria y extraordinaria de nacimiento con atención médica en consulados | C39: 11.63495835 | D39: 10
A40: DGRCIC-002-07-01 | B40: Registro de nacimiento en Consulados | C40: 11.63495835 | D40: 10
A41: DGRCIC-002-02-01 | B41: Registro de nacimiento ocurrido en el exterior (reconocimiento de nacionalidad) | C41: 11.63495835 | D41: 10
A42: DGRCIC-001-02-01 | B42: Emisión de Cédula de Identidad Por Primera Vez Doble Nacionalidad | C42: 11.63973199 | D42: 10
A43: DGRCIC-001-02-02 | B43: Emisión de Cédula de Identidad Por Primera Vez Naturalización | C43: 11.63973199 | D43: 10
A44: DGRCIC-001-01-01 | B44: Emisión de Cédula de Identidad Por Primera Vez o Renovación Para Ecuatorianos | C44: 11.63973199 | D44: 10
A45: DGRCIC-001-02-04 | B45: Emisión de Cédula de Identidad Por Primera Vez o Renovación Para Extranjeros Con Residencia Temporal o Residencia Permanente | C45: 11.63973199 | D45: 10
A46: DGRCIC-001-02-06 | B46: Emisión de cédula de identidad por primera vez para extrajeros con protección internacional | C46: 11.63973199 | D46: 10
A47: DGRCIC-001-04-01 | B47: Emisión de Cédula de Identidad Por Registro de Género | C47: 11.63973199 | D47: 10
A48: DGRCIC-005-02-02 | B48: Inscripción extraordinaria de defunción ocurrida en el exterior (en frontera) | C48: 11.73148613 | D48: 10
A49: DGRCIC-005-05-04 | B49: Registro de defunción en Consulados | C49: 11.73148613 | D49: 10
A50: DGRCIC-005-02-03 | B50: Registro de defunción ocurrido en el exterior | C50: 11.73148613 | D50: 10
A51: DGRCIC-005-02-01 | B51: Inscripción ordinaria de defunción ocurrida en el exterior (en frontera) | C51: 11.73148613 | D51: 10
A52: DGRCIC-006-04-04 | B52: Registro de capitulaciones matrimoniales | C52: 11.77469807 | D52: 10
A53: DGRCIC-003-02-01 | B53: Registro de matrimonio entre uno o dos ecuatorianos realizado en el exterior | C53: 11.84398613 | D53: 10
A54: DGRCIC-003-05-01 | B54: Registro de matrimonio en Consulados | C54: 11.84398613 | D54: 10
A55: DGRCIC-003-01-15 | B55: Solemnización de matrimonio en sede de registro civil si los contrayentes son solteros y no tienen hijos menores de edad | C55: 12.21856182 | D55: 10
A56: DGRCIC-011-01-01 | B56: Registro de unión de hecho | C56: 12.3959223 | D56: 10
A57: DGRCIC-003-01-18 | B57: Inscripción de matrimonio por orden judicial (Inscripción de sentencia) | C57: 12.39622585 | D57: 20
A58: DGRCIC-006-04-07 | B58: Registro de separación de la sociedad de bienes en la unión de hecho | C58: 12.39622585 | D58: 20
A59: DGRCIC-003-01-07 | B59: Solemnización de matrimonio en sede de registro civil si uno o ambos contrayentes son extranjeros con condición migratoria de residencia temporal | C59: 12.39622585 | D59: 20
A60: DGRCIC-003-01-01 | B60: Solemnización de matrimonio en sede de registro civil si uno o los dos contrayentes solteros tiene hijo/s menor/es de edad | C60: 12.39622585 | D60: 20
A61: DGRCIC-003-01-03 | B61: Solemnización de matrimonio en sede de registro civil si uno o los dos contrayentes son divorciados y tiene hijos menores de edad | C61: 12.39622585 | D61: 20
A62: DGRCIC-003-01-04 | B62: Solemnización de matrimonio en sede de registro civil si uno o los dos contrayentes son viudos y tienen hijos menores de edad | C62: 12.39622585 | D62: 20
A63: DGRCIC-003-01-16 | B63: Solemnización de matrimonio fuera de sede de registro civil si los contrayentes son solteros y no tuvieren hijos menores de edad | C63: 12.39622585 | D63: 20
A64: DGRCIC-003-01-17 | B64: Solemnización de matrimonio fuera de sede de registro civil si uno o ambos contrayentes son extranjeros con condición migratoria de residencia temporal | C64: 12.39622585 | D64: 20
A65: DGRCIC-003-01-11 | B65: Solemnización de matrimonio fuera de sede de registro civil si uno o los dos contrayentes son viudos y tienen hijo/s menor/es de edad | C65: 12.39622585 | D65: 20
A66: DGRCIC-003-01-13 | B66: Solemnización de matrimonio fuera de sede de registro civil si uno de los contrayentes se encuentra privado de la libertad | C66: 12.39622585 | D66: 20
A67: DGRCIC-003-01-08 | B67: Solemnización de matrimonio fuera de sede de registro civil si uno o los dos contrayentes solteros tiene hijo/s menor/es de edad | C67: 12.39622585 | D67: 20
A68: DGRCIC-006-01-01 | B68: Cambio de nombre Mayores de 18 años | C68: 13.94044499 | D68: 20
A69: DGRCIC-006-01-03 | B69: Posesión notoria de apellidos | C69: 14.05294499 | D69: 20
A70: DGRCIC-006-04-05 | B70: Reconocimiento de Hijo/a por sentencia ejecutoriada o Acta Notarial | C70: 14.05294499 | D70: 20
A71: DGRCIC-006-04-01 | B71: Rectificación a la información registral por sentencia ejecutoriada | C71: 14.05294499 | D71: 20
A72: DGRCIC-006-01-05 | B72: Rectificación de datos registrales en Actas Registrales (Resolución Administrativa) | C72: 14.05294499 | D72: 20
A73: DGRCIC-010-01-07 | B73: Emisión de Pasaporte Ordinario por Pérdida o Robo | C73: 17.46796562 | D73: 20
A74: DGRCIC-010-01-03 | B74: Emisión de pasaporte ordinario por primera vez menores de 18 años, en caso de ausencia de uno o de los dos padres | C74: 17.46796562 | D74: 20
A75: DGRCIC-010-01-08 | B75: Emisión de pasaporte ordinario por renovación para menores de 18 años por pérdida o robo | C75: 17.46796562 | D75: 20
A76: DGRCIC-010-01-01 | B76: Emisión de Pasaporte Ordinario Por Primera Vez | C76: 17.46796562 | D76: 20
A77: DGRCIC-010-01-04 | B77: Emisión de Pasaporte Ordinario por Renovación | C77: 17.46796562 | D77: 20
A78: DGRCIC-012-01-01 | B78: Registro de género | C78: 18.0112156 | D78: 20
A79: DGRCIC-009-01-03 | B79: Emisión de Certificado Digital de Firma Electrónica en Archivo | C79: 21.17984765 | D79: 20
A80: DGRCIC-009-01-01 | B80: Emisión de Certificado Digital de Firma Electrónica en Token | C80: 21.17984765 | D80: 20
A81: DGRCIC-009-01-02 | B81: Dispositivo Token | C81: 35.27984765 | D81: 20

Sheet AUXILIAR COSTO ADMINISTRACIÓN
A2: TRÁMITE:
A3: NO. | B3: ACTIVIDAD | C3: TIEMPO (HORAS)
A4: 1
A5: 2
A6: 3
A7: 4
A8: 5
A9: 6
A10: 7
A11: 8
A12: 9
A13: 10
A14: 11
A15: 12
A16: 13
A17: 14
A18: 15
B20: SUMATORIA ACTIVIDADES | C20: =SUM(C4:C19) -> 0

Sheet TIEMPO DE RESPUESTA
A1: PRIORIZACIÓN DE TRÁMITES ADMINISTRATIVOS
A2: TIEMPO DE RESPUESTA
A4: IDENTIFICADOR | B4: TRÁMITE | C4: TIEMPO RESPUESTA (horas laborables) | D4: PUNTUACIÓN
A5: DGRCIC-002-01-08 | B5: Inscripción de hijos de progenitoras del mismo sexo por reproducción asistida | C5: 0.6263888889 | D5: 0 | J5: =+VLOOKUP(A5,'[1]TIEMPO DE RESPUESTA'!$A$5:$C$81,3,0) -> 0.6263888889
A6: DGRCIC-002-02-02 | B6: Inscripción de nacimiento por adopción en el exterior | C6: 0.6263888889 | D6: 0 | J6: =+VLOOKUP(A6,'[1]TIEMPO DE RESPUESTA'!$A$5:$C$81,3,0) -> 0.6263888889
A7: DGRCIC-012-02-01 | B7: Registro de género en Consulados | C7: 1.3 | D7: 0 | J7: =+VLOOKUP(A7,'[1]TIEMPO DE RESPUESTA'!$A$5:$C$81,3,0) -> 1.3
A8: DGRCIC-002-04-03 | B8: Registro de naturalización de hijos de padres naturalizados | C8: 0.6263888889 | D8: 0 | J8: =+VLOOKUP(A8,'[1]TIEMPO DE RESPUESTA'!$A$5:$C$81,3,0) -> 0.6263888889
A9: DGRCIC-002-04-01 | B9: Registro de naturalización por carta de naturalización | C9: 0.6263888889 | D9: 0 | J9: =+VLOOKUP(A9,'[1]TIEMPO DE RESPUESTA'!$A$5:$C$81,3,0) -> 0.6263888889
A10: DGRCIC-008-01-03 | B10: Validación Contra Base de Datos | C10: 0 | J10: =+VLOOKUP(A10,'[1]TIEMPO DE RESPUESTA'!$A$5:$C$81,3,0) -> 0
A11: DGRCIC-003-01-13 | B11: Solemnización de matrimonio fuera de sede de registro civil si uno de los contrayentes se encuentra privado de la libertad | C11: 0.7566090147 | J11: =+VLOOKUP(A11,'[1]TIEMPO DE RESPUESTA'!$A$5:$C$81,3,0) -> 0.7566090147
A12: DGRCIC-008-01-01 | B12: Web service - Demográfico | C12: 0 | J12: =+VLOOKUP(A12,'[1]TIEMPO DE RESPUESTA'!$A$5:$C$81,3,0) -> 0
A13: DGRCIC-003-01-11 | B13: Solemnización de matrimonio fuera de sede de registro civil si uno o los dos contrayentes son viudos y tienen hijo/s menor/es de edad | C13: 0.7566090147 | J13: =+VLOOKUP(A13,'[1]TIEMPO DE RESPUESTA'!$A$5:$C$81,3,0) -> 0.7566090147
A14: DGRCIC-002-01-07 | B14: Inscripción de nacimiento por adopción | C14: 0.6263888889 | J14: =+VLOOKUP(A14,'[1]TIEMPO DE RESPUESTA'!$A$5:$C$81,3,0) -> 0.6263888889
A15: DGRCIC-003-01-17 | B15: Solemnización de matrimonio fuera de sede de registro civil si uno o ambos contrayentes son extranjeros con condición migratoria de residencia temporal | C15: 0.7566090147 | J15: =+VLOOKUP(A15,'[1]TIEMPO DE RESPUESTA'!$A$5:$C$81,3,0) -> 0.7566090147
A16: DGRCIC-008-01-02 | B16: Sistema Nacional de Identificación Ciudadana - Consulta de Cédula de Papel | C16: 0 | J16: =+VLOOKUP(A16,'[1]TIEMPO DE RESPUESTA'!$A$5:$C$81,3,0) -> 0
A17: DGRCIC-002-01-06 | B17: Inscripción de nacimiento por informe de expósito | C17: 0.6263888889 | J17: =+VLOOKUP(A17,'[1]TIEMPO DE RESPUESTA'!$A$5:$C$81,3,0) -> 0.6263888889
A18: DGRCIC-012-01-01 | B18: Registro de género | C18: 1.296296296 | J18: =+VLOOKUP(A18,'[1]TIEMPO DE RESPUESTA'!$A$5:$C$81,3,0) -> 1.296296296
A19: DGRCIC-003-01-08 | B19: Solemnización de matrimonio fuera de sede de registro civil si uno o los dos contrayentes solteros tiene hijo/s menor/es de edad | C19: 0.7566090147 | J19: =+VLOOKUP(A19,'[1]TIEMPO DE RESPUESTA'!$A$5:$C$81,3,0) -> 0.7566090147
A20: DGRCIC-002-04-02 | B20: Registro de nacimiento por servicios relevantes | C20: 0.6263888889 | J20: =+VLOOKUP(A20,'[1]TIEMPO DE RESPUESTA'!$A$5:$C$81,3,0) -> 0.6263888889
A21: DGRCIC-003-01-16 | B21: Solemnización de matrimonio fuera de sede de registro civil si los contrayentes son solteros y no tuvieren hijos menores de edad | C21: 0.7566090147 | J21: =+VLOOKUP(A21,'[1]TIEMPO DE RESPUESTA'!$A$5:$C$81,3,0) -> 0.7566090147
A22: DGRCIC-005-02-02 | B22: Inscripción extraordinaria de defunción ocurrida en el exterior (en frontera) | C22: 0.6553618316 | J22: =+VLOOKUP(A22,'[1]TIEMPO DE RESPUESTA'!$A$5:$C$81,3,0) -> 0.6553618316
A23: DGRCIC-001-04-01 | B23: Emisión de Cédula de Identidad Por Registro de Género | C23: 1.142777778 | J23: =+VLOOKUP(A23,'[1]TIEMPO DE RESPUESTA'!$A$5:$C$81,3,0) -> 1.142777778
A24: DGRCIC-005-02-03 | B24: Registro de defunción ocurrido en el exterior | C24: 0.6553618316 | J24: =+VLOOKUP(A24,'[1]TIEMPO DE RESPUESTA'!$A$5:$C$81,3,0) -> 0.6553618316
A25: DGRCIC-002-02-01 | B25: Registro de nacimiento ocurrido en el exterior (reconocimiento de nacionalidad) | C25: 0.6263888889 | J25: =+VLOOKUP(A25,'[1]TIEMPO DE RESPUESTA'!$A$5:$C$81,3,0) -> 0.6263888889
A26: DGRCIC-003-02-01 | B26: Registro de matrimonio entre uno o dos ecuatorianos realizado en el exterior | C26: 0.7566090147 | J26: =+VLOOKUP(A26,'[1]TIEMPO DE RESPUESTA'!$A$5:$C$81,3,0) -> 0.7566090147
A27: DGRCIC-002-07-01 | B27: Registro de nacimiento en Consulados | C27: 0.6263888889 | J27: =+VLOOKUP(A27,'[1]TIEMPO DE RESPUESTA'!$A$5:$C$81,3,0) -> 0.6263888889
A28: DGRCIC-005-05-04 | B28: Registro de defunción en Consulados | C28: 0.6553618316 | J28: =+VLOOKUP(A28,'[1]TIEMPO DE RESPUESTA'!$A$5:$C$81,3,0) -> 0.6553618316
A29: DGRCIC-005-02-01 | B29: Inscripción ordinaria de defunción ocurrida en el exterior (en frontera) | C29: 0.6553618316 | J29: =+VLOOKUP(A29,'[1]TIEMPO DE RESPUESTA'!$A$5:$C$81,3,0) -> 0.6553618316
A30: DGRCIC-003-05-01 | B30: Registro de matrimonio en Consulados | C30: 0.7566090147 | J30: =+VLOOKUP(A30,'[1]TIEMPO DE RESPUESTA'!$A$5:$C$81,3,0) -> 0.7566090147
A31: DGRCIC-006-04-07 | B31: Registro de separación de la sociedad de bienes en la unión de hecho | C31: 0.9249512235 | J31: =+VLOOKUP(A31,'[1]TIEMPO DE RESPUESTA'!$A$5:$C$81,3,0) -> 0.9249512235
A32: DGRCIC-003-01-18 | B32: Inscripción de matrimonio por orden judicial (Inscripción de sentencia) | C32: 0.7566090147 | J32: =+VLOOKUP(A32,'[1]TIEMPO DE RESPUESTA'!$A$5:$C$81,3,0) -> 0.7566090147
A33: DGRCIC-001-02-01 | B33: Emisión de Cédula de Identidad Por Primera Vez Doble Nacionalidad | C33: 1.142777778 | J33: =+VLOOKUP(A33,'[1]TIEMPO DE RESPUESTA'!$A$5:$C$81,3,0) -> 1.142777778
A34: DGRCIC-001-02-02 | B34: Emisión de Cédula de Identidad Por Primera Vez Naturalización | C34: 1.142777778 | J34: =+VLOOKUP(A34,'[1]TIEMPO DE RESPUESTA'!$A$5:$C$81,3,0) -> 1.142777778
A35: DGRCIC-005-01-06 | B35: Inscripción de defunción fetal | C35: 0.6553618316 | J35: =+VLOOKUP(A35,'[1]TIEMPO DE RESPUESTA'!$A$5:$C$81,3,0) -> 0.6553618316
A36: DGRCIC-006-01-01 | B36: Cambio de nombre Mayores de 18 años | C36: 0.6647538678 | J36: =+VLOOKUP(A36,'[1]TIEMPO DE RESPUESTA'!$A$5:$C$81,3,0) -> 0.6647538678
A37: DGRCIC-001-02-06 | B37: Emisión de cédula de identidad por primera vez para extrajeros con protección internacional | C37: 1.142777778 | J37: =+VLOOKUP(A37,'[1]TIEMPO DE RESPUESTA'!$A$5:$C$81,3,0) -> 1.142777778
A38: DGRCIC-002-01-05 | B38: Inscripción extraordinaria de nacimiento (mayor de 18 años) por orden judicial (inscripción de sentencia) | C38: 0.6263888889 | J38: =+VLOOKUP(A38,'[1]TIEMPO DE RESPUESTA'!$A$5:$C$81,3,0) -> 0.6263888889
A39: DGRCIC-006-04-04 | B39: Registro de capitulaciones matrimoniales | C39: 0.7566090147 | J39: =+VLOOKUP(A39,'[1]TIEMPO DE RESPUESTA'!$A$5:$C$81,3,0) -> 0.7566090147
A40: DGRCIC-011-01-01 | B40: Registro de unión de hecho | C40: 0.7566090147 | J40: =+VLOOKUP(A40,'[1]TIEMPO DE RESPUESTA'!$A$5:$C$81,3,0) -> 0.7566090147
A41: DGRCIC-003-01-07 | B41: Solemnización de matrimonio en sede de registro civil si uno o ambos contrayentes son extranjeros con condición migratoria de residencia temporal | C41: 0.7566090147 | J41: =+VLOOKUP(A41,'[1]TIEMPO DE RESPUESTA'!$A$5:$C$81,3,0) -> 0.7566090147
A42: DGRCIC-005-01-05 | B42: Inscripción de defunción por muerte presunta mediante orden judicial (Inscripción de sentencia) | C42: 0.6553618316 | J42: =+VLOOKUP(A42,'[1]TIEMPO DE RESPUESTA'!$A$5:$C$81,3,0) -> 0.6553618316
A43: DGRCIC-003-01-04 | B43: Solemnización de matrimonio en sede de registro civil si uno o los dos contrayentes son viudos y tienen hijos menores de edad | C43: 0.7566090147 | J43: =+VLOOKUP(A43,'[1]TIEMPO DE RESPUESTA'!$A$5:$C$81,3,0) -> 0.7566090147
A44: DGRCIC-006-01-03 | B44: Posesión notoria de apellidos | C44: 0.9249512235 | J44: =+VLOOKUP(A44,'[1]TIEMPO DE RESPUESTA'!$A$5:$C$81,3,0) -> 0.9249512235
A45: DGRCIC-003-01-01 | B45: Solemnización de matrimonio en sede de registro civil si uno o los dos contrayentes solteros tiene hijo/s menor/es de edad | C45: 0.7566090147 | J45: =+VLOOKUP(A45,'[1]TIEMPO DE RESPUESTA'!$A$5:$C$81,3,0) -> 0.7566090147
A46: DGRCIC-001-06-01 | B46: Emisión de duplicado de cédula de identidad | C46: 0.25 | J46: =+VLOOKUP(A46,'[1]TIEMPO DE RESPUESTA'!$A$5:$C$81,3,0) -> 0.25
A47: DGRCIC-005-01-09 | B47: Inscripción de defunción por orden judicial (Inscripción de sentencia) | C47: 0.6553618316 | J47: =+VLOOKUP(A47,'[1]TIEMPO DE RESPUESTA'!$A$5:$C$81,3,0) -> 0.6553618316
A48: DGRCIC-006-01-04 | B48: Reconocimiento voluntario de hijo/a | C48: 0.6265083799 | J48: =+VLOOKUP(A48,'[1]TIEMPO DE RESPUESTA'!$A$5:$C$81,3,0) -> 0.6265083799
A49: DGRCIC-003-01-03 | B49: Solemnización de matrimonio en sede de registro civil si uno o los dos contrayentes son divorciados y tiene hijos menores de edad | C49: 0.7566090147 | J49: =+VLOOKUP(A49,'[1]TIEMPO DE RESPUESTA'!$A$5:$C$81,3,0) -> 0.7566090147
A50: DGRCIC-002-01-02 | B50: Inscripción ordinaria y extraordinaria de nacimiento sin atención médica | C50: 0.6263888889 | J50: =+VLOOKUP(A50,'[1]TIEMPO DE RESPUESTA'!$A$5:$C$81,3,0) -> 0.6263888889
A51: DGRCIC-005-01-04 | B51: Inscripción extraordinaria de defunción sin atención médica | C51: 0.6553618316 | J51: =+VLOOKUP(A51,'[1]TIEMPO DE RESPUESTA'!$A$5:$C$81,3,0) -> 0.6553618316
A52: DGRCIC-006-04-05 | B52: Reconocimiento de Hijo/a por sentencia ejecutoriada o Acta Notarial | C52: 0.9249512235 | J52: =+VLOOKUP(A52,'[1]TIEMPO DE RESPUESTA'!$A$5:$C$81,3,0) -> 0.9249512235
A53: DGRCIC-005-01-08 | B53: Inscripción de defunción por desastres, conflictos armados y epidemias | C53: 0.6553618316 | J53: =+VLOOKUP(A53,'[1]TIEMPO DE RESPUESTA'!$A$5:$C$81,3,0) -> 0.6553618316
A54: DGRCIC-003-01-15 | B54: Solemnización de matrimonio en sede de registro civil si los contrayentes son solteros y no tienen hijos menores de edad | C54: 0.7566090147 | J54: =+VLOOKUP(A54,'[1]TIEMPO DE RESPUESTA'!$A$5:$C$81,3,0) -> 0.7566090147
A55: DGRCIC-006-04-01 | B55: Rectificación a la información registral por sentencia ejecutoriada | C55: 0.9249512235 | J55: =+VLOOKUP(A55,'[1]TIEMPO DE RESPUESTA'!$A$5:$C$81,3,0) -> 0.9249512235
A56: DGRCIC-001-05-01 | B56: Emisión de Cédula de Identidad Por Primera Vez o Renovación Para Ecuatorianos a Través de Brigada Móvil | C56: 1.142777778 | J56: =+VLOOKUP(A56,'[1]TIEMPO DE RESPUESTA'!$A$5:$C$81,3,0) -> 1.142777778
A57: DGRCIC-002-06-01 | B57: Inscripción ordinaria y extraordinaria de nacimiento con atención médica en consulados | C57: 0.6263888889 | J57: =+VLOOKUP(A57,'[1]TIEMPO DE RESPUESTA'!$A$5:$C$81,3,0) -> 0.6263888889
A58: DGRCIC-005-05-03 | B58: Inscripción de defunción extraordinaria con atención médica | C58: 0.6553618316 | J58: =+VLOOKUP(A58,'[1]TIEMPO DE RESPUESTA'!$A$5:$C$81,3,0) -> 0.6553618316
A59: DGRCIC-005-01-01 | B59: Inscripción extraordinaria de defunción con atención médica | C59: 0.6553618316 | J59: =+VLOOKUP(A59,'[1]TIEMPO DE RESPUESTA'!$A$5:$C$81,3,0) -> 0.6553618316
A60: DGRCIC-010-01-03 | B60: Emisión de pasaporte ordinario por primera vez menores de 18 años, en caso de ausencia de uno o de los dos padres | C60: 1.035536338 | J60: =+VLOOKUP(A60,'[1]TIEMPO DE RESPUESTA'!$A$5:$C$81,3,0) -> 1.035536338
A61: DGRCIC-010-01-08 | B61: Emisión de pasaporte ordinario por renovación para menores de 18 años por pérdida o robo | C61: 1.035536338 | J61: =+VLOOKUP(A61,'[1]TIEMPO DE RESPUESTA'!$A$5:$C$81,3,0) -> 1.035536338
A62: DGRCIC-009-01-02 | B62: Dispositivo Token | C62: 0.7157190132 | J62: =+VLOOKUP(A62,'[1]TIEMPO DE RESPUESTA'!$A$5:$C$81,3,0) -> 0.7157190132
A63: DGRCIC-001-02-04 | B63: Emisión de Cédula de Identidad Por Primera Vez o Renovación Para Extranjeros Con Residencia Temporal o Residencia Permanente | C63: 1.142777778 | J63: =+VLOOKUP(A63,'[1]TIEMPO DE RESPUESTA'!$A$5:$C$81,3,0) -> 1.142777778
A64: DGRCIC-005-01-03 | B64: Inscripción ordinaria de defunción sin atención médica | C64: 0.6553618316 | J64: =+VLOOKUP(A64,'[1]TIEMPO DE RESPUESTA'!$A$5:$C$81,3,0) -> 0.6553618316
A65: DGRCIC-013-01-01 | B65: Inscripción ordinaria y extraordinaria de Nacimiento y Defunción. | C65: 0.6553618316 | J65: =+VLOOKUP(A65,'[1]TIEMPO DE RESPUESTA'!$A$5:$C$81,3,0) -> 0.6553618316
A66: DGRCIC-009-01-01 | B66: Emisión de Certificado Digital de Firma Electrónica en Token | C66: 0.7157190132 | J66: =+VLOOKUP(A66,'[1]TIEMPO DE RESPUESTA'!$A$5:$C$81,3,0) -> 0.7157190132
A67: DGRCIC-005-05-01 | B67: Inscripción de defunción ordinaria con atención médica | C67: 0.6553618316 | J67: =+VLOOKUP(A67,'[1]TIEMPO DE RESPUESTA'!$A$5:$C$81,3,0) -> 0.6553618316
A68: DGRCIC-005-01-02 | B68: Inscripción ordinaria de defunción con atención médica | C68: 0.6553618316 | J68: =+VLOOKUP(A68,'[1]TIEMPO DE RESPUESTA'!$A$5:$C$81,3,0) -> 0.6553618316
A69: DGRCIC-006-01-05 | B69: Rectificación de datos registrales en Actas Registrales (Resolución Administrativa) | C69: 0.9249512235 | J69: =+VLOOKUP(A69,'[1]TIEMPO DE RESPUESTA'!$A$5:$C$81,3,0) -> 0.9249512235
A70: DGRCIC-010-01-07 | B70: Emisión de Pasaporte Ordinario por Pérdida o Robo | C70: 1.035536338 | J70: =+VLOOKUP(A70,'[1]TIEMPO DE RESPUESTA'!$A$5:$C$81,3,0) -> 1.035536338
A71: DGRCIC-007-01-08 | B71: Emisión de Certificado de Identidad y Estado Civil en línea | C71: 0 | J71: =+VLOOKUP(A71,'[1]TIEMPO DE RESPUESTA'!$A$5:$C$81,3,0) -> 0
A72: DGRCIC-009-01-03 | B72: Emisión de Certificado Digital de Firma Electrónica en Archivo | C72: 0.7157190132 | J72: =+VLOOKUP(A72,'[1]TIEMPO DE RESPUESTA'!$A$5:$C$81,3,0) -> 0.7157190132
A73: DGRCIC-010-01-01 | B73: Emisión de Pasaporte Ordinario Por Primera Vez | C73: 1.035536338 | J73: =+VLOOKUP(A73,'[1]TIEMPO DE RESPUESTA'!$A$5:$C$81,3,0) -> 1.035536338
A74: DGRCIC-010-01-04 | B74: Emisión de Pasaporte Ordinario por Renovación | C74: 1.035536338 | J74: =+VLOOKUP(A74,'[1]TIEMPO DE RESPUESTA'!$A$5:$C$81,3,0) -> 1.035536338
A75: DGRCIC-007-02-02 | B75: Convalidación de Documentos Registrales | C75: 0.4788036062 | J75: =+VLOOKUP(A75,'[1]TIEMPO DE RESPUESTA'!$A$5:$C$81,3,0) -> 0.4788036062
A76: DGRCIC-007-01-07 | B76: Emisión de Certificado de Datos Registrales: Nacimiento, Matrimonio y Unión de Hecho en Línea | C76: 0 | J76: =+VLOOKUP(A76,'[1]TIEMPO DE RESPUESTA'!$A$5:$C$81,3,0) -> 0
A77: DGRCIC-007-01-04 | B77: Emisión de certificados de Identidad y Estado Civil | C77: 0.6553618316 | J77: =+VLOOKUP(A77,'[1]TIEMPO DE RESPUESTA'!$A$5:$C$81,3,0) -> 0.6553618316
A78: DGRCIC-002-01-01 | B78: Inscripción ordinaria y extraordinaria de nacimiento con atención médica | C78: 0.6263888889 | J78: =+VLOOKUP(A78,'[1]TIEMPO DE RESPUESTA'!$A$5:$C$81,3,0) -> 0.6263888889
A79: DGRCIC-007-01-06 | B79: Emisión de Copia del Acta Registral: Nacimiento, Matrimonio, Defunción, Unión de Hecho y Registro de Género / Cambio de Nombre | C79: 0.6553618316 | J79: =+VLOOKUP(A79,'[1]TIEMPO DE RESPUESTA'!$A$5:$C$81,3,0) -> 0.6553618316
A80: DGRCIC-001-01-01 | B80: Emisión de Cédula de Identidad Por Primera Vez o Renovación Para Ecuatorianos | C80: 1.142777778 | J80: =+VLOOKUP(A80,'[1]TIEMPO DE RESPUESTA'!$A$5:$C$81,3,0) -> 1.142777778
A81: DGRCIC-007-01-01 | B81: Emisión de Certificados de Datos Registrales: Nacimiento, Matrimonio, Defunción y Unión de Hecho | C81: 0.6553618316 | J81: =+VLOOKUP(A81,'[1]TIEMPO DE RESPUESTA'!$A$5:$C$81,3,0) -> 0.6553618316

Sheet CANAL ATENCIÓN
A1: PRIORIZACIÓN DE TRÁMITES ADMINISTRATIVOS
A2: CANAL DE ATENCIÓN
I3: Totalmente en Línea | L3: 0
A4: IDENTIFICADOR | B4: TRÁMITE | C4: CANAL ATENCIÓN | D4: PUNTUACIÓN | I4: No se completa totalmente en línea. | L4: 10
A5: DGRCIC-002-01-08 | B5: Inscripción de hijos de progenitoras del mismo sexo por reproducción asistida | C5: Presencial | D5: =IF(ISBLANK(C5),"",IF(C5="Totalmente en línea",0,IF(C5="Inicia en línea",6,10))) -> 10 | M5: =VLOOKUP(A5,'[1]CANAL ATENCIÓN'!$A$5:$D$81,3,0) -> Presencial
A6: DGRCIC-002-02-02 | B6: Inscripción de nacimiento por adopción en el exterior | C6: Inicia en Línea | D6: =IF(ISBLANK(C6),"",IF(C6="Totalmente en línea",0,IF(C6="Inicia en línea",6,10))) -> 6 | M6: =VLOOKUP(A6,'[1]CANAL ATENCIÓN'!$A$5:$D$81,3,0) -> Inicia en Línea
A7: DGRCIC-012-02-01 | B7: Registro de género en Consulados | C7: Presencial | D7: 10 | M7: =VLOOKUP(A7,'[1]CANAL ATENCIÓN'!$A$5:$D$81,3,0) -> Presencial
A8: DGRCIC-002-04-03 | B8: Registro de naturalización de hijos de padres naturalizados | C8: Presencial | D8: 10 | M8: =VLOOKUP(A8,'[1]CANAL ATENCIÓN'!$A$5:$D$81,3,0) -> Presencial
A9: DGRCIC-002-04-01 | B9: Registro de naturalización por carta de naturalización | C9: Presencial | D9: 10 | M9: =VLOOKUP(A9,'[1]CANAL ATENCIÓN'!$A$5:$D$81,3,0) -> Presencial
A10: DGRCIC-008-01-03 | B10: Validación Contra Base de Datos | C10: Totalmente en Línea | D10: 0 | M10: =VLOOKUP(A10,'[1]CANAL ATENCIÓN'!$A$5:$D$81,3,0) -> Totalmente en Línea
A11: DGRCIC-003-01-13 | B11: Solemnización de matrimonio fuera de sede de registro civil si uno de los contrayentes se encuentra privado de la libertad | C11: Inicia en Línea | D11: 6 | M11: =VLOOKUP(A11,'[1]CANAL ATENCIÓN'!$A$5:$D$81,3,0) -> Inicia en Línea
A12: DGRCIC-008-01-01 | B12: Web service - Demográfico | C12: Totalmente en Línea | D12: 0 | M12: =VLOOKUP(A12,'[1]CANAL ATENCIÓN'!$A$5:$D$81,3,0) -> Totalmente en Línea
A13: DGRCIC-003-01-11 | B13: Solemnización de matrimonio fuera de sede de registro civil si uno o los dos contrayentes son viudos y tienen hijo/s menor/es de edad | C13: Inicia en Línea | D13: 6 | M13: =VLOOKUP(A13,'[1]CANAL ATENCIÓN'!$A$5:$D$81,3,0) -> Inicia en Línea
A14: DGRCIC-002-01-07 | B14: Inscripción de nacimiento por adopción | C14: Presencial | D14: 10 | M14: =VLOOKUP(A14,'[1]CANAL ATENCIÓN'!$A$5:$D$81,3,0) -> Presencial
A15: DGRCIC-003-01-17 | B15: Solemnización de matrimonio fuera de sede de registro civil si uno o ambos contrayentes son extranjeros con condición migratoria de residencia temporal | C15: Inicia en Línea | D15: 6 | M15: =VLOOKUP(A15,'[1]CANAL ATENCIÓN'!$A$5:$D$81,3,0) -> Inicia en Línea
A16: DGRCIC-008-01-02 | B16: Sistema Nacional de Identificación Ciudadana - Consulta de Cédula de Papel | C16: Totalmente en Línea | D16: 0 | M16: =VLOOKUP(A16,'[1]CANAL ATENCIÓN'!$A$5:$D$81,3,0) -> Totalmente en Línea
A17: DGRCIC-002-01-06 | B17: Inscripción de nacimiento por informe de expósito | C17: Presencial | D17: 10 | M17: =VLOOKUP(A17,'[1]CANAL ATENCIÓN'!$A$5:$D$81,3,0) -> Presencial
A18: DGRCIC-012-01-01 | B18: Registro de género | C18: Presencial | D18: 10 | M18: =VLOOKUP(A18,'[1]CANAL ATENCIÓN'!$A$5:$D$81,3,0) -> Presencial
A19: DGRCIC-003-01-08 | B19: Solemnización de matrimonio fuera de sede de registro civil si uno o los dos contrayentes solteros tiene hijo/s menor/es de edad | C19: Inicia en Línea | D19: 6 | M19: =VLOOKUP(A19,'[1]CANAL ATENCIÓN'!$A$5:$D$81,3,0) -> Inicia en Línea
A20: DGRCIC-002-04-02 | B20: Registro de nacimiento por servicios relevantes | C20: Presencial | D20: 10 | M20: =VLOOKUP(A20,'[1]CANAL ATENCIÓN'!$A$5:$D$81,3,0) -> Presencial
A21: DGRCIC-003-01-16 | B21: Solemnización de matrimonio fuera de sede de registro civil si los contrayentes son solteros y no tuvieren hijos menores de edad | C21: Inicia en Línea | D21: 6 | M21: =VLOOKUP(A21,'[1]CANAL ATENCIÓN'!$A$5:$D$81,3,0) -> Inicia en Línea
A22: DGRCIC-005-02-02 | B22: Inscripción extraordinaria de defunción ocurrida en el exterior (en frontera) | C22: Inicia en Línea | D22: 6 | M22: =VLOOKUP(A22,'[1]CANAL ATENCIÓN'!$A$5:$D$81,3,0) -> Inicia en Línea
A23: DGRCIC-001-04-01 | B23: Emisión de Cédula de Identidad Por Registro de Género | C23: Presencial | D23: 10 | M23: =VLOOKUP(A23,'[1]CANAL ATENCIÓN'!$A$5:$D$81,3,0) -> Presencial
A24: DGRCIC-005-02-03 | B24: Registro de defunción ocurrido en el exterior | C24: Inicia en Línea | D24: 6 | M24: =VLOOKUP(A24,'[1]CANAL ATENCIÓN'!$A$5:$D$81,3,0) -> Inicia en Línea
A25: DGRCIC-002-02-01 | B25: Registro de nacimiento ocurrido en el exterior (reconocimiento de nacionalidad) | C25: Inicia en Línea | D25: 6 | M25: =VLOOKUP(A25,'[1]CANAL ATENCIÓN'!$A$5:$D$81,3,0) -> Inicia en Línea
A26: DGRCIC-003-02-01 | B26: Registro de matrimonio entre uno o dos ecuatorianos realizado en el exterior | C26: Inicia en Línea | D26: 6 | M26: =VLOOKUP(A26,'[1]CANAL ATENCIÓN'!$A$5:$D$81,3,0) -> Inicia en Línea
A27: DGRCIC-002-07-01 | B27: Registro de nacimiento en Consulados | C27: Presencial | D27: 10 | M27: =VLOOKUP(A27,'[1]CANAL ATENCIÓN'!$A$5:$D$81,3,0) -> Presencial
A28: DGRCIC-005-05-04 | B28: Registro de defunción en Consulados | C28: Presencial | D28: 10 | M28: =VLOOKUP(A28,'[1]CANAL ATENCIÓN'!$A$5:$D$81,3,0) -> Presencial
A29: DGRCIC-005-02-01 | B29: Inscripción ordinaria de defunción ocurrida en el exterior (en frontera) | C29: Inicia en Línea | D29: 6 | M29: =VLOOKUP(A29,'[1]CANAL ATENCIÓN'!$A$5:$D$81,3,0) -> Inicia en Línea
A30: DGRCIC-003-05-01 | B30: Registro de matrimonio en Consulados | C30: Presencial | D30: 10 | M30: =VLOOKUP(A30,'[1]CANAL ATENCIÓN'!$A$5:$D$81,3,0) -> Presencial
A31: DGRCIC-006-04-07 | B31: Registro de separación de la sociedad de bienes en la unión de hecho | C31: Presencial | D31: 10 | M31: =VLOOKUP(A31,'[1]CANAL ATENCIÓN'!$A$5:$D$81,3,0) -> Presencial
A32: DGRCIC-003-01-18 | B32: Inscripción de matrimonio por orden judicial (Inscripción de sentencia) | C32: Presencial | D32: 10 | M32: =VLOOKUP(A32,'[1]CANAL ATENCIÓN'!$A$5:$D$81,3,0) -> Presencial
A33: DGRCIC-001-02-01 | B33: Emisión de Cédula de Identidad Por Primera Vez Doble Nacionalidad | C33: Presencial | D33: 10 | M33: =VLOOKUP(A33,'[1]CANAL ATENCIÓN'!$A$5:$D$81,3,0) -> Presencial
A34: DGRCIC-001-02-02 | B34: Emisión de Cédula de Identidad Por Primera Vez Naturalización | C34: Presencial | D34: 10 | M34: =VLOOKUP(A34,'[1]CANAL ATENCIÓN'!$A$5:$D$81,3,0) -> Presencial
A35: DGRCIC-005-01-06 | B35: Inscripción de defunción fetal | C35: Presencial | D35: 10 | M35: =VLOOKUP(A35,'[1]CANAL ATENCIÓN'!$A$5:$D$81,3,0) -> Presencial
A36: DGRCIC-006-01-01 | B36: Cambio de nombre Mayores de 18 años | C36: Presencial | D36: 10 | M36: =VLOOKUP(A36,'[1]CANAL ATENCIÓN'!$A$5:$D$81,3,0) -> Presencial
A37: DGRCIC-001-02-06 | B37: Emisión de cédula de identidad por primera vez para extrajeros con protección internacional | C37: Presencial | D37: 10 | M37: =VLOOKUP(A37,'[1]CANAL ATENCIÓN'!$A$5:$D$81,3,0) -> Presencial
A38: DGRCIC-002-01-05 | B38: Inscripción extraordinaria de nacimiento (mayor de 18 años) por orden judicial (inscripción de sentencia) | C38: Presencial | D38: 10 | M38: =VLOOKUP(A38,'[1]CANAL ATENCIÓN'!$A$5:$D$81,3,0) -> Presencial
A39: DGRCIC-006-04-04 | B39: Registro de capitulaciones matrimoniales | C39: Presencial | D39: 10 | M39: =VLOOKUP(A39,'[1]CANAL ATENCIÓN'!$A$5:$D$81,3,0) -> Presencial
A40: DGRCIC-011-01-01 | B40: Registro de unión de hecho | C40: Presencial | D40: 10 | M40: =VLOOKUP(A40,'[1]CANAL ATENCIÓN'!$A$5:$D$81,3,0) -> Presencial
A41: DGRCIC-003-01-07 | B41: Solemnización de matrimonio en sede de registro civil si uno o ambos contrayentes son extranjeros con condición migratoria de residencia temporal | C41: Inicia en Línea | D41: 6 | M41: =VLOOKUP(A41,'[1]CANAL ATENCIÓN'!$A$5:$D$81,3,0) -> Inicia en Línea
A42: DGRCIC-005-01-05 | B42: Inscripción de defunción por muerte presunta mediante orden judicial (Inscripción de sentencia) | C42: Presencial | D42: 10 | M42: =VLOOKUP(A42,'[1]CANAL ATENCIÓN'!$A$5:$D$81,3,0) -> Presencial
A43: DGRCIC-003-01-04 | B43: Solemnización de matrimonio en sede de registro civil si uno o los dos contrayentes son viudos y tienen hijos menores de edad | C43: Inicia en Línea | D43: 6 | M43: =VLOOKUP(A43,'[1]CANAL ATENCIÓN'!$A$5:$D$81,3,0) -> Inicia en Línea
A44: DGRCIC-006-01-03 | B44: Posesión notoria de apellidos | C44: Presencial | D44: 10 | M44: =VLOOKUP(A44,'[1]CANAL ATENCIÓN'!$A$5:$D$81,3,0) -> Presencial
A45: DGRCIC-003-01-01 | B45: Solemnización de matrimonio en sede de registro civil si uno o los dos contrayentes solteros tiene hijo/s menor/es de edad | C45: Inicia en Línea | D45: 6 | M45: =VLOOKUP(A45,'[1]CANAL ATENCIÓN'!$A$5:$D$81,3,0) -> Inicia en Línea
A46: DGRCIC-001-06-01 | B46: Emisión de duplicado de cédula de identidad | C46: Totalmente en Línea | D46: 0 | M46: =VLOOKUP(A46,'[1]CANAL ATENCIÓN'!$A$5:$D$81,3,0) -> Totalmente en Línea
A47: DGRCIC-005-01-09 | B47: Inscripción de defunción por orden judicial (Inscripción de sentencia) | C47: Presencial | D47: 10 | M47: =VLOOKUP(A47,'[1]CANAL ATENCIÓN'!$A$5:$D$81,3,0) -> Presencial
A48: DGRCIC-006-01-04 | B48: Reconocimiento voluntario de hijo/a | C48: Presencial | D48: 10 | M48: =VLOOKUP(A48,'[1]CANAL ATENCIÓN'!$A$5:$D$81,3,0) -> Presencial
A49: DGRCIC-003-01-03 | B49: Solemnización de matrimonio en sede de registro civil si uno o los dos contrayentes son divorciados y tiene hijos menores de edad | C49: Inicia en Línea | D49: 6 | M49: =VLOOKUP(A49,'[1]CANAL ATENCIÓN'!$A$5:$D$81,3,0) -> Inicia en Línea
A50: DGRCIC-002-01-02 | B50: Inscripción ordinaria y extraordinaria de nacimiento sin atención médica | C50: Presencial | D50: 10 | M50: =VLOOKUP(A50,'[1]CANAL ATENCIÓN'!$A$5:$D$81,3,0) -> Presencial
A51: DGRCIC-005-01-04 | B51: Inscripción extraordinaria de defunción sin atención médica | C51: Presencial | D51: 10 | M51: =VLOOKUP(A51,'[1]CANAL ATENCIÓN'!$A$5:$D$81,3,0) -> Presencial
A52: DGRCIC-006-04-05 | B52: Reconocimiento de Hijo/a por sentencia ejecutoriada o Acta Notarial | C52: Presencial | D52: 10 | M52: =VLOOKUP(A52,'[1]CANAL ATENCIÓN'!$A$5:$D$81,3,0) -> Presencial
A53: DGRCIC-005-01-08 | B53: Inscripción de defunción por desastres, conflictos armados y epidemias | C53: Presencial | D53: 10 | M53: =VLOOKUP(A53,'[1]CANAL ATENCIÓN'!$A$5:$D$81,3,0) -> Presencial
A54: DGRCIC-003-01-15 | B54: Solemnización de matrimonio en sede de registro civil si los contrayentes son solteros y no tienen hijos menores de edad | C54: Inicia en Línea | D54: 6 | M54: =VLOOKUP(A54,'[1]CANAL ATENCIÓN'!$A$5:$D$81,3,0) -> Inicia en Línea
A55: DGRCIC-006-04-01 | B55: Rectificación a la información registral por sentencia ejecutoriada | C55: Presencial | D55: 10 | M55: =VLOOKUP(A55,'[1]CANAL ATENCIÓN'!$A$5:$D$81,3,0) -> Presencial
A56: DGRCIC-001-05-01 | B56: Emisión de Cédula de Identidad Por Primera Vez o Renovación Para Ecuatorianos a Través de Brigada Móvil | C56: Inicia en Línea | D56: 6 | M56: =VLOOKUP(A56,'[1]CANAL ATENCIÓN'!$A$5:$D$81,3,0) -> Inicia en Línea
A57: DGRCIC-002-06-01 | B57: Inscripción ordinaria y extraordinaria de nacimiento con atención médica en consulados | C57: Presencial | D57: 10 | M57: =VLOOKUP(A57,'[1]CANAL ATENCIÓN'!$A$5:$D$81,3,0) -> Presencial
A58: DGRCIC-005-05-03 | B58: Inscripción de defunción extraordinaria con atención médica | C58: Presencial | D58: 10 | M58: =VLOOKUP(A58,'[1]CANAL ATENCIÓN'!$A$5:$D$81,3,0) -> Presencial
A59: DGRCIC-005-01-01 | B59: Inscripción extraordinaria de defunción con atención médica | C59: Presencial | D59: 10 | M59: =VLOOKUP(A59,'[1]CANAL ATENCIÓN'!$A$5:$D$81,3,0) -> Presencial
A60: DGRCIC-010-01-03 | B60: Emisión de pasaporte ordinario por primera vez menores de 18 años, en caso de ausencia de uno o de los dos padres | C60: Inicia en Línea | D60: 6 | M60: =VLOOKUP(A60,'[1]CANAL ATENCIÓN'!$A$5:$D$81,3,0) -> Inicia en Línea
A61: DGRCIC-010-01-08 | B61: Emisión de pasaporte ordinario por renovación para menores de 18 años por pérdida o robo | C61: Inicia en Línea | D61: 6 | M61: =VLOOKUP(A61,'[1]CANAL ATENCIÓN'!$A$5:$D$81,3,0) -> Inicia en Línea
A62: DGRCIC-009-01-02 | B62: Dispositivo Token | C62: Presencial | D62: 10 | M62: =VLOOKUP(A62,'[1]CANAL ATENCIÓN'!$A$5:$D$81,3,0) -> Presencial
A63: DGRCIC-001-02-04 | B63: Emisión de Cédula de Identidad Por Primera Vez o Renovación Para Extranjeros Con Residencia Temporal o Residencia Permanente | C63: Presencial | D63: 10 | M63: =VLOOKUP(A63,'[1]CANAL ATENCIÓN'!$A$5:$D$81,3,0) -> Presencial
A64: DGRCIC-005-01-03 | B64: Inscripción ordinaria de defunción sin atención médica | C64: Presencial | D64: 10 | M64: =VLOOKUP(A64,'[1]CANAL ATENCIÓN'!$A$5:$D$81,3,0) -> Presencial
A65: DGRCIC-013-01-01 | B65: Inscripción ordinaria y extraordinaria de Nacimiento y Defunción. | C65: Presencial | D65: 10 | M65: =VLOOKUP(A65,'[1]CANAL ATENCIÓN'!$A$5:$D$81,3,0) -> Presencial
A66: DGRCIC-009-01-01 | B66: Emisión de Certificado Digital de Firma Electrónica en Token | C66: Presencial | D66: 10 | M66: =VLOOKUP(A66,'[1]CANAL ATENCIÓN'!$A$5:$D$81,3,0) -> Presencial
A67: DGRCIC-005-05-01 | B67: Inscripción de defunción ordinaria con atención médica | C67: Presencial | D67: 10 | M67: =VLOOKUP(A67,'[1]CANAL ATENCIÓN'!$A$5:$D$81,3,0) -> Presencial
A68: DGRCIC-005-01-02 | B68: Inscripción ordinaria de defunción con atención médica | C68: Inicia en Línea | D68: 6 | M68: =VLOOKUP(A68,'[1]CANAL ATENCIÓN'!$A$5:$D$81,3,0) -> Inicia en Línea
A69: DGRCIC-006-01-05 | B69: Rectificación de datos registrales en Actas Registrales (Resolución Administrativa) | C69: Presencial | D69: 10 | M69: =VLOOKUP(A69,'[1]CANAL ATENCIÓN'!$A$5:$D$81,3,0) -> Presencial
A70: DGRCIC-010-01-07 | B70: Emisión de Pasaporte Ordinario por Pérdida o Robo | C70: Inicia en Línea | D70: =IF(ISBLANK(C70),"",IF(C70="Totalmente en línea",0,IF(C70="Inicia en línea",6,10))) -> 6 | M70: =VLOOKUP(A70,'[1]CANAL ATENCIÓN'!$A$5:$D$81,3,0) -> Inicia en Línea
A71: DGRCIC-007-01-08 | B71: Emisión de Certificado de Identidad y Estado Civil en línea | C71: Totalmente en Línea | D71: 0 | M71: =VLOOKUP(A71,'[1]CANAL ATENCIÓN'!$A$5:$D$81,3,0) -> Totalmente en Línea
A72: DGRCIC-009-01-03 | B72: Emisión de Certificado Digital de Firma Electrónica en Archivo | C72: Presencial | D72: 10 | M72: =VLOOKUP(A72,'[1]CANAL ATENCIÓN'!$A$5:$D$81,3,0) -> Presencial
A73: DGRCIC-010-01-01 | B73: Emisión de Pasaporte Ordinario Por Primera Vez | C73: Inicia en Línea | D73: 6 | M73: =VLOOKUP(A73,'[1]CANAL ATENCIÓN'!$A$5:$D$81,3,0) -> Inicia en Línea
A74: DGRCIC-010-01-04 | B74: Emisión de Pasaporte Ordinario por Renovación | C74: Inicia en Línea | D74: 6 | M74: =VLOOKUP(A74,'[1]CANAL ATENCIÓN'!$A$5:$D$81,3,0) -> Inicia en Línea
A75: DGRCIC-007-02-02 | B75: Convalidación de Documentos Registrales | C75: Presencial | D75: 10 | M75: =VLOOKUP(A75,'[1]CANAL ATENCIÓN'!$A$5:$D$81,3,0) -> Presencial
A76: DGRCIC-007-01-07 | B76: Emisión de Certificado de Datos Registrales: Nacimiento, Matrimonio y Unión de Hecho en Línea | C76: Totalmente en Línea | D76: 0 | M76: =VLOOKUP(A76,'[1]CANAL ATENCIÓN'!$A$5:$D$81,3,0) -> Totalmente en Línea
A77: DGRCIC-007-01-04 | B77: Emisión de certificados de Identidad y Estado Civil | C77: Presencial | D77: 10 | M77: =VLOOKUP(A77,'[1]CANAL ATENCIÓN'!$A$5:$D$81,3,0) -> Presencial
A78: DGRCIC-002-01-01 | B78: Inscripción ordinaria y extraordinaria de nacimiento con atención médica | C78: Inicia en Línea | D78: 6 | M78: =VLOOKUP(A78,'[1]CANAL ATENCIÓN'!$A$5:$D$81,3,0) -> Inicia en Línea
A79: DGRCIC-007-01-06 | B79: Emisión de Copia del Acta Registral: Nacimiento, Matrimonio, Defunción, Unión de Hecho y Registro de Género / Cambio de Nombre | C79: Presencial | D79: 10 | M79: =VLOOKUP(A79,'[1]CANAL ATENCIÓN'!$A$5:$D$81,3,0) -> Presencial
A80: DGRCIC-001-01-01 | B80: Emisión de Cédula de Identidad Por Primera Vez o Renovación Para Ecuatorianos | C80: Inicia en Línea | D80: 6 | M80: =VLOOKUP(A80,'[1]CANAL ATENCIÓN'!$A$5:$D$81,3,0) -> Inicia en Línea
A81: DGRCIC-007-01-01 | B81: Emisión de Certificados de Datos Registrales: Nacimiento, Matrimonio, Defunción y Unión de Hecho | C81: Presencial | D81: 10 | M81: =VLOOKUP(A81,'[1]CANAL ATENCIÓN'!$A$5:$D$81,3,0) -> Presencial

Sheet RESUMEN
C1: BÁSICOS | H1: ADICIONALES
A2: ID trámite | B2: Nombre del trámite | C2: Demanda | D2: Quejas | E2: Costo para administración | F2: Tiempo de respuesta | G2: Canal de atención | H2: Necesidades ciudadanas | J2: Susceptibilidad a corrupción | L2: Volumen de devoluciones | N2: PUNTAJE TOTAL | Q2: Demanda | R2: Quejas | S2: Costo para administración | T2: Tiempo de respuesta | U2: Canal de atención | Z2: Canal de atención
H3: Criterio | I3: Puntuación | J3: Criterio | K3: Puntuación | L3: Criterio | M3: Puntuación | V3: 0 | W3: 3 | X3: 6 | Y3: 10 | AC3: ID trámite | AD3: Nombre del trámite | AE3: Demanda | AF3: Quejas | AG3: Costo para administración | AH3: Tiempo de respuesta | AI3: Canal de atención | AJ3: PUNTAJE TOTAL
A4: DGRCIC-002-01-08 | B4: Inscripción de hijos de progenitoras del mismo sexo por reproducción asistida | C4: 0 | D4: 0 | E4: 0.4125 | F4: 0 | G4: 10 | H4: NO | I4: =IF(H4="SI",5,0) -> 0 | J4: NO | K4: =IF(J4="SI",10,0) -> 0 | L4: NO | M4: =IF(L4="SI",5,0) -> 0 | N4: =SUM(C4:G4,I4,K4,M4) -> 10.4125 | Q4: =VLOOKUP(A4,'DEMANDA ANUAL'!$A$5:$D$81,4,0) -> 0 | R4: =VLOOKUP(A4,'VOLUMEN DE QUEJAS'!$A$5:$F$81,6,0) -> 0 | S4: =VLOOKUP(A4,'COSTO ADMINISTRACIÓN PÚBLICA'!$A$6:$F$82,6,0) -> 0.4125 | T4: =VLOOKUP(A4,'TIEMPO DE RESPUESTA'!$A$5:$D$81,4,0) -> 0 | U4: quejas | V4: 0 | W4: 4 | X4: 10 | Z4: =VLOOKUP(A4,'CANAL ATENCIÓN'!$A$5:$D$81,4,0) -> 10 | AC4: DGRCIC-002-01-08 | AD4: Inscripción de hijos de progenitoras del mismo sexo por reproducción asistida | AE4: 0 | AF4: 0 | AG4: 0.4125 | AH4: 0 | AI4: 10 | AJ4: 10.4125
A5: DGRCIC-002-02-02 | B5: Inscripción de nacimiento por adopción en el exterior | C5: 0 | D5: 0 | E5: 0.4125 | F5: 0 | G5: 6 | H5: NO | I5: =IF(H5="SI",5,0) -> 0 | J5: NO | K5: =IF(J5="SI",10,0) -> 0 | L5: NO | M5: =IF(L5="SI",5,0) -> 0 | N5: =SUM(C5:G5,I5,K5,M5) -> 6.4125 | Q5: =VLOOKUP(A5,'DEMANDA ANUAL'!$A$5:$D$81,4,0) -> 0 | R5: =VLOOKUP(A5,'VOLUMEN DE QUEJAS'!$A$5:$F$81,6,0) -> 0 | S5: =VLOOKUP(A5,'COSTO ADMINISTRACIÓN PÚBLICA'!$A$6:$F$82,6,0) -> 0.4125 | T5: =VLOOKUP(A5,'TIEMPO DE RESPUESTA'!$A$5:$D$81,4,0) -> 0 | U5: cpa | V5: 5 | W5: 10 | X5: 20 | Z5: =VLOOKUP(A5,'CANAL ATENCIÓN'!$A$5:$D$81,4,0) -> 6 | AC5: DGRCIC-002-02-02 | AD5: Inscripción de nacimiento por adopción en el exterior | AE5: 0 | AF5: 0 | AG5: 0.4125 | AH5: 0 | AI5: 6 | AJ5: 6.4125
A6: DGRCIC-012-02-01 | B6: Registro de género en Consulados | C6: 0 | D6: 0 | E6: 0 | F6: 0 | G6: 10 | H6: NO | I6: 0 | J6: NO | K6: 0 | L6: NO | M6: 0 | N6: 10 | Q6: =VLOOKUP(A6,'DEMANDA ANUAL'!$A$5:$D$81,4,0) -> 0 | R6: =VLOOKUP(A6,'VOLUMEN DE QUEJAS'!$A$5:$F$81,6,0) -> 0 | S6: =VLOOKUP(A6,'COSTO ADMINISTRACIÓN PÚBLICA'!$A$6:$F$82,6,0) -> 0 | T6: =VLOOKUP(A6,'TIEMPO DE RESPUESTA'!$A$5:$D$81,4,0) -> 0 | U6: tr | V6: 0 | W6: 30 | Z6: =VLOOKUP(A6,'CANAL ATENCIÓN'!$A$5:$D$81,4,0) -> 10 | AC6: DGRCIC-012-02-01 | AD6: Registro de género en Consulados | AE6: 0 | AF6: 0 | AG6: 0 | AH6: 0 | AI6: 10 | AJ6: 10
A7: DGRCIC-002-04-03 | B7: Registro de naturalización de hijos de padres naturalizados | C7: 0 | D7: 0 | E7: 0.4125 | F7: 0 | G7: 10 | H7: NO | I7: 0 | J7: NO | K7: 0 | L7: NO | M7: 0 | N7: 10.4125 | Q7: =VLOOKUP(A7,'DEMANDA ANUAL'!$A$5:$D$81,4,0) -> 0 | R7: =VLOOKUP(A7,'VOLUMEN DE QUEJAS'!$A$5:$F$81,6,0) -> 0 | S7: =VLOOKUP(A7,'COSTO ADMINISTRACIÓN PÚBLICA'!$A$6:$F$82,6,0) -> 0.4125 | T7: =VLOOKUP(A7,'TIEMPO DE RESPUESTA'!$A$5:$D$81,4,0) -> 0 | U7: ca | V7: 0 | W7: 10 | Z7: =VLOOKUP(A7,'CANAL ATENCIÓN'!$A$5:$D$81,4,0) -> 10 | AC7: DGRCIC-002-04-03 | AD7: Registro de naturalización de hijos de padres naturalizados | AE7: 0 | AF7: 0 | AG7: 0.4125 | AH7: 0 | AI7: 10 | AJ7: 10.4125
A8: DGRCIC-002-04-01 | B8: Registro de naturalización por carta de naturalización | C8: 0 | D8: 0 | E8: 0.4125 | F8: 0 | G8: 10 | H8: NO | I8: 0 | J8: NO | K8: 0 | L8: NO | M8: 0 | N8: 10.4125 | Q8: =VLOOKUP(A8,'DEMANDA ANUAL'!$A$5:$D$81,4,0) -> 0 | R8: =VLOOKUP(A8,'VOLUMEN DE QUEJAS'!$A$5:$F$81,6,0) -> 0 | S8: =VLOOKUP(A8,'COSTO ADMINISTRACIÓN PÚBLICA'!$A$6:$F$82,6,0) -> 0.4125 | T8: =VLOOKUP(A8,'TIEMPO DE RESPUESTA'!$A$5:$D$81,4,0) -> 0 | V8: SI | W8: NO | Z8: =VLOOKUP(A8,'CANAL ATENCIÓN'!$A$5:$D$81,4,0) -> 10 | AC8: DGRCIC-002-04-01 | AD8: Registro de naturalización por carta de naturalización | AE8: 0 | AF8: 0 | AG8: 0.4125 | AH8: 0 | AI8: 10 | AJ8: 10.4125
A9: DGRCIC-008-01-03 | B9: Validación Contra Base de Datos | C9: 0 | D9: 0 | E9: 0 | F9: 0 | G9: 0 | H9: NO | I9: 0 | J9: NO | K9: 0 | L9: NO | M9: 0 | N9: 0 | Q9: =VLOOKUP(A9,'DEMANDA ANUAL'!$A$5:$D$81,4,0) -> 0 | R9: =VLOOKUP(A9,'VOLUMEN DE QUEJAS'!$A$5:$F$81,6,0) -> 0 | S9: =VLOOKUP(A9,'COSTO ADMINISTRACIÓN PÚBLICA'!$A$6:$F$82,6,0) -> 0 | T9: =VLOOKUP(A9,'TIEMPO DE RESPUESTA'!$A$5:$D$81,4,0) -> 0 | Z9: =VLOOKUP(A9,'CANAL ATENCIÓN'!$A$5:$D$81,4,0) -> 0 | AC9: DGRCIC-008-01-03 | AD9: Validación Contra Base de Datos | AE9: 0 | AF9: 0 | AG9: 0 | AH9: 0 | AI9: 0 | AJ9: 0
A10: DGRCIC-003-01-13 | B10: Solemnización de matrimonio fuera de sede de registro civil si uno de los contrayentes se encuentra privado de la libertad | C10: 3 | D10: 0 | E10: 12.39622585 | F10: 0 | G10: 6 | H10: NO | I10: 0 | J10: NO | K10: 0 | L10: NO | M10: 0 | N10: 21.39622585 | Q10: =VLOOKUP(A10,'DEMANDA ANUAL'!$A$5:$D$81,4,0) -> 3 | R10: =VLOOKUP(A10,'VOLUMEN DE QUEJAS'!$A$5:$F$81,6,0) -> 0 | S10: =VLOOKUP(A10,'COSTO ADMINISTRACIÓN PÚBLICA'!$A$6:$F$82,6,0) -> 12.39622585 | T10: =VLOOKUP(A10,'TIEMPO DE RESPUESTA'!$A$5:$D$81,4,0) -> 0 | Z10: =VLOOKUP(A10,'CANAL ATENCIÓN'!$A$5:$D$81,4,0) -> 6 | AC10: DGRCIC-003-01-13 | AD10: Solemnización de matrimonio fuera de sede de registro civil si uno de los contrayentes se encuentra privado de la libertad | AE10: 3 | AF10: 0 | AG10: 12.39622585 | AH10: 0 | AI10: 6 | AJ10: 21.39622585
A11: DGRCIC-008-01-01 | B11: Web service - Demográfico | C11: 3 | D11: 0 | E11: 0 | F11: 0 | G11: 0 | H11: NO | I11: 0 | J11: NO | K11: 0 | L11: NO | M11: 0 | N11: 3 | Q11: =VLOOKUP(A11,'DEMANDA ANUAL'!$A$5:$D$81,4,0) -> 3 | R11: =VLOOKUP(A11,'VOLUMEN DE QUEJAS'!$A$5:$F$81,6,0) -> 0 | S11: =VLOOKUP(A11,'COSTO ADMINISTRACIÓN PÚBLICA'!$A$6:$F$82,6,0) -> 0 | T11: =VLOOKUP(A11,'TIEMPO DE RESPUESTA'!$A$5:$D$81,4,0) -> 0 | Z11: =VLOOKUP(A11,'CANAL ATENCIÓN'!$A$5:$D$81,4,0) -> 0 | AC11: DGRCIC-008-01-01 | AD11: Web service - Demográfico | AE11: 3 | AF11: 0 | AG11: 0 | AH11: 0 | AI11: 0 | AJ11: 3
A12: DGRCIC-003-01-11 | B12: Solemnización de matrimonio fuera de sede de registro civil si uno o los dos contrayentes son viudos y tienen hijo/s menor/es de edad | C12: 3 | D12: 0 | E12: 12.39622585 | F12: 0 | G12: 6 | H12: NO | I12: 0 | J12: NO | K12: 0 | L12: NO | M12: 0 | N12: 21.39622585 | Q12: =VLOOKUP(A12,'DEMANDA ANUAL'!$A$5:$D$81,4,0) -> 3 | R12: =VLOOKUP(A12,'VOLUMEN DE QUEJAS'!$A$5:$F$81,6,0) -> 0 | S12: =VLOOKUP(A12,'COSTO ADMINISTRACIÓN PÚBLICA'!$A$6:$F$82,6,0) -> 12.39622585 | T12: =VLOOKUP(A12,'TIEMPO DE RESPUESTA'!$A$5:$D$81,4,0) -> 0 | Z12: =VLOOKUP(A12,'CANAL ATENCIÓN'!$A$5:$D$81,4,0) -> 6 | AC12: DGRCIC-003-01-11 | AD12: Solemnización de matrimonio fuera de sede de registro civil si uno o los dos contrayentes son viudos y tienen hijo/s menor/es de edad | AE12: 3 | AF12: 0 | AG12: 12.39622585 | AH12: 0 | AI12: 6 | AJ12: 21.39622585
A13: DGRCIC-002-01-07 | B13: Inscripción de nacimiento por adopción | C13: 3 | D13: 0 | E13: 8.873759769 | F13: 0 | G13: 10 | H13: NO | I13: 0 | J13: NO | K13: 0 | L13: NO | M13: 0 | N13: 21.87375977 | Q13: =VLOOKUP(A13,'DEMANDA ANUAL'!$A$5:$D$81,4,0) -> 3 | R13: =VLOOKUP(A13,'VOLUMEN DE QUEJAS'!$A$5:$F$81,6,0) -> 0 | S13: =VLOOKUP(A13,'COSTO ADMINISTRACIÓN PÚBLICA'!$A$6:$F$82,6,0) -> 8.873759769 | T13: =VLOOKUP(A13,'TIEMPO DE RESPUESTA'!$A$5:$D$81,4,0) -> 0 | Z13: =VLOOKUP(A13,'CANAL ATENCIÓN'!$A$5:$D$81,4,0) -> 10 | AC13: DGRCIC-002-01-07 | AD13: Inscripción de nacimiento por adopción | AE13: 3 | AF13: 0 | AG13: 8.873759769 | AH13: 0 | AI13: 10 | AJ13: 21.87375977
A14: DGRCIC-003-01-17 | B14: Solemnización de matrimonio fuera de sede de registro civil si uno o ambos contrayentes son extranjeros con condición migratoria de residencia temporal | C14: 3 | D14: 0 | E14: 12.39622585 | F14: 0 | G14: 6 | H14: NO | I14: 0 | J14: NO | K14: 0 | L14: NO | M14: 0 | N14: 21.39622585 | Q14: =VLOOKUP(A14,'DEMANDA ANUAL'!$A$5:$D$81,4,0) -> 3 | R14: =VLOOKUP(A14,'VOLUMEN DE QUEJAS'!$A$5:$F$81,6,0) -> 0 | S14: =VLOOKUP(A14,'COSTO ADMINISTRACIÓN PÚBLICA'!$A$6:$F$82,6,0) -> 12.39622585 | T14: =VLOOKUP(A14,'TIEMPO DE RESPUESTA'!$A$5:$D$81,4,0) -> 0 | Z14: =VLOOKUP(A14,'CANAL ATENCIÓN'!$A$5:$D$81,4,0) -> 6 | AC14: DGRCIC-003-01-17 | AD14: Solemnización de matrimonio fuera de sede de registro civil si uno o ambos contrayentes son extranjeros con condición migratoria de residencia temporal | AE14: 3 | AF14: 0 | AG14: 12.39622585 | AH14: 0 | AI14: 6 | AJ14: 21.39622585
A15: DGRCIC-008-01-02 | B15: Sistema Nacional de Identificación Ciudadana - Consulta de Cédula de Papel | C15: 3 | D15: 0 | E15: 0 | F15: 0 | G15: 0 | H15: NO | I15: 0 | J15: NO | K15: 0 | L15: NO | M15: 0 | N15: 3 | Q15: =VLOOKUP(A15,'DEMANDA ANUAL'!$A$5:$D$81,4,0) -> 3 | R15: =VLOOKUP(A15,'VOLUMEN DE QUEJAS'!$A$5:$F$81,6,0) -> 0 | S15: =VLOOKUP(A15,'COSTO ADMINISTRACIÓN PÚBLICA'!$A$6:$F$82,6,0) -> 0 | T15: =VLOOKUP(A15,'TIEMPO DE RESPUESTA'!$A$5:$D$81,4,0) -> 0 | Z15: =VLOOKUP(A15,'CANAL ATENCIÓN'!$A$5:$D$81,4,0) -> 0 | AC15: DGRCIC-008-01-02 | AD15: Sistema Nacional de Identificación Ciudadana - Consulta de Cédula de Papel | AE15: 3 | AF15: 0 | AG15: 0 | AH15: 0 | AI15: 0 | AJ15: 3
A16: DGRCIC-002-01-06 | B16: Inscripción de nacimiento por informe de expósito | C16: 3 | D16: 0 | E16: 8.873759769 | F16: 0 | G16: 10 | H16: NO | I16: 0 | J16: NO | K16: 0 | L16: NO | M16: 0 | N16: 21.87375977 | Q16: =VLOOKUP(A16,'DEMANDA ANUAL'!$A$5:$D$81,4,0) -> 3 | R16: =VLOOKUP(A16,'VOLUMEN DE QUEJAS'!$A$5:$F$81,6,0) -> 0 | S16: =VLOOKUP(A16,'COSTO ADMINISTRACIÓN PÚBLICA'!$A$6:$F$82,6,0) -> 8.873759769 | T16: =VLOOKUP(A16,'TIEMPO DE RESPUESTA'!$A$5:$D$81,4,0) -> 0 | Z16: =VLOOKUP(A16,'CANAL ATENCIÓN'!$A$5:$D$81,4,0) -> 10 | AC16: DGRCIC-002-01-06 | AD16: Inscripción de nacimiento por informe de expósito | AE16: 3 | AF16: 0 | AG16: 8.873759769 | AH16: 0 | AI16: 10 | AJ16: 21.87375977
A17: DGRCIC-012-01-01 | B17: Registro de género | C17: 3 | D17: 0 | E17: 18.0112156 | F17: 0 | G17: 10 | H17: NO | I17: 0 | J17: NO | K17: 0 | L17: NO | M17: 0 | N17: 31.0112156 | Q17: =VLOOKUP(A17,'DEMANDA ANUAL'!$A$5:$D$81,4,0) -> 3 | R17: =VLOOKUP(A17,'VOLUMEN DE QUEJAS'!$A$5:$F$81,6,0) -> 0 | S17: =VLOOKUP(A17,'COSTO ADMINISTRACIÓN PÚBLICA'!$A$6:$F$82,6,0) -> 18.0112156 | T17: =VLOOKUP(A17,'TIEMPO DE RESPUESTA'!$A$5:$D$81,4,0) -> 0 | Z17: =VLOOKUP(A17,'CANAL ATENCIÓN'!$A$5:$D$81,4,0) -> 10 | AC17: DGRCIC-012-01-01 | AD17: Registro de género | AE17: 3 | AF17: 0 | AG17: 18.0112156 | AH17: 0 | AI17: 10 | AJ17: 31.0112156
A18: DGRCIC-003-01-08 | B18: Solemnización de matrimonio fuera de sede de registro civil si uno o los dos contrayentes solteros tiene hijo/s menor/es de edad | C18: 3 | D18: 0 | E18: 12.39622585 | F18: 0 | G18: 6 | H18: NO | I18: 0 | J18: NO | K18: 0 | L18: NO | M18: 0 | N18: 21.39622585 | Q18: =VLOOKUP(A18,'DEMANDA ANUAL'!$A$5:$D$81,4,0) -> 3 | R18: =VLOOKUP(A18,'VOLUMEN DE QUEJAS'!$A$5:$F$81,6,0) -> 0 | S18: =VLOOKUP(A18,'COSTO ADMINISTRACIÓN PÚBLICA'!$A$6:$F$82,6,0) -> 12.39622585 | T18: =VLOOKUP(A18,'TIEMPO DE RESPUESTA'!$A$5:$D$81,4,0) -> 0 | Z18: =VLOOKUP(A18,'CANAL ATENCIÓN'!$A$5:$D$81,4,0) -> 6 | AC18: DGRCIC-003-01-08 | AD18: Solemnización de matrimonio fuera de sede de registro civil si uno o los dos contrayentes solteros tiene hijo/s menor/es de edad | AE18: 3 | AF18: 0 | AG18: 12.39622585 | AH18: 0 | AI18: 6 | AJ18: 21.39622585
A19: DGRCIC-002-04-02 | B19: Registro de nacimiento por servicios relevantes | C19: 3 | D19: 0 | E19: 8.873759769 | F19: 0 | G19: 10 | H19: NO | I19: 0 | J19: NO | K19: 0 | L19: NO | M19: 0 | N19: 21.87375977 | Q19: =VLOOKUP(A19,'DEMANDA ANUAL'!$A$5:$D$81,4,0) -> 3 | R19: =VLOOKUP(A19,'VOLUMEN DE QUEJAS'!$A$5:$F$81,6,0) -> 0 | S19: =VLOOKUP(A19,'COSTO ADMINISTRACIÓN PÚBLICA'!$A$6:$F$82,6,0) -> 8.873759769 | T19: =VLOOKUP(A19,'TIEMPO DE RESPUESTA'!$A$5:$D$81,4,0) -> 0 | Z19: =VLOOKUP(A19,'CANAL ATENCIÓN'!$A$5:$D$81,4,0) -> 10 | AC19: DGRCIC-002-04-02 | AD19: Registro de nacimiento por servicios relevantes | AE19: 3 | AF19: 0 | AG19: 8.873759769 | AH19: 0 | AI19: 10 | AJ19: 21.87375977
A20: DGRCIC-003-01-16 | B20: Solemnización de matrimonio fuera de sede de registro civil si los contrayentes son solteros y no tuvieren hijos menores de edad | C20: 3 | D20: 0 | E20: 12.39622585 | F20: 0 | G20: 6 | H20: NO | I20: 0 | J20: NO | K20: 0 | L20: NO | M20: 0 | N20: 21.39622585 | Q20: =VLOOKUP(A20,'DEMANDA ANUAL'!$A$5:$D$81,4,0) -> 3 | R20: =VLOOKUP(A20,'VOLUMEN DE QUEJAS'!$A$5:$F$81,6,0) -> 0 | S20: =VLOOKUP(A20,'COSTO ADMINISTRACIÓN PÚBLICA'!$A$6:$F$82,6,0) -> 12.39622585 | T20: =VLOOKUP(A20,'TIEMPO DE RESPUESTA'!$A$5:$D$81,4,0) -> 0 | Z20: =VLOOKUP(A20,'CANAL ATENCIÓN'!$A$5:$D$81,4,0) -> 6 | AC20: DGRCIC-003-01-16 | AD20: Solemnización de matrimonio fuera de sede de registro civil si los contrayentes son solteros y no tuvieren hijos menores de edad | AE20: 3 | AF20: 0 | AG20: 12.39622585 | AH20: 0 | AI20: 6 | AJ20: 21.39622585
A21: DGRCIC-005-02-02 | B21: Inscripción extraordinaria de defunción ocurrida en el exterior (en frontera) | C21: 3 | D21: 0 | E21: 11.73148613 | F21: 0 | G21: 6 | H21: NO | I21: 0 | J21: NO | K21: 0 | L21: NO | M21: 0 | N21: 20.73148613 | Q21: =VLOOKUP(A21,'DEMANDA ANUAL'!$A$5:$D$81,4,0) -> 3 | R21: =VLOOKUP(A21,'VOLUMEN DE QUEJAS'!$A$5:$F$81,6,0) -> 0 | S21: =VLOOKUP(A21,'COSTO ADMINISTRACIÓN PÚBLICA'!$A$6:$F$82,6,0) -> 11.73148613 | T21: =VLOOKUP(A21,'TIEMPO DE RESPUESTA'!$A$5:$D$81,4,0) -> 0 | Z21: =VLOOKUP(A21,'CANAL ATENCIÓN'!$A$5:$D$81,4,0) -> 6 | AC21: DGRCIC-005-02-02 | AD21: Inscripción extraordinaria de defunción ocurrida en el exterior (en frontera) | AE21: 3 | AF21: 0 | AG21: 11.73148613 | AH21: 0 | AI21: 6 | AJ21: 20.73148613
A22: DGRCIC-001-04-01 | B22: Emisión de Cédula de Identidad Por Registro de Género | C22: 3 | D22: 0 | E22: 11.63973199 | F22: 0 | G22: 10 | H22: NO | I22: 0 | J22: NO | K22: 0 | L22: NO | M22: 0 | N22: 24.63973199 | Q22: =VLOOKUP(A22,'DEMANDA ANUAL'!$A$5:$D$81,4,0) -> 3 | R22: =VLOOKUP(A22,'VOLUMEN DE QUEJAS'!$A$5:$F$81,6,0) -> 0 | S22: =VLOOKUP(A22,'COSTO ADMINISTRACIÓN PÚBLICA'!$A$6:$F$82,6,0) -> 11.63973199 | T22: =VLOOKUP(A22,'TIEMPO DE RESPUESTA'!$A$5:$D$81,4,0) -> 0 | Z22: =VLOOKUP(A22,'CANAL ATENCIÓN'!$A$5:$D$81,4,0) -> 10 | AC22: DGRCIC-001-04-01 | AD22: Emisión de Cédula de Identidad Por Registro de Género | AE22: 3 | AF22: 0 | AG22: 11.63973199 | AH22: 0 | AI22: 10 | AJ22: 24.63973199
A23: DGRCIC-005-02-03 | B23: Registro de defunción ocurrido en el exterior | C23: 3 | D23: 0 | E23: 11.73148613 | F23: 0 | G23: 6 | H23: NO | I23: 0 | J23: NO | K23: 0 | L23: NO | M23: 0 | N23: 20.73148613 | Q23: =VLOOKUP(A23,'DEMANDA ANUAL'!$A$5:$D$81,4,0) -> 3 | R23: =VLOOKUP(A23,'VOLUMEN DE QUEJAS'!$A$5:$F$81,6,0) -> 0 | S23: =VLOOKUP(A23,'COSTO ADMINISTRACIÓN PÚBLICA'!$A$6:$F$82,6,0) -> 11.73148613 | T23: =VLOOKUP(A23,'TIEMPO DE RESPUESTA'!$A$5:$D$81,4,0) -> 0 | Z23: =VLOOKUP(A23,'CANAL ATENCIÓN'!$A$5:$D$81,4,0) -> 6 | AC23: DGRCIC-005-02-03 | AD23: Registro de defunción ocurrido en el exterior | AE23: 3 | AF23: 0 | AG23: 11.73148613 | AH23: 0 | AI23: 6 | AJ23: 20.73148613
A24: DGRCIC-002-02-01 | B24: Registro de nacimiento ocurrido en el exterior (reconocimiento de nacionalidad) | C24: 3 | D24: 0 | E24: 11.63495835 | F24: 0 | G24: 6 | H24: NO | I24: 0 | J24: NO | K24: 0 | L24: NO | M24: 0 | N24: 20.63495835 | Q24: =VLOOKUP(A24,'DEMANDA ANUAL'!$A$5:$D$81,4,0) -> 3 | R24: =VLOOKUP(A24,'VOLUMEN DE QUEJAS'!$A$5:$F$81,6,0) -> 0 | S24: =VLOOKUP(A24,'COSTO ADMINISTRACIÓN PÚBLICA'!$A$6:$F$82,6,0) -> 11.63495835 | T24: =VLOOKUP(A24,'TIEMPO DE RESPUESTA'!$A$5:$D$81,4,0) -> 0 | Z24: =VLOOKUP(A24,'CANAL ATENCIÓN'!$A$5:$D$81,4,0) -> 6 | AC24: DGRCIC-002-02-01 | AD24: Registro de nacimiento ocurrido en el exterior (reconocimiento de nacionalidad) | AE24: 3 | AF24: 0 | AG24: 11.63495835 | AH24: 0 | AI24: 6 | AJ24: 20.63495835
A25: DGRCIC-003-02-01 | B25: Registro de matrimonio entre uno o dos ecuatorianos realizado en el exterior | C25: 3 | D25: 0 | E25: 11.84398613 | F25: 0 | G25: 6 | H25: NO | I25: 0 | J25: NO | K25: 0 | L25: NO | M25: 0 | N25: 20.84398613 | Q25: =VLOOKUP(A25,'DEMANDA ANUAL'!$A$5:$D$81,4,0) -> 3 | R25: =VLOOKUP(A25,'VOLUMEN DE QUEJAS'!$A$5:$F$81,6,0) -> 0 | S25: =VLOOKUP(A25,'COSTO ADMINISTRACIÓN PÚBLICA'!$A$6:$F$82,6,0) -> 11.84398613 | T25: =VLOOKUP(A25,'TIEMPO DE RESPUESTA'!$A$5:$D$81,4,0) -> 0 | Z25: =VLOOKUP(A25,'CANAL ATENCIÓN'!$A$5:$D$81,4,0) -> 6 | AC25: DGRCIC-003-02-01 | AD25: Registro de matrimonio entre uno o dos ecuatorianos realizado en el exterior | AE25: 3 | AF25: 0 | AG25: 11.84398613 | AH25: 0 | AI25: 6 | AJ25: 20.84398613
A26: DGRCIC-002-07-01 | B26: Registro de nacimiento en Consulados | C26: 3 | D26: 0 | E26: 11.63495835 | F26: 0 | G26: 10 | H26: NO | I26: 0 | J26: NO | K26: 0 | L26: NO | M26: 0 | N26: 24.63495835 | Q26: =VLOOKUP(A26,'DEMANDA ANUAL'!$A$5:$D$81,4,0) -> 3 | R26: =VLOOKUP(A26,'VOLUMEN DE QUEJAS'!$A$5:$F$81,6,0) -> 0 | S26: =VLOOKUP(A26,'COSTO ADMINISTRACIÓN PÚBLICA'!$A$6:$F$82,6,0) -> 11.63495835 | T26: =VLOOKUP(A26,'TIEMPO DE RESPUESTA'!$A$5:$D$81,4,0) -> 0 | Z26: =VLOOKUP(A26,'CANAL ATENCIÓN'!$A$5:$D$81,4,0) -> 10 | AC26: DGRCIC-002-07-01 | AD26: Registro de nacimiento en Consulados | AE26: 3 | AF26: 0 | AG26: 11.63495835 | AH26: 0 | AI26: 10 | AJ26: 24.63495835
A27: DGRCIC-005-05-04 | B27: Registro de defunción en Consulados | C27: 3 | D27: 0 | E27: 11.73148613 | F27: 0 | G27: 10 | H27: NO | I27: 0 | J27: NO | K27: 0 | L27: NO | M27: 0 | N27: 24.73148613 | Q27: =VLOOKUP(A27,'DEMANDA ANUAL'!$A$5:$D$81,4,0) -> 3 | R27: =VLOOKUP(A27,'VOLUMEN DE QUEJAS'!$A$5:$F$81,6,0) -> 0 | S27: =VLOOKUP(A27,'COSTO ADMINISTRACIÓN PÚBLICA'!$A$6:$F$82,6,0) -> 11.73148613 | T27: =VLOOKUP(A27,'TIEMPO DE RESPUESTA'!$A$5:$D$81,4,0) -> 0 | Z27: =VLOOKUP(A27,'CANAL ATENCIÓN'!$A$5:$D$81,4,0) -> 10 | AC27: DGRCIC-005-05-04 | AD27: Registro de defunción en Consulados | AE27: 3 | AF27: 0 | AG27: 11.73148613 | AH27: 0 | AI27: 10 | AJ27: 24.73148613
A28: DGRCIC-005-02-01 | B28: Inscripción ordinaria de defunción ocurrida en el exterior (en frontera) | C28: 3 | D28: 0 | E28: 11.73148613 | F28: 0 | G28: 6 | H28: NO | I28: 0 | J28: NO | K28: 0 | L28: NO | M28: 0 | N28: 20.73148613 | Q28: =VLOOKUP(A28,'DEMANDA ANUAL'!$A$5:$D$81,4,0) -> 3 | R28: =VLOOKUP(A28,'VOLUMEN DE QUEJAS'!$A$5:$F$81,6,0) -> 0 | S28: =VLOOKUP(A28,'COSTO ADMINISTRACIÓN PÚBLICA'!$A$6:$F$82,6,0) -> 11.73148613 | T28: =VLOOKUP(A28,'TIEMPO DE RESPUESTA'!$A$5:$D$81,4,0) -> 0 | Z28: =VLOOKUP(A28,'CANAL ATENCIÓN'!$A$5:$D$81,4,0) -> 6 | AC28: DGRCIC-005-02-01 | AD28: Inscripción ordinaria de defunción ocurrida en el exterior (en frontera) | AE28: 3 | AF28: 0 | AG28: 11.73148613 | AH28: 0 | AI28: 6 | AJ28: 20.73148613
A29: DGRCIC-003-05-01 | B29: Registro de matrimonio en Consulados | C29: 3 | D29: 0 | E29: 11.84398613 | F29: 0 | G29: 10 | H29: NO | I29: 0 | J29: NO | K29: 0 | L29: NO | M29: 0 | N29: 24.84398613 | Q29: =VLOOKUP(A29,'DEMANDA ANUAL'!$A$5:$D$81,4,0) -> 3 | R29: =VLOOKUP(A29,'VOLUMEN DE QUEJAS'!$A$5:$F$81,6,0) -> 0 | S29: =VLOOKUP(A29,'COSTO ADMINISTRACIÓN PÚBLICA'!$A$6:$F$82,6,0) -> 11.84398613 | T29: =VLOOKUP(A29,'TIEMPO DE RESPUESTA'!$A$5:$D$81,4,0) -> 0 | Z29: =VLOOKUP(A29,'CANAL ATENCIÓN'!$A$5:$D$81,4,0) -> 10 | AC29: DGRCIC-003-05-01 | AD29: Registro de matrimonio en Consulados | AE29: 3 | AF29: 0 | AG29: 11.84398613 | AH29: 0 | AI29: 10 | AJ29: 24.84398613
A30: DGRCIC-006-04-07 | B30: Registro de separación de la sociedad de bienes en la unión de hecho | C30: 3 | D30: 0 | E30: 12.39622585 | F30: 0 | G30: 10 | H30: NO | I30: 0 | J30: NO | K30: 0 | L30: NO | M30: 0 | N30: 25.39622585 | Q30: =VLOOKUP(A30,'DEMANDA ANUAL'!$A$5:$D$81,4,0) -> 3 | R30: =VLOOKUP(A30,'VOLUMEN DE QUEJAS'!$A$5:$F$81,6,0) -> 0 | S30: =VLOOKUP(A30,'COSTO ADMINISTRACIÓN PÚBLICA'!$A$6:$F$82,6,0) -> 12.39622585 | T30: =VLOOKUP(A30,'TIEMPO DE RESPUESTA'!$A$5:$D$81,4,0) -> 0 | Z30: =VLOOKUP(A30,'CANAL ATENCIÓN'!$A$5:$D$81,4,0) -> 10 | AC30: DGRCIC-006-04-07 | AD30: Registro de separación de la sociedad de bienes en la unión de hecho | AE30: 3 | AF30: 0 | AG30: 12.39622585 | AH30: 0 | AI30: 10 | AJ30: 25.39622585
A31: DGRCIC-003-01-18 | B31: Inscripción de matrimonio por orden judicial (Inscripción de sentencia) | C31: 3 | D31: 0 | E31: 12.39622585 | F31: 0 | G31: 10 | H31: NO | I31: 0 | J31: NO | K31: 0 | L31: NO | M31: 0 | N31: 25.39622585 | Q31: =VLOOKUP(A31,'DEMANDA ANUAL'!$A$5:$D$81,4,0) -> 3 | R31: =VLOOKUP(A31,'VOLUMEN DE QUEJAS'!$A$5:$F$81,6,0) -> 0 | S31: =VLOOKUP(A31,'COSTO ADMINISTRACIÓN PÚBLICA'!$A$6:$F$82,6,0) -> 12.39622585 | T31: =VLOOKUP(A31,'TIEMPO DE RESPUESTA'!$A$5:$D$81,4,0) -> 0 | Z31: =VLOOKUP(A31,'CANAL ATENCIÓN'!$A$5:$D$81,4,0) -> 10 | AC31: DGRCIC-003-01-18 | AD31: Inscripción de matrimonio por orden judicial (Inscripción de sentencia) | AE31: 3 | AF31: 0 | AG31: 12.39622585 | AH31: 0 | AI31: 10 | AJ31: 25.39622585
A32: DGRCIC-001-02-01 | B32: Emisión de Cédula de Identidad Por Primera Vez Doble Nacionalidad | C32: 3 | D32: 0 | E32: 11.63973199 | F32: 0 | G32: 10 | H32: NO | I32: 0 | J32: NO | K32: 0 | L32: NO | M32: 0 | N32: 24.63973199 | Q32: =VLOOKUP(A32,'DEMANDA ANUAL'!$A$5:$D$81,4,0) -> 3 | R32: =VLOOKUP(A32,'VOLUMEN DE QUEJAS'!$A$5:$F$81,6,0) -> 0 | S32: =VLOOKUP(A32,'COSTO ADMINISTRACIÓN PÚBLICA'!$A$6:$F$82,6,0) -> 11.63973199 | T32: =VLOOKUP(A32,'TIEMPO DE RESPUESTA'!$A$5:$D$81,4,0) -> 0 | Z32: =VLOOKUP(A32,'CANAL ATENCIÓN'!$A$5:$D$81,4,0) -> 10 | AC32: DGRCIC-001-02-01 | AD32: Emisión de Cédula de Identidad Por Primera Vez Doble Nacionalidad | AE32: 3 | AF32: 0 | AG32: 11.63973199 | AH32: 0 | AI32: 10 | AJ32: 24.63973199
A33: DGRCIC-001-02-02 | B33: Emisión de Cédula de Identidad Por Primera Vez Naturalización | C33: 3 | D33: 0 | E33: 11.63973199 | F33: 0 | G33: 10 | H33: NO | I33: 0 | J33: NO | K33: 0 | L33: NO | M33: 0 | N33: 24.63973199 | Q33: =VLOOKUP(A33,'DEMANDA ANUAL'!$A$5:$D$81,4,0) -> 3 | R33: =VLOOKUP(A33,'VOLUMEN DE QUEJAS'!$A$5:$F$81,6,0) -> 0 | S33: =VLOOKUP(A33,'COSTO ADMINISTRACIÓN PÚBLICA'!$A$6:$F$82,6,0) -> 11.63973199 | T33: =VLOOKUP(A33,'TIEMPO DE RESPUESTA'!$A$5:$D$81,4,0) -> 0 | Z33: =VLOOKUP(A33,'CANAL ATENCIÓN'!$A$5:$D$81,4,0) -> 10 | AC33: DGRCIC-001-02-02 | AD33: Emisión de Cédula de Identidad Por Primera Vez Naturalización | AE33: 3 | AF33: 0 | AG33: 11.63973199 | AH33: 0 | AI33: 10 | AJ33: 24.63973199
A34: DGRCIC-005-01-06 | B34: Inscripción de defunción fetal | C34: 6 | D34: 0 | E34: 11.17924641 | F34: 0 | G34: 10 | H34: NO | I34: 0 | J34: NO | K34: 0 | L34: NO | M34: 0 | N34: 27.17924641 | Q34: =VLOOKUP(A34,'DEMANDA ANUAL'!$A$5:$D$81,4,0) -> 6 | R34: =VLOOKUP(A34,'VOLUMEN DE QUEJAS'!$A$5:$F$81,6,0) -> 0 | S34: =VLOOKUP(A34,'COSTO ADMINISTRACIÓN PÚBLICA'!$A$6:$F$82,6,0) -> 11.17924641 | T34: =VLOOKUP(A34,'TIEMPO DE RESPUESTA'!$A$5:$D$81,4,0) -> 0 | Z34: =VLOOKUP(A34,'CANAL ATENCIÓN'!$A$5:$D$81,4,0) -> 10 | AC34: DGRCIC-005-01-06 | AD34: Inscripción de defunción fetal | AE34: 6 | AF34: 0 | AG34: 11.17924641 | AH34: 0 | AI34: 10 | AJ34: 27.17924641
A35: DGRCIC-006-01-01 | B35: Cambio de nombre Mayores de 18 años | C35: 6 | D35: 0 | E35: 13.94044499 | F35: 0 | G35: 10 | H35: NO | I35: 0 | J35: NO | K35: 0 | L35: NO | M35: 0 | N35: 29.94044499 | Q35: =VLOOKUP(A35,'DEMANDA ANUAL'!$A$5:$D$81,4,0) -> 6 | R35: =VLOOKUP(A35,'VOLUMEN DE QUEJAS'!$A$5:$F$81,6,0) -> 0 | S35: =VLOOKUP(A35,'COSTO ADMINISTRACIÓN PÚBLICA'!$A$6:$F$82,6,0) -> 13.94044499 | T35: =VLOOKUP(A35,'TIEMPO DE RESPUESTA'!$A$5:$D$81,4,0) -> 0 | Z35: =VLOOKUP(A35,'CANAL ATENCIÓN'!$A$5:$D$81,4,0) -> 10 | AC35: DGRCIC-006-01-01 | AD35: Cambio de nombre Mayores de 18 años | AE35: 6 | AF35: 0 | AG35: 13.94044499 | AH35: 0 | AI35: 10 | AJ35: 29.94044499
A36: DGRCIC-001-02-06 | B36: Emisión de cédula de identidad por primera vez para extrajeros con protección internacional | C36: 6 | D36: 0 | E36: 11.63973199 | F36: 0 | G36: 10 | H36: NO | I36: 0 | J36: NO | K36: 0 | L36: NO | M36: 0 | N36: 27.63973199 | Q36: =VLOOKUP(A36,'DEMANDA ANUAL'!$A$5:$D$81,4,0) -> 6 | R36: =VLOOKUP(A36,'VOLUMEN DE QUEJAS'!$A$5:$F$81,6,0) -> 0 | S36: =VLOOKUP(A36,'COSTO ADMINISTRACIÓN PÚBLICA'!$A$6:$F$82,6,0) -> 11.63973199 | T36: =VLOOKUP(A36,'TIEMPO DE RESPUESTA'!$A$5:$D$81,4,0) -> 0 | Z36: =VLOOKUP(A36,'CANAL ATENCIÓN'!$A$5:$D$81,4,0) -> 10 | AC36: DGRCIC-001-02-06 | AD36: Emisión de cédula de identidad por primera vez para extrajeros con protección internacional | AE36: 6 | AF36: 0 | AG36: 11.63973199 | AH36: 0 | AI36: 10 | AJ36: 27.63973199
A37: DGRCIC-002-01-05 | B37: Inscripción extraordinaria de nacimiento (mayor de 18 años) por orden judicial (inscripción de sentencia) | C37: 6 | D37: 0 | E37: 8.873759769 | F37: 0 | G37: 10 | H37: NO | I37: 0 | J37: NO | K37: 0 | L37: NO | M37: 0 | N37: 24.87375977 | Q37: =VLOOKUP(A37,'DEMANDA ANUAL'!$A$5:$D$81,4,0) -> 6 | R37: =VLOOKUP(A37,'VOLUMEN DE QUEJAS'!$A$5:$F$81,6,0) -> 0 | S37: =VLOOKUP(A37,'COSTO ADMINISTRACIÓN PÚBLICA'!$A$6:$F$82,6,0) -> 8.873759769 | T37: =VLOOKUP(A37,'TIEMPO DE RESPUESTA'!$A$5:$D$81,4,0) -> 0 | Z37: =VLOOKUP(A37,'CANAL ATENCIÓN'!$A$5:$D$81,4,0) -> 10 | AC37: DGRCIC-002-01-05 | AD37: Inscripción extraordinaria de nacimiento (mayor de 18 años) por orden judicial (inscripción de sentencia) | AE37: 6 | AF37: 0 | AG37: 8.873759769 | AH37: 0 | AI37: 10 | AJ37: 24.87375977
A38: DGRCIC-006-04-04 | B38: Registro de capitulaciones matrimoniales | C38: 6 | D38: 0 | E38: 11.77469807 | F38: 0 | G38: 10 | H38: NO | I38: 0 | J38: NO | K38: 0 | L38: NO | M38: 0 | N38: 27.77469807 | Q38: =VLOOKUP(A38,'DEMANDA ANUAL'!$A$5:$D$81,4,0) -> 6 | R38: =VLOOKUP(A38,'VOLUMEN DE QUEJAS'!$A$5:$F$81,6,0) -> 0 | S38: =VLOOKUP(A38,'COSTO ADMINISTRACIÓN PÚBLICA'!$A$6:$F$82,6,0) -> 11.77469807 | T38: =VLOOKUP(A38,'TIEMPO DE RESPUESTA'!$A$5:$D$81,4,0) -> 0 | Z38: =VLOOKUP(A38,'CANAL ATENCIÓN'!$A$5:$D$81,4,0) -> 10 | AC38: DGRCIC-006-04-04 | AD38: Registro de capitulaciones matrimoniales | AE38: 6 | AF38: 0 | AG38: 11.77469807 | AH38: 0 | AI38: 10 | AJ38: 27.77469807
A39: DGRCIC-011-01-01 | B39: Registro de unión de hecho | C39: 6 | D39: 4 | E39: 12.3959223 | F39: 0 | G39: 10 | H39: NO | I39: 0 | J39: NO | K39: 0 | L39: NO | M39: 0 | N39: 32.3959223 | Q39: =VLOOKUP(A39,'DEMANDA ANUAL'!$A$5:$D$81,4,0) -> 6 | R39: =VLOOKUP(A39,'VOLUMEN DE QUEJAS'!$A$5:$F$81,6,0) -> 4 | S39: =VLOOKUP(A39,'COSTO ADMINISTRACIÓN PÚBLICA'!$A$6:$F$82,6,0) -> 12.3959223 | T39: =VLOOKUP(A39,'TIEMPO DE RESPUESTA'!$A$5:$D$81,4,0) -> 0 | Z39: =VLOOKUP(A39,'CANAL ATENCIÓN'!$A$5:$D$81,4,0) -> 10 | AC39: DGRCIC-011-01-01 | AD39: Registro de unión de hecho | AE39: 6 | AF39: 4 | AG39: 12.3959223 | AH39: 0 | AI39: 10 | AJ39: 32.3959223
A40: DGRCIC-003-01-07 | B40: Solemnización de matrimonio en sede de registro civil si uno o ambos contrayentes son extranjeros con condición migratoria de residencia temporal | C40: 6 | D40: 0 | E40: 12.39622585 | F40: 0 | G40: 6 | H40: NO | I40: 0 | J40: NO | K40: 0 | L40: NO | M40: 0 | N40: 24.39622585 | Q40: =VLOOKUP(A40,'DEMANDA ANUAL'!$A$5:$D$81,4,0) -> 6 | R40: =VLOOKUP(A40,'VOLUMEN DE QUEJAS'!$A$5:$F$81,6,0) -> 0 | S40: =VLOOKUP(A40,'COSTO ADMINISTRACIÓN PÚBLICA'!$A$6:$F$82,6,0) -> 12.39622585 | T40: =VLOOKUP(A40,'TIEMPO DE RESPUESTA'!$A$5:$D$81,4,0) -> 0 | Z40: =VLOOKUP(A40,'CANAL ATENCIÓN'!$A$5:$D$81,4,0) -> 6 | AC40: DGRCIC-003-01-07 | AD40: Solemnización de matrimonio en sede de registro civil si uno o ambos contrayentes son extranjeros con condición migratoria de residencia temporal | AE40: 6 | AF40: 0 | AG40: 12.39622585 | AH40: 0 | AI40: 6 | AJ40: 24.39622585
A41: DGRCIC-005-01-05 | B41: Inscripción de defunción por muerte presunta mediante orden judicial (Inscripción de sentencia) | C41: 6 | D41: 0 | E41: 11.17924641 | F41: 0 | G41: 10 | H41: NO | I41: 0 | J41: NO | K41: 0 | L41: NO | M41: 0 | N41: 27.17924641 | Q41: =VLOOKUP(A41,'DEMANDA ANUAL'!$A$5:$D$81,4,0) -> 6 | R41: =VLOOKUP(A41,'VOLUMEN DE QUEJAS'!$A$5:$F$81,6,0) -> 0 | S41: =VLOOKUP(A41,'COSTO ADMINISTRACIÓN PÚBLICA'!$A$6:$F$82,6,0) -> 11.17924641 | T41: =VLOOKUP(A41,'TIEMPO DE RESPUESTA'!$A$5:$D$81,4,0) -> 0 | Z41: =VLOOKUP(A41,'CANAL ATENCIÓN'!$A$5:$D$81,4,0) -> 10 | AC41: DGRCIC-005-01-05 | AD41: Inscripción de defunción por muerte presunta mediante orden judicial (Inscripción de sentencia) | AE41: 6 | AF41: 0 | AG41: 11.17924641 | AH41: 0 | AI41: 10 | AJ41: 27.17924641
A42: DGRCIC-003-01-04 | B42: Solemnización de matrimonio en sede de registro civil si uno o los dos contrayentes son viudos y tienen hijos menores de edad | C42: 6 | D42: 0 | E42: 12.39622585 | F42: 0 | G42: 6 | H42: NO | I42: 0 | J42: NO | K42: 0 | L42: NO | M42: 0 | N42: 24.39622585 | Q42: =VLOOKUP(A42,'DEMANDA ANUAL'!$A$5:$D$81,4,0) -> 6 | R42: =VLOOKUP(A42,'VOLUMEN DE QUEJAS'!$A$5:$F$81,6,0) -> 0 | S42: =VLOOKUP(A42,'COSTO ADMINISTRACIÓN PÚBLICA'!$A$6:$F$82,6,0) -> 12.39622585 | T42: =VLOOKUP(A42,'TIEMPO DE RESPUESTA'!$A$5:$D$81,4,0) -> 0 | Z42: =VLOOKUP(A42,'CANAL ATENCIÓN'!$A$5:$D$81,4,0) -> 6 | AC42: DGRCIC-003-01-04 | AD42: Solemnización de matrimonio en sede de registro civil si uno o los dos contrayentes son viudos y tienen hijos menores de edad | AE42: 6 | AF42: 0 | AG42: 12.39622585 | AH42: 0 | AI42: 6 | AJ42: 24.39622585
A43: DGRCIC-006-01-03 | B43: Posesión notoria de apellidos | C43: 6 | D43: 0 | E43: 14.05294499 | F43: 0 | G43: 10 | H43: NO | I43: 0 | J43: NO | K43: 0 | L43: NO | M43: 0 | N43: 30.05294499 | Q43: =VLOOKUP(A43,'DEMANDA ANUAL'!$A$5:$D$81,4,0) -> 6 | R43: =VLOOKUP(A43,'VOLUMEN DE QUEJAS'!$A$5:$F$81,6,0) -> 0 | S43: =VLOOKUP(A43,'COSTO ADMINISTRACIÓN PÚBLICA'!$A$6:$F$82,6,0) -> 14.05294499 | T43: =VLOOKUP(A43,'TIEMPO DE RESPUESTA'!$A$5:$D$81,4,0) -> 0 | Z43: =VLOOKUP(A43,'CANAL ATENCIÓN'!$A$5:$D$81,4,0) -> 10 | AC43: DGRCIC-006-01-03 | AD43: Posesión notoria de apellidos | AE43: 6 | AF43: 0 | AG43: 14.05294499 | AH43: 0 | AI43: 10 | AJ43: 30.05294499
A44: DGRCIC-003-01-01 | B44: Solemnización de matrimonio en sede de registro civil si uno o los dos contrayentes solteros tiene hijo/s menor/es de edad | C44: 6 | D44: 0 | E44: 12.39622585 | F44: 0 | G44: 6 | H44: NO | I44: 0 | J44: NO | K44: 0 | L44: NO | M44: 0 | N44: 24.39622585 | Q44: =VLOOKUP(A44,'DEMANDA ANUAL'!$A$5:$D$81,4,0) -> 6 | R44: =VLOOKUP(A44,'VOLUMEN DE QUEJAS'!$A$5:$F$81,6,0) -> 0 | S44: =VLOOKUP(A44,'COSTO ADMINISTRACIÓN PÚBLICA'!$A$6:$F$82,6,0) -> 12.39622585 | T44: =VLOOKUP(A44,'TIEMPO DE RESPUESTA'!$A$5:$D$81,4,0) -> 0 | Z44: =VLOOKUP(A44,'CANAL ATENCIÓN'!$A$5:$D$81,4,0) -> 6 | AC44: DGRCIC-003-01-01 | AD44: Solemnización de matrimonio en sede de registro civil si uno o los dos contrayentes solteros tiene hijo/s menor/es de edad | AE44: 6 | AF44: 0 | AG44: 12.39622585 | AH44: 0 | AI44: 6 | AJ44: 24.39622585
A45: DGRCIC-001-06-01 | B45: Emisión de duplicado de cédula de identidad | C45: 6 | D45: 4 | E45: 6.669574544 | F45: 0 | G45: 0 | H45: NO | I45: 0 | J45: NO | K45: 0 | L45: NO | M45: 0 | N45: 16.66957454 | Q45: =VLOOKUP(A45,'DEMANDA ANUAL'!$A$5:$D$81,4,0) -> 6 | R45: =VLOOKUP(A45,'VOLUMEN DE QUEJAS'!$A$5:$F$81,6,0) -> 4 | S45: =VLOOKUP(A45,'COSTO ADMINISTRACIÓN PÚBLICA'!$A$6:$F$82,6,0) -> 6.669574544 | T45: =VLOOKUP(A45,'TIEMPO DE RESPUESTA'!$A$5:$D$81,4,0) -> 0 | Z45: =VLOOKUP(A45,'CANAL ATENCIÓN'!$A$5:$D$81,4,0) -> 0 | AC45: DGRCIC-001-06-01 | AD45: Emisión de duplicado de cédula de identidad | AE45: 6 | AF45: 4 | AG45: 6.669574544 | AH45: 0 | AI45: 0 | AJ45: 16.66957454
A46: DGRCIC-005-01-09 | B46: Inscripción de defunción por orden judicial (Inscripción de sentencia) | C46: 6 | D46: 0 | E46: 11.17924641 | F46: 0 | G46: 10 | H46: NO | I46: 0 | J46: NO | K46: 0 | L46: NO | M46: 0 | N46: 27.17924641 | Q46: =VLOOKUP(A46,'DEMANDA ANUAL'!$A$5:$D$81,4,0) -> 6 | R46: =VLOOKUP(A46,'VOLUMEN DE QUEJAS'!$A$5:$F$81,6,0) -> 0 | S46: =VLOOKUP(A46,'COSTO ADMINISTRACIÓN PÚBLICA'!$A$6:$F$82,6,0) -> 11.17924641 | T46: =VLOOKUP(A46,'TIEMPO DE RESPUESTA'!$A$5:$D$81,4,0) -> 0 | Z46: =VLOOKUP(A46,'CANAL ATENCIÓN'!$A$5:$D$81,4,0) -> 10 | AC46: DGRCIC-005-01-09 | AD46: Inscripción de defunción por orden judicial (Inscripción de sentencia) | AE46: 6 | AF46: 0 | AG46: 11.17924641 | AH46: 0 | AI46: 10 | AJ46: 27.17924641
A47: DGRCIC-006-01-04 | B47: Reconocimiento voluntario de hijo/a | C47: 6 | D47: 0 | E47: 8.461259769 | F47: 0 | G47: 10 | H47: NO | I47: 0 | J47: NO | K47: 0 | L47: NO | M47: 0 | N47: 24.46125977 | Q47: =VLOOKUP(A47,'DEMANDA ANUAL'!$A$5:$D$81,4,0) -> 6 | R47: =VLOOKUP(A47,'VOLUMEN DE QUEJAS'!$A$5:$F$81,6,0) -> 0 | S47: =VLOOKUP(A47,'COSTO ADMINISTRACIÓN PÚBLICA'!$A$6:$F$82,6,0) -> 8.461259769 | T47: =VLOOKUP(A47,'TIEMPO DE RESPUESTA'!$A$5:$D$81,4,0) -> 0 | Z47: =VLOOKUP(A47,'CANAL ATENCIÓN'!$A$5:$D$81,4,0) -> 10 | AC47: DGRCIC-006-01-04 | AD47: Reconocimiento voluntario de hijo/a | AE47: 6 | AF47: 0 | AG47: 8.461259769 | AH47: 0 | AI47: 10 | AJ47: 24.46125977
A48: DGRCIC-003-01-03 | B48: Solemnización de matrimonio en sede de registro civil si uno o los dos contrayentes son divorciados y tiene hijos menores de edad | C48: 6 | D48: 10 | E48: 12.39622585 | F48: 0 | G48: 6 | H48: NO | I48: 0 | J48: NO | K48: 0 | L48: NO | M48: 0 | N48: 34.39622585 | Q48: =VLOOKUP(A48,'DEMANDA ANUAL'!$A$5:$D$81,4,0) -> 6 | R48: =VLOOKUP(A48,'VOLUMEN DE QUEJAS'!$A$5:$F$81,6,0) -> 10 | S48: =VLOOKUP(A48,'COSTO ADMINISTRACIÓN PÚBLICA'!$A$6:$F$82,6,0) -> 12.39622585 | T48: =VLOOKUP(A48,'TIEMPO DE RESPUESTA'!$A$5:$D$81,4,0) -> 0 | Z48: =VLOOKUP(A48,'CANAL ATENCIÓN'!$A$5:$D$81,4,0) -> 6 | AC48: DGRCIC-003-01-03 | AD48: Solemnización de matrimonio en sede de registro civil si uno o los dos contrayentes son divorciados y tiene hijos menores de edad | AE48: 6 | AF48: 10 | AG48: 12.39622585 | AH48: 0 | AI48: 6 | AJ48: 34.39622585
A49: DGRCIC-002-01-02 | B49: Inscripción ordinaria y extraordinaria de nacimiento sin atención médica | C49: 6 | D49: 0 | E49: 8.873759769 | F49: 0 | G49: 10 | H49: NO | I49: 0 | J49: NO | K49: 0 | L49: NO | M49: 0 | N49: 24.87375977 | Q49: =VLOOKUP(A49,'DEMANDA ANUAL'!$A$5:$D$81,4,0) -> 6 | R49: =VLOOKUP(A49,'VOLUMEN DE QUEJAS'!$A$5:$F$81,6,0) -> 0 | S49: =VLOOKUP(A49,'COSTO ADMINISTRACIÓN PÚBLICA'!$A$6:$F$82,6,0) -> 8.873759769 | T49: =VLOOKUP(A49,'TIEMPO DE RESPUESTA'!$A$5:$D$81,4,0) -> 0 | Z49: =VLOOKUP(A49,'CANAL ATENCIÓN'!$A$5:$D$81,4,0) -> 10 | AC49: DGRCIC-002-01-02 | AD49: Inscripción ordinaria y extraordinaria de nacimiento sin atención médica | AE49: 6 | AF49: 0 | AG49: 8.873759769 | AH49: 0 | AI49: 10 | AJ49: 24.87375977
A50: DGRCIC-005-01-04 | B50: Inscripción extraordinaria de defunción sin atención médica | C50: 6 | D50: 4 | E50: 11.17924641 | F50: 0 | G50: 10 | H50: NO | I50: 0 | J50: NO | K50: 0 | L50: NO | M50: 0 | N50: 31.17924641 | Q50: =VLOOKUP(A50,'DEMANDA ANUAL'!$A$5:$D$81,4,0) -> 6 | R50: =VLOOKUP(A50,'VOLUMEN DE QUEJAS'!$A$5:$F$81,6,0) -> 4 | S50: =VLOOKUP(A50,'COSTO ADMINISTRACIÓN PÚBLICA'!$A$6:$F$82,6,0) -> 11.17924641 | T50: =VLOOKUP(A50,'TIEMPO DE RESPUESTA'!$A$5:$D$81,4,0) -> 0 | Z50: =VLOOKUP(A50,'CANAL ATENCIÓN'!$A$5:$D$81,4,0) -> 10 | AC50: DGRCIC-005-01-04 | AD50: Inscripción extraordinaria de defunción sin atención médica | AE50: 6 | AF50: 4 | AG50: 11.17924641 | AH50: 0 | AI50: 10 | AJ50: 31.17924641
A51: DGRCIC-006-04-05 | B51: Reconocimiento de Hijo/a por sentencia ejecutoriada o Acta Notarial | C51: 6 | D51: 0 | E51: 14.05294499 | F51: 0 | G51: 10 | H51: NO | I51: 0 | J51: NO | K51: 0 | L51: NO | M51: 0 | N51: 30.05294499 | Q51: =VLOOKUP(A51,'DEMANDA ANUAL'!$A$5:$D$81,4,0) -> 6 | R51: =VLOOKUP(A51,'VOLUMEN DE QUEJAS'!$A$5:$F$81,6,0) -> 0 | S51: =VLOOKUP(A51,'COSTO ADMINISTRACIÓN PÚBLICA'!$A$6:$F$82,6,0) -> 14.05294499 | T51: =VLOOKUP(A51,'TIEMPO DE RESPUESTA'!$A$5:$D$81,4,0) -> 0 | Z51: =VLOOKUP(A51,'CANAL ATENCIÓN'!$A$5:$D$81,4,0) -> 10 | AC51: DGRCIC-006-04-05 | AD51: Reconocimiento de Hijo/a por sentencia ejecutoriada o Acta Notarial | AE51: 6 | AF51: 0 | AG51: 14.05294499 | AH51: 0 | AI51: 10 | AJ51: 30.05294499
A52: DGRCIC-005-01-08 | B52: Inscripción de defunción por desastres, conflictos armados y epidemias | C52: 6 | D52: 0 | E52: 0.5090277778 | F52: 0 | G52: 10 | H52: NO | I52: 0 | J52: NO | K52: 0 | L52: NO | M52: 0 | N52: 16.50902778 | Q52: =VLOOKUP(A52,'DEMANDA ANUAL'!$A$5:$D$81,4,0) -> 6 | R52: =VLOOKUP(A52,'VOLUMEN DE QUEJAS'!$A$5:$F$81,6,0) -> 0 | S52: =VLOOKUP(A52,'COSTO ADMINISTRACIÓN PÚBLICA'!$A$6:$F$82,6,0) -> 0.5090277778 | T52: =VLOOKUP(A52,'TIEMPO DE RESPUESTA'!$A$5:$D$81,4,0) -> 0 | Z52: =VLOOKUP(A52,'CANAL ATENCIÓN'!$A$5:$D$81,4,0) -> 10 | AC52: DGRCIC-005-01-08 | AD52: Inscripción de defunción por desastres, conflictos armados y epidemias | AE52: 6 | AF52: 0 | AG52: 0.5090277778 | AH52: 0 | AI52: 10 | AJ52: 16.50902778
A53: DGRCIC-003-01-15 | B53: Solemnización de matrimonio en sede de registro civil si los contrayentes son solteros y no tienen hijos menores de edad | C53: 6 | D53: 4 | E53: 12.21856182 | F53: 0 | G53: 6 | H53: NO | I53: 0 | J53: NO | K53: 0 | L53: NO | M53: 0 | N53: 28.21856182 | Q53: =VLOOKUP(A53,'DEMANDA ANUAL'!$A$5:$D$81,4,0) -> 6 | R53: =VLOOKUP(A53,'VOLUMEN DE QUEJAS'!$A$5:$F$81,6,0) -> 4 | S53: =VLOOKUP(A53,'COSTO ADMINISTRACIÓN PÚBLICA'!$A$6:$F$82,6,0) -> 12.21856182 | T53: =VLOOKUP(A53,'TIEMPO DE RESPUESTA'!$A$5:$D$81,4,0) -> 0 | Z53: =VLOOKUP(A53,'CANAL ATENCIÓN'!$A$5:$D$81,4,0) -> 6 | AC53: DGRCIC-003-01-15 | AD53: Solemnización de matrimonio en sede de registro civil si los contrayentes son solteros y no tienen hijos menores de edad | AE53: 6 | AF53: 4 | AG53: 12.21856182 | AH53: 0 | AI53: 6 | AJ53: 28.21856182
A54: DGRCIC-006-04-01 | B54: Rectificación a la información registral por sentencia ejecutoriada | C54: 6 | D54: 0 | E54: 14.05294499 | F54: 0 | G54: 10 | H54: NO | I54: 0 | J54: NO | K54: 0 | L54: NO | M54: 0 | N54: 30.05294499 | Q54: =VLOOKUP(A54,'DEMANDA ANUAL'!$A$5:$D$81,4,0) -> 6 | R54: =VLOOKUP(A54,'VOLUMEN DE QUEJAS'!$A$5:$F$81,6,0) -> 0 | S54: =VLOOKUP(A54,'COSTO ADMINISTRACIÓN PÚBLICA'!$A$6:$F$82,6,0) -> 14.05294499 | T54: =VLOOKUP(A54,'TIEMPO DE RESPUESTA'!$A$5:$D$81,4,0) -> 0 | Z54: =VLOOKUP(A54,'CANAL ATENCIÓN'!$A$5:$D$81,4,0) -> 10 | AC54: DGRCIC-006-04-01 | AD54: Rectificación a la información registral por sentencia ejecutoriada | AE54: 6 | AF54: 0 | AG54: 14.05294499 | AH54: 0 | AI54: 10 | AJ54: 30.05294499
A55: DGRCIC-001-05-01 | B55: Emisión de Cédula de Identidad Por Primera Vez o Renovación Para Ecuatorianos a Través de Brigada Móvil | C55: 6 | D55: 0 | E55: 3.178472222 | F55: 0 | G55: 6 | H55: NO | I55: 0 | J55: NO | K55: 0 | L55: NO | M55: 0 | N55: 15.17847222 | Q55: =VLOOKUP(A55,'DEMANDA ANUAL'!$A$5:$D$81,4,0) -> 6 | R55: =VLOOKUP(A55,'VOLUMEN DE QUEJAS'!$A$5:$F$81,6,0) -> 0 | S55: =VLOOKUP(A55,'COSTO ADMINISTRACIÓN PÚBLICA'!$A$6:$F$82,6,0) -> 3.178472222 | T55: =VLOOKUP(A55,'TIEMPO DE RESPUESTA'!$A$5:$D$81,4,0) -> 0 | Z55: =VLOOKUP(A55,'CANAL ATENCIÓN'!$A$5:$D$81,4,0) -> 6 | AC55: DGRCIC-001-05-01 | AD55: Emisión de Cédula de Identidad Por Primera Vez o Renovación Para Ecuatorianos a Través de Brigada Móvil | AE55: 6 | AF55: 0 | AG55: 3.178472222 | AH55: 0 | AI55: 6 | AJ55: 15.17847222
A56: DGRCIC-002-06-01 | B56: Inscripción ordinaria y extraordinaria de nacimiento con atención médica en consulados | C56: 10 | D56: 0 | E56: 11.63495835 | F56: 0 | G56: 10 | H56: NO | I56: 0 | J56: NO | K56: 0 | L56: NO | M56: 0 | N56: 31.63495835 | Q56: =VLOOKUP(A56,'DEMANDA ANUAL'!$A$5:$D$81,4,0) -> 10 | R56: =VLOOKUP(A56,'VOLUMEN DE QUEJAS'!$A$5:$F$81,6,0) -> 0 | S56: =VLOOKUP(A56,'COSTO ADMINISTRACIÓN PÚBLICA'!$A$6:$F$82,6,0) -> 11.63495835 | T56: =VLOOKUP(A56,'TIEMPO DE RESPUESTA'!$A$5:$D$81,4,0) -> 0 | Z56: =VLOOKUP(A56,'CANAL ATENCIÓN'!$A$5:$D$81,4,0) -> 10 | AC56: DGRCIC-002-06-01 | AD56: Inscripción ordinaria y extraordinaria de nacimiento con atención médica en consulados | AE56: 10 | AF56: 0 | AG56: 11.63495835 | AH56: 0 | AI56: 10 | AJ56: 31.63495835
A57: DGRCIC-005-05-03 | B57: Inscripción de defunción extraordinaria con atención médica | C57: 10 | D57: 0 | E57: 11.17924641 | F57: 0 | G57: 10 | H57: NO | I57: 0 | J57: NO | K57: 0 | L57: NO | M57: 0 | N57: 31.17924641 | Q57: =VLOOKUP(A57,'DEMANDA ANUAL'!$A$5:$D$81,4,0) -> 10 | R57: =VLOOKUP(A57,'VOLUMEN DE QUEJAS'!$A$5:$F$81,6,0) -> 0 | S57: =VLOOKUP(A57,'COSTO ADMINISTRACIÓN PÚBLICA'!$A$6:$F$82,6,0) -> 11.17924641 | T57: =VLOOKUP(A57,'TIEMPO DE RESPUESTA'!$A$5:$D$81,4,0) -> 0 | Z57: =VLOOKUP(A57,'CANAL ATENCIÓN'!$A$5:$D$81,4,0) -> 10 | AC57: DGRCIC-005-05-03 | AD57: Inscripción de defunción extraordinaria con atención médica | AE57: 10 | AF57: 0 | AG57: 11.17924641 | AH57: 0 | AI57: 10 | AJ57: 31.17924641
A58: DGRCIC-005-01-01 | B58: Inscripción extraordinaria de defunción con atención médica | C58: 10 | D58: 0 | E58: 11.17924641 | F58: 0 | G58: 10 | H58: NO | I58: 0 | J58: NO | K58: 0 | L58: NO | M58: 0 | N58: 31.17924641 | Q58: =VLOOKUP(A58,'DEMANDA ANUAL'!$A$5:$D$81,4,0) -> 10 | R58: =VLOOKUP(A58,'VOLUMEN DE QUEJAS'!$A$5:$F$81,6,0) -> 0 | S58: =VLOOKUP(A58,'COSTO ADMINISTRACIÓN PÚBLICA'!$A$6:$F$82,6,0) -> 11.17924641 | T58: =VLOOKUP(A58,'TIEMPO DE RESPUESTA'!$A$5:$D$81,4,0) -> 0 | Z58: =VLOOKUP(A58,'CANAL ATENCIÓN'!$A$5:$D$81,4,0) -> 10 | AC58: DGRCIC-005-01-01 | AD58: Inscripción extraordinaria de defunción con atención médica | AE58: 10 | AF58: 0 | AG58: 11.17924641 | AH58: 0 | AI58: 10 | AJ58: 31.17924641
A59: DGRCIC-010-01-03 | B59: Emisión de pasaporte ordinario por primera vez menores de 18 años, en caso de ausencia de uno o de los dos padres | C59: 10 | D59: 0 | E59: 17.46796562 | F59: 0 | G59: 6 | H59: NO | I59: 0 | J59: NO | K59: 0 | L59: NO | M59: 0 | N59: 33.46796562 | Q59: =VLOOKUP(A59,'DEMANDA ANUAL'!$A$5:$D$81,4,0) -> 10 | R59: =VLOOKUP(A59,'VOLUMEN DE QUEJAS'!$A$5:$F$81,6,0) -> 0 | S59: =VLOOKUP(A59,'COSTO ADMINISTRACIÓN PÚBLICA'!$A$6:$F$82,6,0) -> 17.46796562 | T59: =VLOOKUP(A59,'TIEMPO DE RESPUESTA'!$A$5:$D$81,4,0) -> 0 | Z59: =VLOOKUP(A59,'CANAL ATENCIÓN'!$A$5:$D$81,4,0) -> 6 | AC59: DGRCIC-010-01-03 | AD59: Emisión de pasaporte ordinario por primera vez menores de 18 años, en caso de ausencia de uno o de los dos padres | AE59: 10 | AF59: 0 | AG59: 17.46796562 | AH59: 0 | AI59: 6 | AJ59: 33.46796562
A60: DGRCIC-010-01-08 | B60: Emisión de pasaporte ordinario por renovación para menores de 18 años por pérdida o robo | C60: 10 | D60: 0 | E60: 17.46796562 | F60: 0 | G60: 6 | H60: NO | I60: 0 | J60: NO | K60: 0 | L60: NO | M60: 0 | N60: 33.46796562 | Q60: =VLOOKUP(A60,'DEMANDA ANUAL'!$A$5:$D$81,4,0) -> 10 | R60: =VLOOKUP(A60,'VOLUMEN DE QUEJAS'!$A$5:$F$81,6,0) -> 0 | S60: =VLOOKUP(A60,'COSTO ADMINISTRACIÓN PÚBLICA'!$A$6:$F$82,6,0) -> 17.46796562 | T60: =VLOOKUP(A60,'TIEMPO DE RESPUESTA'!$A$5:$D$81,4,0) -> 0 | Z60: =VLOOKUP(A60,'CANAL ATENCIÓN'!$A$5:$D$81,4,0) -> 6 | AC60: DGRCIC-010-01-08 | AD60: Emisión de pasaporte ordinario por renovación para menores de 18 años por pérdida o robo | AE60: 10 | AF60: 0 | AG60: 17.46796562 | AH60: 0 | AI60: 6 | AJ60: 33.46796562
A61: DGRCIC-009-01-02 | B61: Dispositivo Token | C61: 10 | D61: 0 | E61: 35.27984765 | F61: 0 | G61: 10 | H61: NO | I61: 0 | J61: NO | K61: 0 | L61: NO | M61: 0 | N61: 55.27984765 | Q61: =VLOOKUP(A61,'DEMANDA ANUAL'!$A$5:$D$81,4,0) -> 10 | R61: =VLOOKUP(A61,'VOLUMEN DE QUEJAS'!$A$5:$F$81,6,0) -> 0 | S61: =VLOOKUP(A61,'COSTO ADMINISTRACIÓN PÚBLICA'!$A$6:$F$82,6,0) -> 35.27984765 | T61: =VLOOKUP(A61,'TIEMPO DE RESPUESTA'!$A$5:$D$81,4,0) -> 0 | Z61: =VLOOKUP(A61,'CANAL ATENCIÓN'!$A$5:$D$81,4,0) -> 10 | AC61: DGRCIC-009-01-02 | AD61: Dispositivo Token | AE61: 10 | AF61: 0 | AG61: 35.27984765 | AH61: 0 | AI61: 10 | AJ61: 55.27984765
A62: DGRCIC-001-02-04 | B62: Emisión de Cédula de Identidad Por Primera Vez o Renovación Para Extranjeros Con Residencia Temporal o Residencia Permanente | C62: 10 | D62: 0 | E62: 11.63973199 | F62: 0 | G62: 10 | H62: NO | I62: 0 | J62: NO | K62: 0 | L62: NO | M62: 0 | N62: 31.63973199 | Q62: =VLOOKUP(A62,'DEMANDA ANUAL'!$A$5:$D$81,4,0) -> 10 | R62: =VLOOKUP(A62,'VOLUMEN DE QUEJAS'!$A$5:$F$81,6,0) -> 0 | S62: =VLOOKUP(A62,'COSTO ADMINISTRACIÓN PÚBLICA'!$A$6:$F$82,6,0) -> 11.63973199 | T62: =VLOOKUP(A62,'TIEMPO DE RESPUESTA'!$A$5:$D$81,4,0) -> 0 | Z62: =VLOOKUP(A62,'CANAL ATENCIÓN'!$A$5:$D$81,4,0) -> 10 | AC62: DGRCIC-001-02-04 | AD62: Emisión de Cédula de Identidad Por Primera Vez o Renovación Para Extranjeros Con Residencia Temporal o Residencia Permanente | AE62: 10 | AF62: 0 | AG62: 11.63973199 | AH62: 0 | AI62: 10 | AJ62: 31.63973199
A63: DGRCIC-005-01-03 | B63: Inscripción ordinaria de defunción sin atención médica | C63: 10 | D63: 0 | E63: 11.17924641 | F63: 0 | G63: 10 | H63: NO | I63: 0 | J63: NO | K63: 0 | L63: NO | M63: 0 | N63: 31.17924641 | Q63: =VLOOKUP(A63,'DEMANDA ANUAL'!$A$5:$D$81,4,0) -> 10 | R63: =VLOOKUP(A63,'VOLUMEN DE QUEJAS'!$A$5:$F$81,6,0) -> 0 | S63: =VLOOKUP(A63,'COSTO ADMINISTRACIÓN PÚBLICA'!$A$6:$F$82,6,0) -> 11.17924641 | T63: =VLOOKUP(A63,'TIEMPO DE RESPUESTA'!$A$5:$D$81,4,0) -> 0 | Z63: =VLOOKUP(A63,'CANAL ATENCIÓN'!$A$5:$D$81,4,0) -> 10 | AC63: DGRCIC-005-01-03 | AD63: Inscripción ordinaria de defunción sin atención médica | AE63: 10 | AF63: 0 | AG63: 11.17924641 | AH63: 0 | AI63: 10 | AJ63: 31.17924641
A64: DGRCIC-013-01-01 | B64: Inscripción ordinaria y extraordinaria de Nacimiento y Defunción. | C64: 10 | D64: 0 | E64: 11.17924641 | F64: 0 | G64: 10 | H64: NO | I64: 0 | J64: NO | K64: 0 | L64: NO | M64: 0 | N64: 31.17924641 | Q64: =VLOOKUP(A64,'DEMANDA ANUAL'!$A$5:$D$81,4,0) -> 10 | R64: =VLOOKUP(A64,'VOLUMEN DE QUEJAS'!$A$5:$F$81,6,0) -> 0 | S64: =VLOOKUP(A64,'COSTO ADMINISTRACIÓN PÚBLICA'!$A$6:$F$82,6,0) -> 11.17924641 | T64: =VLOOKUP(A64,'TIEMPO DE RESPUESTA'!$A$5:$D$81,4,0) -> 0 | Z64: =VLOOKUP(A64,'CANAL ATENCIÓN'!$A$5:$D$81,4,0) -> 10 | AC64: DGRCIC-013-01-01 | AD64: Inscripción ordinaria y extraordinaria de Nacimiento y Defunción. | AE64: 10 | AF64: 0 | AG64: 11.17924641 | AH64: 0 | AI64: 10 | AJ64: 31.17924641
A65: DGRCIC-009-01-01 | B65: Emisión de Certificado Digital de Firma Electrónica en Token | C65: 10 | D65: 4 | E65: 21.17984765 | F65: 0 | G65: 10 | H65: NO | I65: 0 | J65: NO | K65: 0 | L65: NO | M65: 0 | N65: 45.17984765 | Q65: =VLOOKUP(A65,'DEMANDA ANUAL'!$A$5:$D$81,4,0) -> 10 | R65: =VLOOKUP(A65,'VOLUMEN DE QUEJAS'!$A$5:$F$81,6,0) -> 4 | S65: =VLOOKUP(A65,'COSTO ADMINISTRACIÓN PÚBLICA'!$A$6:$F$82,6,0) -> 21.17984765 | T65: =VLOOKUP(A65,'TIEMPO DE RESPUESTA'!$A$5:$D$81,4,0) -> 0 | Z65: =VLOOKUP(A65,'CANAL ATENCIÓN'!$A$5:$D$81,4,0) -> 10 | AC65: DGRCIC-009-01-01 | AD65: Emisión de Certificado Digital de Firma Electrónica en Token | AE65: 10 | AF65: 4 | AG65: 21.17984765 | AH65: 0 | AI65: 10 | AJ65: 45.17984765
A66: DGRCIC-005-05-01 | B66: Inscripción de defunción ordinaria con atención médica | C66: 10 | D66: 4 | E66: 11.17924641 | F66: 0 | G66: 10 | H66: NO | I66: 0 | J66: NO | K66: 0 | L66: NO | M66: 0 | N66: 35.17924641 | Q66: =VLOOKUP(A66,'DEMANDA ANUAL'!$A$5:$D$81,4,0) -> 10 | R66: =VLOOKUP(A66,'VOLUMEN DE QUEJAS'!$A$5:$F$81,6,0) -> 4 | S66: =VLOOKUP(A66,'COSTO ADMINISTRACIÓN PÚBLICA'!$A$6:$F$82,6,0) -> 11.17924641 | T66: =VLOOKUP(A66,'TIEMPO DE RESPUESTA'!$A$5:$D$81,4,0) -> 0 | Z66: =VLOOKUP(A66,'CANAL ATENCIÓN'!$A$5:$D$81,4,0) -> 10 | AC66: DGRCIC-005-05-01 | AD66: Inscripción de defunción ordinaria con atención médica | AE66: 10 | AF66: 4 | AG66: 11.17924641 | AH66: 0 | AI66: 10 | AJ66: 35.17924641
A67: DGRCIC-005-01-02 | B67: Inscripción ordinaria de defunción con atención médica | C67: 10 | D67: 4 | E67: 11.17924641 | F67: 0 | G67: 6 | H67: NO | I67: 0 | J67: NO | K67: 0 | L67: NO | M67: 0 | N67: 31.17924641 | Q67: =VLOOKUP(A67,'DEMANDA ANUAL'!$A$5:$D$81,4,0) -> 10 | R67: =VLOOKUP(A67,'VOLUMEN DE QUEJAS'!$A$5:$F$81,6,0) -> 4 | S67: =VLOOKUP(A67,'COSTO ADMINISTRACIÓN PÚBLICA'!$A$6:$F$82,6,0) -> 11.17924641 | T67: =VLOOKUP(A67,'TIEMPO DE RESPUESTA'!$A$5:$D$81,4,0) -> 0 | Z67: =VLOOKUP(A67,'CANAL ATENCIÓN'!$A$5:$D$81,4,0) -> 6 | AC67: DGRCIC-005-01-02 | AD67: Inscripción ordinaria de defunción con atención médica | AE67: 10 | AF67: 4 | AG67: 11.17924641 | AH67: 0 | AI67: 6 | AJ67: 31.17924641
A68: DGRCIC-006-01-05 | B68: Rectificación de datos registrales en Actas Registrales (Resolución Administrativa) | C68: 10 | D68: 4 | E68: 14.05294499 | F68: 0 | G68: 10 | H68: NO | I68: 0 | J68: NO | K68: 0 | L68: NO | M68: 0 | N68: 38.05294499 | Q68: =VLOOKUP(A68,'DEMANDA ANUAL'!$A$5:$D$81,4,0) -> 10 | R68: =VLOOKUP(A68,'VOLUMEN DE QUEJAS'!$A$5:$F$81,6,0) -> 4 | S68: =VLOOKUP(A68,'COSTO ADMINISTRACIÓN PÚBLICA'!$A$6:$F$82,6,0) -> 14.05294499 | T68: =VLOOKUP(A68,'TIEMPO DE RESPUESTA'!$A$5:$D$81,4,0) -> 0 | Z68: =VLOOKUP(A68,'CANAL ATENCIÓN'!$A$5:$D$81,4,0) -> 10 | AC68: DGRCIC-006-01-05 | AD68: Rectificación de datos registrales en Actas Registrales (Resolución Administrativa) | AE68: 10 | AF68: 4 | AG68: 14.05294499 | AH68: 0 | AI68: 10 | AJ68: 38.05294499
A69: DGRCIC-010-01-07 | B69: Emisión de Pasaporte Ordinario por Pérdida o Robo | C69: 10 | D69: 4 | E69: 17.46796562 | F69: 0 | G69: 6 | H69: NO | I69: =IF(H69="SI",5,0) -> 0 | J69: NO | K69: =IF(J69="SI",10,0) -> 0 | L69: NO | M69: =IF(L69="SI",5,0) -> 0 | N69: =SUM(C69:G69,I69,K69,M69) -> 37.46796562 | Q69: =VLOOKUP(A69,'DEMANDA ANUAL'!$A$5:$D$81,4,0) -> 10 | R69: =VLOOKUP(A69,'VOLUMEN DE QUEJAS'!$A$5:$F$81,6,0) -> 4 | S69: =VLOOKUP(A69,'COSTO ADMINISTRACIÓN PÚBLICA'!$A$6:$F$82,6,0) -> 17.46796562 | T69: =VLOOKUP(A69,'TIEMPO DE RESPUESTA'!$A$5:$D$81,4,0) -> 0 | Z69: =VLOOKUP(A69,'CANAL ATENCIÓN'!$A$5:$D$81,4,0) -> 6 | AC69: DGRCIC-010-01-07 | AD69: Emisión de Pasaporte Ordinario por Pérdida o Robo | AE69: 10 | AF69: 4 | AG69: 17.46796562 | AH69: 0 | AI69: 6 | AJ69: 37.46796562
A70: DGRCIC-007-01-08 | B70: Emisión de Certificado de Identidad y Estado Civil en línea | C70: 10 | D70: 4 | E70: 0.1825170565 | F70: 0 | G70: 0 | H70: NO | I70: 0 | J70: NO | K70: 0 | L70: NO | M70: 0 | N70: 14.18251706 | Q70: =VLOOKUP(A70,'DEMANDA ANUAL'!$A$5:$D$81,4,0) -> 10 | R70: =VLOOKUP(A70,'VOLUMEN DE QUEJAS'!$A$5:$F$81,6,0) -> 4 | S70: =VLOOKUP(A70,'COSTO ADMINISTRACIÓN PÚBLICA'!$A$6:$F$82,6,0) -> 0.1825170565 | T70: =VLOOKUP(A70,'TIEMPO DE RESPUESTA'!$A$5:$D$81,4,0) -> 0 | Z70: =VLOOKUP(A70,'CANAL ATENCIÓN'!$A$5:$D$81,4,0) -> 0 | AC70: DGRCIC-007-01-08 | AD70: Emisión de Certificado de Identidad y Estado Civil en línea | AE70: 10 | AF70: 4 | AG70: 0.1825170565 | AH70: 0 | AI70: 0 | AJ70: 14.18251706
A71: DGRCIC-009-01-03 | B71: Emisión de Certificado Digital de Firma Electrónica en Archivo | C71: 10 | D71: 4 | E71: 21.17984765 | F71: 0 | G71: 10 | H71: NO | I71: 0 | J71: NO | K71: 0 | L71: NO | M71: 0 | N71: 45.17984765 | Q71: =VLOOKUP(A71,'DEMANDA ANUAL'!$A$5:$D$81,4,0) -> 10 | R71: =VLOOKUP(A71,'VOLUMEN DE QUEJAS'!$A$5:$F$81,6,0) -> 4 | S71: =VLOOKUP(A71,'COSTO ADMINISTRACIÓN PÚBLICA'!$A$6:$F$82,6,0) -> 21.17984765 | T71: =VLOOKUP(A71,'TIEMPO DE RESPUESTA'!$A$5:$D$81,4,0) -> 0 | Z71: =VLOOKUP(A71,'CANAL ATENCIÓN'!$A$5:$D$81,4,0) -> 10 | AC71: DGRCIC-009-01-03 | AD71: Emisión de Certificado Digital de Firma Electrónica en Archivo | AE71: 10 | AF71: 4 | AG71: 21.17984765 | AH71: 0 | AI71: 10 | AJ71: 45.17984765
A72: DGRCIC-010-01-01 | B72: Emisión de Pasaporte Ordinario Por Primera Vez | C72: 10 | D72: 4 | E72: 17.46796562 | F72: 0 | G72: 6 | H72: NO | I72: 0 | J72: NO | K72: 0 | L72: NO | M72: 0 | N72: 37.46796562 | Q72: =VLOOKUP(A72,'DEMANDA ANUAL'!$A$5:$D$81,4,0) -> 10 | R72: =VLOOKUP(A72,'VOLUMEN DE QUEJAS'!$A$5:$F$81,6,0) -> 4 | S72: =VLOOKUP(A72,'COSTO ADMINISTRACIÓN PÚBLICA'!$A$6:$F$82,6,0) -> 17.46796562 | T72: =VLOOKUP(A72,'TIEMPO DE RESPUESTA'!$A$5:$D$81,4,0) -> 0 | Z72: =VLOOKUP(A72,'CANAL ATENCIÓN'!$A$5:$D$81,4,0) -> 6 | AC72: DGRCIC-010-01-01 | AD72: Emisión de Pasaporte Ordinario Por Primera Vez | AE72: 10 | AF72: 4 | AG72: 17.46796562 | AH72: 0 | AI72: 6 | AJ72: 37.46796562
A73: DGRCIC-010-01-04 | B73: Emisión de Pasaporte Ordinario por Renovación | C73: 10 | D73: 10 | E73: 17.46796562 | F73: 0 | G73: 6 | H73: NO | I73: 0 | J73: NO | K73: 0 | L73: NO | M73: 0 | N73: 43.46796562 | Q73: =VLOOKUP(A73,'DEMANDA ANUAL'!$A$5:$D$81,4,0) -> 10 | R73: =VLOOKUP(A73,'VOLUMEN DE QUEJAS'!$A$5:$F$81,6,0) -> 10 | S73: =VLOOKUP(A73,'COSTO ADMINISTRACIÓN PÚBLICA'!$A$6:$F$82,6,0) -> 17.46796562 | T73: =VLOOKUP(A73,'TIEMPO DE RESPUESTA'!$A$5:$D$81,4,0) -> 0 | Z73: =VLOOKUP(A73,'CANAL ATENCIÓN'!$A$5:$D$81,4,0) -> 6 | AC73: DGRCIC-010-01-04 | AD73: Emisión de Pasaporte Ordinario por Renovación | AE73: 10 | AF73: 10 | AG73: 17.46796562 | AH73: 0 | AI73: 6 | AJ73: 43.46796562
A74: DGRCIC-007-02-02 | B74: Convalidación de Documentos Registrales | C74: 10 | D74: 0 | E74: 0.1825170565 | F74: 0 | G74: 10 | H74: NO | I74: 0 | J74: NO | K74: 0 | L74: NO | M74: 0 | N74: 20.18251706 | Q74: =VLOOKUP(A74,'DEMANDA ANUAL'!$A$5:$D$81,4,0) -> 10 | R74: =VLOOKUP(A74,'VOLUMEN DE QUEJAS'!$A$5:$F$81,6,0) -> 0 | S74: =VLOOKUP(A74,'COSTO ADMINISTRACIÓN PÚBLICA'!$A$6:$F$82,6,0) -> 0.1825170565 | T74: =VLOOKUP(A74,'TIEMPO DE RESPUESTA'!$A$5:$D$81,4,0) -> 0 | Z74: =VLOOKUP(A74,'CANAL ATENCIÓN'!$A$5:$D$81,4,0) -> 10 | AC74: DGRCIC-007-02-02 | AD74: Convalidación de Documentos Registrales | AE74: 10 | AF74: 0 | AG74: 0.1825170565 | AH74: 0 | AI74: 10 | AJ74: 20.18251706
A75: DGRCIC-007-01-07 | B75: Emisión de Certificado de Datos Registrales: Nacimiento, Matrimonio y Unión de Hecho en Línea | C75: 10 | D75: 4 | E75: 0.6215277778 | F75: 0 | G75: 0 | H75: NO | I75: 0 | J75: NO | K75: 0 | L75: NO | M75: 0 | N75: 14.62152778 | Q75: =VLOOKUP(A75,'DEMANDA ANUAL'!$A$5:$D$81,4,0) -> 10 | R75: =VLOOKUP(A75,'VOLUMEN DE QUEJAS'!$A$5:$F$81,6,0) -> 4 | S75: =VLOOKUP(A75,'COSTO ADMINISTRACIÓN PÚBLICA'!$A$6:$F$82,6,0) -> 0.6215277778 | T75: =VLOOKUP(A75,'TIEMPO DE RESPUESTA'!$A$5:$D$81,4,0) -> 0 | Z75: =VLOOKUP(A75,'CANAL ATENCIÓN'!$A$5:$D$81,4,0) -> 0 | AC75: DGRCIC-007-01-07 | AD75: Emisión de Certificado de Datos Registrales: Nacimiento, Matrimonio y Unión de Hecho en Línea | AE75: 10 | AF75: 4 | AG75: 0.6215277778 | AH75: 0 | AI75: 0 | AJ75: 14.62152778
A76: DGRCIC-007-01-04 | B76: Emisión de certificados de Identidad y Estado Civil | C76: 10 | D76: 0 | E76: 3.491102322 | F76: 0 | G76: 10 | H76: NO | I76: 0 | J76: NO | K76: 0 | L76: NO | M76: 0 | N76: 23.49110232 | Q76: =VLOOKUP(A76,'DEMANDA ANUAL'!$A$5:$D$81,4,0) -> 10 | R76: =VLOOKUP(A76,'VOLUMEN DE QUEJAS'!$A$5:$F$81,6,0) -> 0 | S76: =VLOOKUP(A76,'COSTO ADMINISTRACIÓN PÚBLICA'!$A$6:$F$82,6,0) -> 3.491102322 | T76: =VLOOKUP(A76,'TIEMPO DE RESPUESTA'!$A$5:$D$81,4,0) -> 0 | Z76: =VLOOKUP(A76,'CANAL ATENCIÓN'!$A$5:$D$81,4,0) -> 10 | AC76: DGRCIC-007-01-04 | AD76: Emisión de certificados de Identidad y Estado Civil | AE76: 10 | AF76: 0 | AG76: 3.491102322 | AH76: 0 | AI76: 10 | AJ76: 23.49110232
A77: DGRCIC-002-01-01 | B77: Inscripción ordinaria y extraordinaria de nacimiento con atención médica | C77: 10 | D77: 4 | E77: 8.873759769 | F77: 0 | G77: 6 | H77: NO | I77: 0 | J77: NO | K77: 0 | L77: NO | M77: 0 | N77: 28.87375977 | Q77: =VLOOKUP(A77,'DEMANDA ANUAL'!$A$5:$D$81,4,0) -> 10 | R77: =VLOOKUP(A77,'VOLUMEN DE QUEJAS'!$A$5:$F$81,6,0) -> 4 | S77: =VLOOKUP(A77,'COSTO ADMINISTRACIÓN PÚBLICA'!$A$6:$F$82,6,0) -> 8.873759769 | T77: =VLOOKUP(A77,'TIEMPO DE RESPUESTA'!$A$5:$D$81,4,0) -> 0 | Z77: =VLOOKUP(A77,'CANAL ATENCIÓN'!$A$5:$D$81,4,0) -> 6 | AC77: DGRCIC-002-01-01 | AD77: Inscripción ordinaria y extraordinaria de nacimiento con atención médica | AE77: 10 | AF77: 4 | AG77: 8.873759769 | AH77: 0 | AI77: 6 | AJ77: 28.87375977
A78: DGRCIC-007-01-06 | B78: Emisión de Copia del Acta Registral: Nacimiento, Matrimonio, Defunción, Unión de Hecho y Registro de Género / Cambio de Nombre | C78: 10 | D78: 4 | E78: 6.761328681 | F78: 0 | G78: 10 | H78: NO | I78: 0 | J78: NO | K78: 0 | L78: NO | M78: 0 | N78: 30.76132868 | Q78: =VLOOKUP(A78,'DEMANDA ANUAL'!$A$5:$D$81,4,0) -> 10 | R78: =VLOOKUP(A78,'VOLUMEN DE QUEJAS'!$A$5:$F$81,6,0) -> 4 | S78: =VLOOKUP(A78,'COSTO ADMINISTRACIÓN PÚBLICA'!$A$6:$F$82,6,0) -> 6.761328681 | T78: =VLOOKUP(A78,'TIEMPO DE RESPUESTA'!$A$5:$D$81,4,0) -> 0 | Z78: =VLOOKUP(A78,'CANAL ATENCIÓN'!$A$5:$D$81,4,0) -> 10 | AC78: DGRCIC-007-01-06 | AD78: Emisión de Copia del Acta Registral: Nacimiento, Matrimonio, Defunción, Unión de Hecho y Registro de Género / Cambio de Nombre | AE78: 10 | AF78: 4 | AG78: 6.761328681 | AH78: 0 | AI78: 10 | AJ78: 30.76132868
A79: DGRCIC-001-01-01 | B79: Emisión de Cédula de Identidad Por Primera Vez o Renovación Para Ecuatorianos | C79: 10 | D79: 10 | E79: 11.63973199 | F79: 0 | G79: 6 | H79: NO | I79: 0 | J79: NO | K79: 0 | L79: NO | M79: 0 | N79: 37.63973199 | Q79: =VLOOKUP(A79,'DEMANDA ANUAL'!$A$5:$D$81,4,0) -> 10 | R79: =VLOOKUP(A79,'VOLUMEN DE QUEJAS'!$A$5:$F$81,6,0) -> 10 | S79: =VLOOKUP(A79,'COSTO ADMINISTRACIÓN PÚBLICA'!$A$6:$F$82,6,0) -> 11.63973199 | T79: =VLOOKUP(A79,'TIEMPO DE RESPUESTA'!$A$5:$D$81,4,0) -> 0 | Z79: =VLOOKUP(A79,'CANAL ATENCIÓN'!$A$5:$D$81,4,0) -> 6 | AC79: DGRCIC-001-01-01 | AD79: Emisión de Cédula de Identidad Por Primera Vez o Renovación Para Ecuatorianos | AE79: 10 | AF79: 10 | AG79: 11.63973199 | AH79: 0 | AI79: 6 | AJ79: 37.63973199
A80: DGRCIC-007-01-01 | B80: Emisión de Certificados de Datos Registrales: Nacimiento, Matrimonio, Defunción y Unión de Hecho | C80: 10 | D80: 4 | E80: 4.0001301 | F80: 0 | G80: 10 | H80: NO | I80: 0 | J80: NO | K80: 0 | L80: NO | M80: 0 | N80: 28.0001301 | Q80: =VLOOKUP(A80,'DEMANDA ANUAL'!$A$5:$D$81,4,0) -> 10 | R80: =VLOOKUP(A80,'VOLUMEN DE QUEJAS'!$A$5:$F$81,6,0) -> 4 | S80: =VLOOKUP(A80,'COSTO ADMINISTRACIÓN PÚBLICA'!$A$6:$F$82,6,0) -> 4.0001301 | T80: =VLOOKUP(A80,'TIEMPO DE RESPUESTA'!$A$5:$D$81,4,0) -> 0 | Z80: =VLOOKUP(A80,'CANAL ATENCIÓN'!$A$5:$D$81,4,0) -> 10 | AC80: DGRCIC-007-01-01 | AD80: Emisión de Certificados de Datos Registrales: Nacimiento, Matrimonio, Defunción y Unión de Hecho | AE80: 10 | AF80: 4 | AG80: 4.0001301 | AH80: 0 | AI80: 10 | AJ80: 28.0001301
